Workbook

Sheet UniPlus Instructions
B4: UniPlus
B7: Introduction

Sheet INPUT
O1: 0
A7: 1. Settings
B9: Weight Unit | G9: Data Composition | K9: Uniformity Range (%)
B10: 2 | H10: 1 | M10: 15
A15: 2. Data Information
A17: 2 | B17: Option A - Input sample data below | J17: Option B - Input sample mean & C.V. %
B19: No. | C19: Weight | J19: Mean | K19: 3.6
B20: =IF(C20<>"",1,"") ->  | G20: C.V. % | K20: 9
B21: =IF(C21<>"",B20+1,"") -> 
B22: =IF(C22<>"",B21+1,"") ->  | E22: Brief Summary
E23: Average | F23: Std. Dev. | G23: C.V. %
E24: =IF(COUNTA(C20:C1048576)>0,AVERAGE(C20:C1048576),"") ->  | F24: =IF(COUNTA(C20:C1048576)>1,_xlfn.STDEV.S(C20:C1048576),"") ->  | G24: =IF(COUNTA(C20:C1048576)>1,F24/E24*100,"") -> 
B86: =IF(C86<>"",B85+1,"") -> 
B150: =IF(C150<>"",B149+1,"") -> 
B214: =IF(C214<>"",B213+1,"") -> 
B278: =IF(C278<>"",B277+1,"") -> 
B342: =IF(C342<>"",B341+1,"") -> 
B406: =IF(C406<>"",B405+1,"") -> 
B470: =IF(C470<>"",B469+1,"") -> 
B534: =IF(C534<>"",B533+1,"") -> 
B598: =IF(C598<>"",B597+1,"") -> 
B662: =IF(C662<>"",B661+1,"") -> 
B726: =IF(C726<>"",B725+1,"") -> 
B790: =IF(C790<>"",B789+1,"") -> 
B854: =IF(C854<>"",B853+1,"") -> 
B918: =IF(C918<>"",B917+1,"") -> 
B982: =IF(C982<>"",B981+1,"") -> 
B1046: =IF(C1046<>"",B1045+1,"") -> 
B1110: =IF(C1110<>"",B1109+1,"") -> 
B1174: =IF(C1174<>"",B1173+1,"") -> 
B1238: =IF(C1238<>"",B1237+1,"") -> 
B1302: =IF(C1302<>"",B1301+1,"") -> 
B1366: =IF(C1366<>"",B1365+1,"") -> 
B1430: =IF(C1430<>"",B1429+1,"") -> 
B1494: =IF(C1494<>"",B1493+1,"") -> 
B1558: =IF(C1558<>"",B1557+1,"") -> 
B1622: =IF(C1622<>"",B1621+1,"") -> 
B1686: =IF(C1686<>"",B1685+1,"") -> 
B1750: =IF(C1750<>"",B1749+1,"") -> 
B1814: =IF(C1814<>"",B1813+1,"") -> 
B1878: =IF(C1878<>"",B1877+1,"") -> 
B1942: =IF(C1942<>"",B1941+1,"") -> 
... 44 more rows

Sheet BRLRWT
A7: 1. Advanced Settings
B9: Flock size (in 1,000's) | H9: 7
B10: # Male / # Total (if Mixed) in % | G10: 50 | H10: 50 | I10: ← Ranges from 0 to 100
B11: (Mean Weight of Male) / (Mean Weight of S/Run) | G11: 105.305005 | H11: 1.05305005 | I11: ← Normal value shown in box. Adjust if required using slider.
B12: (Mean Weight of Female) / (Mean Weight of S/Run) | G12: 94.69499504 | H12: 0.9469499504 | I12: ← Normal value shown in box. Adjust if required using slider.
B13: (C.V. of Male) / (C.V. of S/Run) | G13: 80.66741979 | H13: 0.8066741979 | I13: ← Normal value shown in box. Adjust if required using slider.
B14: (C.V. of Female) / (C.V. of S/Run) | G14: 80.66741979 | H14: 0.8066741979 | I14: ← Normal value shown in box. Adjust if required using slider.
A16: 2-1. Results - Data Summary (Detail), Uniformity, and Flock Percentage Chart
B18: Data Summary (Detail) | D18: Mean | E18: Std. Dev. | F18: C.V. %
B20: S/Run | C20: lbs | D20: 3.6 | E20: 0.324 | F20: 9
C21: kgs | D21: 1.632949288 | E21: 0.1469654359
B22: Male | C22: lbs | D22: 3.790980179 | E22: 0.2752277305 | F22: 7.260067781
C23: kgs | D23: 1.719577329 | E23: 0.1248424796
B24: Female | C24: lbs | D24: 3.409019821 | E24: 0.2474971497 | F24: 7.260067781
C25: kgs | D25: 1.546321247 | E25: 0.1122639707
B27: Uniformity (Range in percent and lbs)
B28: Range Minimum | C28: Size within the Uniformity Range | H28: Range Maximum
C29: Flock Size | E29: Composition | F29: Percentage
B30: 25 | C30: =IF(C31<>"",IF(C32<>"",C32+C31,""),"") -> 6345 | E30: S/Run | F30: =IF(F31<>"",IF(F32<>"",F31+F32,""),"") -> 0.9064273563 | H30: 15
B31: =(40-B30)*(-1)/100 -> -0.15 | C31: =IF(D20<>"",IF(INPUT!B10=2,ROUNDDOWN(_xlfn.NORM.DIST($H$32,D22,E22,TRUE)*$H$9*1000*$H$10/100,0)-ROUNDDOWN(_xlfn.NORM.DIST($B$32,D22,E22,TRUE)*$H$9*1000*$H$10/100,0),ROUNDDOWN(_xlfn.NORM.DIST($H$32,D23,E23,TRUE)*$H$9*1000*$H$10/100,0)-ROUNDDOWN(_xlfn.NORM.DIST($B$32,D23,E23,TRUE)*$H$9*1000*$H$10/100,0)),IF(D22<>"",IF(INPUT!B10=2,ROUNDDOWN(_xlfn.NORM.DIST($H$32,D22,E22,TRUE)*$H$9*1000,0)-ROUNDDOWN(_xlfn.NORM.DIST($B$32,D22,E22,TRUE)*$H$9*1000,0),ROUNDDOWN(_xlfn.NORM.DIST($H$32,D23,E23,TRUE)*$H$9*1000,0)-ROUNDDOWN(_xlfn.NORM.DIST($B$32,D23,E23,TRUE)*$H$9*1000,0)),"")) -> 3128 | E31: Male | F31: =IF(D20<>"",IF(INPUT!B10=2,_xlfn.NORM.DIST($H$32,D22,E22,TRUE)*$H$10/100-_xlfn.NORM.DIST($B$32,D22,E22,TRUE)*$H$10/100,_xlfn.NORM.DIST($H$32,D23,E23,TRUE)*$H$10/100-_xlfn.NORM.DIST($B$32,D23,E23,TRUE)*$H$10/100),IF(D22<>"",IF(INPUT!B10=2,_xlfn.NORM.DIST($H$32,D22,E22,TRUE)-_xlfn.NORM.DIST($B$32,D22,E22,TRUE),_xlfn.NORM.DIST($H$32,D23,E23,TRUE)-_xlfn.NORM.DIST($B$32,D23,E23,TRUE)),"")) -> 0.4468332206 | H31: =H30/100 -> 0.15
B32: =IF(INPUT!B10=2, IF(D20<>"",D20+D20*B31, IF(D22<>"", D22+D22*B31, D24+D24*B31)), IF(D21<>"",D21+D21*B31, IF(D23<>"", D23+D23*B31, D25+D25*B31))) -> 3.06 | C32: =IF(D20<>"",IF(INPUT!B10=2,ROUNDDOWN(_xlfn.NORM.DIST($H$32,D24,E24,TRUE)*$H$9*1000*(1-$H$10/100),0)-ROUNDDOWN(_xlfn.NORM.DIST($B$32,D24,E24,TRUE)*$H$9*1000*(1-$H$10/100),0),ROUNDDOWN(_xlfn.NORM.DIST($H$32,D25,E25,TRUE)*$H$9*1000*(1-$H$10/100),0)-ROUNDDOWN(_xlfn.NORM.DIST($B$32,D25,E25,TRUE)*$H$9*1000*(1-$H$10/100),0)),IF(D24<>"",IF(INPUT!B10=2,ROUNDDOWN(_xlfn.NORM.DIST($H$32,D24,E24,TRUE)*$H$9*1000,0)-ROUNDDOWN(_xlfn.NORM.DIST($B$32,D24,E24,TRUE)*$H$9*1000,0),ROUNDDOWN(_xlfn.NORM.DIST($H$32,D25,E25,TRUE)*$H$9*1000,0)-ROUNDDOWN(_xlfn.NORM.DIST($B$32,D25,E25,TRUE)*$H$9*1000,0)),"")) -> 3217 | E32: Female | F32: =IF(D20<>"",IF(INPUT!B10=2,_xlfn.NORM.DIST($H$32,D24,E24,TRUE)*(1-$H$10/100)-_xlfn.NORM.DIST($B$32,D24,E24,TRUE)*(1-$H$10/100),_xlfn.NORM.DIST($H$32,D25,E25,TRUE)*(1-$H$10/100)-_xlfn.NORM.DIST($B$32,D25,E25,TRUE)*(1-$H$10/100)),IF(D24<>"",IF(INPUT!B10=2,_xlfn.NORM.DIST($H$32,D24,E24,TRUE)-_xlfn.NORM.DIST($B$32,D24,E24,TRUE),_xlfn.NORM.DIST($H$32,D25,E25,TRUE)-_xlfn.NORM.DIST($B$32,D25,E25,TRUE)),"")) -> 0.4595941357 | H32: =IF(INPUT!B10=2, IF(D20<>"",D20+D20*H31, IF(D22<>"", D22+D22*H31, D24+D24*H31)), IF(D21<>"",D21+D21*H31, IF(D23<>"", D23+D23*H31, D25+D25*H31))) -> 4.14
A34: 2-2. Results - Data Table
B36: Percentage distribution according to weight and sex | J36: Numbers distribution according to weight and sex
B38: Weight | F38: Sex | J38: Weight | N38: Sex
B39: Min (>) | D39: Max (≤) | F39: Male | G39: Female | H39: S/Run | J39: Min | L39: Max | N39: Male | O39: Female | P39: S/Run
B40: Kgs | C40: Lbs | D40: Kgs | E40: Lbs | J40: Kgs | K40: Lbs | L40: Kgs | M40: Lbs
B41: ="-inf." -> -inf. | D41: =E41/2.2046 -> 1.045087544 | E41: =IF($D$20<>"",MAX(0,$D$20-4*$E$20),IF($D$22<>"",MAX(0, $D$22-4*$E$22),MAX(0,$D$24-4*$E$24))) -> 2.304 | F41: =IF($D$22="","",IF($D$24="",_xlfn.NORM.DIST(E41,$D$22,$E$22,TRUE),_xlfn.NORM.DIST(E41,$D$22,$E$22,TRUE)*$H$10/100)) -> 1.640886614e-08 | G41: =IF($D$24="","",IF($D$22="",_xlfn.NORM.DIST(E41,$D$24,$E$24,TRUE),_xlfn.NORM.DIST(E41,$D$24,$E$24,TRUE)*(1-$H$10/100))) -> 2.00379568e-06 | H41: =IF(F41="","",IF(G41="","",F41+G41)) -> 2.020204546e-06 | J41: =B41 -> -inf. | L41: =D41 -> 1.045087544 | M41: =E41 -> 2.304 | N41: =IF(F41<>"",ROUND(F41*$H$9*1000,0),"") -> 0 | O41: =IF(G41<>"",ROUND(G41*$H$9*1000,0),"") -> 0 | P41: =IF(N41<>"",IF(O41<>"",N41+O41,""),"") -> 0
B42: =D41 -> 1.045087544 | C42: =E41 -> 2.304 | D42: =E42/2.2046 -> 1.081828903 | E42: =IF($D$20<>"",C42+($D$20+4*$E$20-$E$41)/32,IF($D$22<>"",C42+($D$22+4*$E$22-$E$41)/32,C42+($D$24+4*$E$24-$E$41)/32)) -> 2.385 | F42: =IF($D$22="","",IF($D$24="",_xlfn.NORM.DIST(E42,$D$22,$E$22,TRUE)-_xlfn.NORM.DIST(C42,$D$22,$E$22,TRUE),_xlfn.NORM.DIST(E42,$D$22,$E$22,TRUE)*$H$10/100-_xlfn.NORM.DIST(C42,$D$22,$E$22,TRUE)*$H$10/100)) -> 6.480502298e-08 | G42: =IF($D$24="","",IF($D$22="",_xlfn.NORM.DIST(E42,$D$24,$E$24,TRUE)-_xlfn.NORM.DIST(C42,$D$24,$E$24,TRUE),_xlfn.NORM.DIST(E42,$D$24,$E$24,TRUE)*(1-$H$10/100)-_xlfn.NORM.DIST(C42,$D$24,$E$24,TRUE)*(1-$H$10/100))) -> 6.773909227e-06 | H42: =IF(F42="","",IF(G42="","",F42+G42)) -> 6.83871425e-06 | J42: 1.045087544 | K42: =C42 -> 2.304 | L42: 1.081828903 | M42: 2.385 | N42: =IF(F42<>"",ROUND(F42*$H$9*1000,0),"") -> 0 | O42: =IF(G42<>"",ROUND(G42*$H$9*1000,0),"") -> 0 | P42: =IF(N42<>"",IF(O42<>"",N42+O42,""),"") -> 0
B43: =D42 -> 1.081828903 | C43: =E42 -> 2.385 | D43: =E43/2.2046 -> 1.118570262 | E43: 2.466 | F43: =IF($D$22="","",IF($D$24="",_xlfn.NORM.DIST(E43,$D$22,$E$22,TRUE)-_xlfn.NORM.DIST(C43,$D$22,$E$22,TRUE),_xlfn.NORM.DIST(E43,$D$22,$E$22,TRUE)*$H$10/100-_xlfn.NORM.DIST(C43,$D$22,$E$22,TRUE)*$H$10/100)) -> 2.884052239e-07 | G43: =IF($D$24="","",IF($D$22="",_xlfn.NORM.DIST(E43,$D$24,$E$24,TRUE)-_xlfn.NORM.DIST(C43,$D$24,$E$24,TRUE),_xlfn.NORM.DIST(E43,$D$24,$E$24,TRUE)*(1-$H$10/100)-_xlfn.NORM.DIST(C43,$D$24,$E$24,TRUE)*(1-$H$10/100))) -> 2.593239209e-05 | H43: =IF(F43="","",IF(G43="","",F43+G43)) -> 2.622079731e-05 | J43: 1.081828903 | K43: =C43 -> 2.385 | L43: 1.118570262 | M43: 2.466 | N43: =IF(F43<>"",ROUND(F43*$H$9*1000,0),"") -> 0 | O43: =IF(G43<>"",ROUND(G43*$H$9*1000,0),"") -> 0 | P43: 0
B44: 1.118570262 | C44: 2.466 | D44: 1.155311621 | E44: 2.547 | F44: 1.17767664e-06 | G44: 8.927085124e-05 | H44: 9.044852788e-05 | J44: 1.118570262 | K44: 2.466 | L44: 1.155311621 | M44: 2.547 | N44: 0 | O44: 1 | P44: 1
B45: 1.155311621 | C45: 2.547 | D45: 1.19205298 | E45: 2.628 | F45: 4.412455241e-06 | G45: 0.0002763411285 | H45: 0.0002807535837 | J45: 1.155311621 | K45: 2.547 | L45: 1.19205298 | M45: 2.628 | N45: 0 | O45: 2 | P45: 2
B46: 1.19205298 | C46: 2.628 | D46: 1.228794339 | E46: 2.709 | F46: 1.516940634e-05 | G46: 0.0007692272583 | H46: 0.0007843966646 | J46: 1.19205298 | K46: 2.628 | L46: 1.228794339 | M46: 2.709 | N46: 0 | O46: 5 | P46: 5
B47: 1.228794339 | C47: 2.709 | D47: 1.265535698 | E47: 2.79 | F47: 4.785126769e-05 | G47: 0.001925490027 | H47: 0.001973341295 | J47: 1.228794339 | K47: 2.709 | L47: 1.265535698 | M47: 2.79 | N47: 0 | O47: 13 | P47: 13
B48: 1.265535698 | C48: 2.79 | D48: 1.302277057 | E48: 2.871 | F48: 0.0001385024108 | G48: 0.004334202118 | H48: 0.004472704528 | J48: 1.265535698 | K48: 2.79 | L48: 1.302277057 | M48: 2.871 | N48: 1 | O48: 30 | P48: 31
B49: 1.302277057 | C49: 2.871 | D49: 1.339018416 | E49: 2.952 | F49: 0.0003678430225 | G49: 0.008773274985 | H49: 0.009141118008 | J49: 1.302277057 | K49: 2.871 | L49: 1.339018416 | M49: 2.952 | N49: 3 | O49: 61 | P49: 64
B50: 1.339018416 | C50: 2.952 | D50: 1.375759775 | E50: 3.033 | F50: 0.0008964191863 | G50: 0.01596989377 | H50: 0.01686631296 | J50: 1.339018416 | K50: 2.952 | L50: 1.375759775 | M50: 3.033 | N50: 6 | O50: 112 | P50: 118
B51: 1.375759775 | C51: 3.033 | D51: 1.412501134 | E51: 3.114 | F51: 0.002004495839 | G51: 0.02614162616 | H51: 0.028146122 | J51: 1.375759775 | K51: 3.033 | L51: 1.412501134 | M51: 3.114 | N51: 14 | O51: 183 | P51: 197
B52: 1.412501134 | C52: 3.114 | D52: 1.449242493 | E52: 3.195 | F52: 0.00411288309 | G52: 0.03848182003 | H52: 0.04259470312 | J52: 1.412501134 | K52: 3.114 | L52: 1.449242493 | M52: 3.195 | N52: 29 | O52: 269 | P52: 298
B53: 1.449242493 | C53: 3.195 | D53: 1.485983852 | E53: 3.276 | F53: 0.007743483545 | G53: 0.05094161822 | H53: 0.05868510176 | J53: 1.449242493 | K53: 3.195 | L53: 1.485983852 | M53: 3.276 | N53: 54 | O53: 357 | P53: 411
B54: 1.485983852 | C54: 3.276 | D54: 1.522725211 | E54: 3.357 | F54: 0.01337755186 | G54: 0.06064363627 | H54: 0.07402118813 | J54: 1.485983852 | K54: 3.276 | L54: 1.522725211 | M54: 3.357 | N54: 94 | O54: 425 | P54: 519
B55: 1.522725211 | C55: 3.357 | D55: 1.55946657 | E55: 3.438 | F55: 0.02120647128 | G55: 0.06492229577 | H55: 0.08612876704 | J55: 1.522725211 | K55: 3.357 | L55: 1.55946657 | M55: 3.438 | N55: 148 | O55: 454 | P55: 602
B56: 1.55946657 | C56: 3.438 | D56: 1.596207929 | E56: 3.519 | F56: 0.03084698622 | G56: 0.06250272367 | H56: 0.09334970988 | J56: 1.55946657 | K56: 3.438 | L56: 1.596207929 | M56: 3.519 | N56: 216 | O56: 438 | P56: 654
B57: 1.596207929 | C57: 3.519 | D57: 1.632949288 | E57: 3.6 | F57: 0.04117280978 | G57: 0.05411283505 | H57: 0.09528564483 | J57: 1.596207929 | K57: 3.519 | L57: 1.632949288 | M57: 3.6 | N57: 288 | O57: 379 | P57: 667
B58: 1.632949288 | C58: 3.6 | D58: 1.669690647 | E58: 3.681 | F58: 0.05042691284 | G58: 0.04213056322 | H58: 0.09255747606 | J58: 1.632949288 | K58: 3.6 | L58: 1.669690647 | M58: 3.681 | N58: 353 | O58: 295 | P58: 648
B59: 1.669690647 | C59: 3.681 | D59: 1.706432006 | E59: 3.762 | F59: 0.05667203925 | G59: 0.02949774175 | H59: 0.08616978099 | J59: 1.669690647 | K59: 3.681 | L59: 1.706432006 | M59: 3.762 | N59: 397 | O59: 206 | P59: 603
B60: 1.706432006 | C60: 3.762 | D60: 1.743173365 | E60: 3.843 | F60: 0.05844268452 | G60: 0.0185726226 | H60: 0.07701530712 | J60: 1.706432006 | K60: 3.762 | L60: 1.743173365 | M60: 3.843 | N60: 409 | O60: 130 | P60: 539
B61: 1.743173365 | C61: 3.843 | D61: 1.779914724 | E61: 3.924 | F61: 0.05530270862 | G61: 0.01051595311 | H61: 0.06581866173 | J61: 1.743173365 | K61: 3.843 | L61: 1.779914724 | M61: 3.924 | N61: 387 | O61: 74 | P61: 461
B62: 1.779914724 | C62: 3.924 | D62: 1.816656083 | E62: 4.005 | F62: 0.04801947956 | G62: 0.005354421181 | H62: 0.05337390074 | J62: 1.779914724 | K62: 3.924 | L62: 1.816656083 | M62: 4.005 | N62: 336 | O62: 37 | P62: 373
B63: 1.816656083 | C63: 4.005 | D63: 1.853397442 | E63: 4.086 | F63: 0.03825982365 | G63: 0.002451669999 | H63: 0.04071149365 | J63: 1.816656083 | K63: 4.005 | L63: 1.853397442 | M63: 4.086 | N63: 268 | O63: 17 | P63: 285
B64: 1.853397442 | C64: 4.086 | D64: 1.890138801 | E64: 4.167 | F64: 0.02797192896 | G64: 0.001009470859 | H64: 0.02898139982 | J64: 1.853397442 | K64: 4.086 | L64: 1.890138801 | M64: 4.167 | N64: 196 | O64: 7 | P64: 203
B65: 1.890138801 | C65: 4.167 | D65: 1.92688016 | E65: 4.248 | F65: 0.01876528122 | G65: 0.0003737697512 | H65: 0.01913905097 | J65: 1.890138801 | K65: 4.167 | L65: 1.92688016 | M65: 4.248 | N65: 131 | O65: 3 | P65: 134
B66: 1.92688016 | C66: 4.248 | D66: 1.963621519 | E66: 4.329 | F66: 0.01155154357 | G66: 0.0001244483178 | H66: 0.01167599188 | J66: 1.92688016 | K66: 4.248 | L66: 1.963621519 | M66: 4.329 | N66: 81 | O66: 1 | P66: 82
B67: 1.963621519 | C67: 4.329 | D67: 2.000362878 | E67: 4.41 | F67: 0.006524934074 | G67: 3.726009761e-05 | H67: 0.006562194172 | J67: 1.963621519 | K67: 4.329 | L67: 2.000362878 | M67: 4.41 | N67: 46 | O67: 0 | P67: 46
B68: 2.000362878 | C68: 4.41 | D68: 2.037104237 | E68: 4.491 | F68: 0.003381910371 | G68: 1.003146244e-05 | H68: 0.003391941833 | J68: 2.000362878 | K68: 4.41 | L68: 2.037104237 | M68: 4.491 | N68: 24 | O68: 0 | P68: 24
B69: 2.037104237 | C69: 4.491 | D69: 2.073845596 | E69: 4.572 | F69: 0.001608408745 | G69: 2.428537052e-06 | H69: 0.001610837282 | J69: 2.037104237 | K69: 4.491 | L69: 2.073845596 | M69: 4.572 | N69: 11 | O69: 0 | P69: 11
B70: 2.073845596 | C70: 4.572 | D70: 2.110586955 | E70: 4.653 | F70: 0.0007019035758 | G70: 5.286643892e-07 | H70: 0.0007024322402 | J70: 2.073845596 | K70: 4.572 | L70: 2.110586955 | M70: 4.653 | N70: 5 | O70: 0 | P70: 5
B71: 2.110586955 | C71: 4.653 | D71: 2.147328314 | E71: 4.734 | F71: 0.0002810627799 | G71: 1.034819436e-07 | H71: 0.0002811662619 | J71: 2.110586955 | K71: 4.653 | L71: 2.147328314 | M71: 4.734 | N71: 2 | O71: 0 | P71: 2
B72: 2.147328314 | C72: 4.734 | D72: 2.184069673 | E72: 4.815 | F72: 0.0001032694972 | G72: 1.821345785e-08 | H72: 0.0001032877107 | J72: 2.147328314 | K72: 4.734 | L72: 2.184069673 | M72: 4.815 | N72: 1 | O72: 0 | P72: 1
B73: 2.184069673 | C73: 4.815 | D73: 2.220811031 | E73: 4.896 | F73: 3.481620721e-05 | G73: 2.882421135e-09 | H73: 3.481908963e-05 | J73: 2.184069673 | K73: 4.815 | L73: 2.220811031 | M73: 4.896 | N73: 0 | O73: 0 | P73: 0
B74: =D73 -> 2.220811031 | C74: =E73 -> 4.896 | D74: inf. | F74: =IF($D$22="","",IF($D$24="",1-_xlfn.NORM.DIST(C74,$D$22,$E$22,TRUE),$H$10/100-_xlfn.NORM.DIST(C74,$D$22,$E$22,TRUE)*$H$10/100)) -> 1.486591752e-05 | G74: =IF($D$24="","",IF($D$22="",1-_xlfn.NORM.DIST(C74,$D$24,$E$24,TRUE),(1-$H$10/100)-_xlfn.NORM.DIST(C74,$D$24,$E$24,TRUE)*(1-$H$10/100))) -> 4.693622158e-10 | H74: =IF(F74="","",IF(G74="","",F74+G74)) -> 1.486638688e-05 | J74: 2.220811031 | K74: 4.896 | L74: =D74 -> inf. | N74: 0 | O74: 0 | P74: 0
B75: Total | F75: =IF(F74<>"",SUM(F41:F74),"") -> 0.5 | G75: =IF(G74<>"",SUM(G41:G74),"") -> 0.5 | H75: =IF(H74<>"",SUM(H41:H74),"") -> 1 | J75: Total | N75: =IF(F75<>"",ROUND(F75*$H$9*1000,0),"") -> 3500 | O75: =IF(G75<>"",ROUND(G75*$H$9*1000,0),"") -> 3500 | P75: =IF(H75<>"",ROUNDDOWN(H75*$H$9*1000,0),"") -> 7000

Sheet Min_Max_Table
H3: SR | I3: Male | J3: Female
F4: Mean (lbs) | H4: 3.6 | I4: 3.790980179 | J4: 3.409019821
F5: C.V. % | H5: 9 | I5: 7.260067781 | J5: 7.260067781
F6: Std. Dev. | H6: 0.324 | I6: 0.2752277305 | J6: 0.2474971497
C8: Weight | E8: Percentage | H8: Numbers
C9: Min (>) | D9: Max (≤) | E9: Male | F9: Female | G9: S/Run | H9: Male | I9: Female | J9: S/Run
C10: ="-inf." -> -inf. | D10: 4 | E10: =IF(AND(C10<>"",D10<>""),IF($H$4<>"",_xlfn.NORM.DIST(D10,$I$4,$I$6,TRUE)*BRLRWT!$H$10/100,IF($I$4<>"",_xlfn.NORM.DIST(D10,$I$4,$I$6,TRUE),"")),"") -> 0.3881031263 | F10: =IF(AND(C10<>"",D10<>""),IF($H$4<>"",_xlfn.NORM.DIST(D10,$J$4,$J$6,TRUE)*(1-BRLRWT!$H$10/100),IF($J$4<>"",_xlfn.NORM.DIST(D10,$J$4,$J$6,TRUE),"")),"") -> 0.4957629113 | G10: =IF(AND(C10<>"",D10<>""),IF($H$4<>"",E10+F10,""),"") -> 0.8838660376 | H10: =IF(E10<>"",ROUND(E10*BRLRWT!$H$9*1000,0),"") -> 2717 | I10: =IF(F10<>"",ROUND(F10*BRLRWT!$H$9*1000,0),"") -> 3470 | J10: =IF(G10<>"",H10+I10,"") -> 6187
C11: 0.9 | D11: 5 | E11: =IF(AND(C11<>"",D11<>""),IF($H$4<>"",_xlfn.NORM.DIST(D11,$I$4,$I$6,TRUE)*BRLRWT!$H$10/100-_xlfn.NORM.DIST(C11,$I$4,$I$6,TRUE)*BRLRWT!$H$10/100,IF($I$4<>"",_xlfn.NORM.DIST(D11,$I$4,$I$6,TRUE)-_xlfn.NORM.DIST(C11,$I$4,$I$6,TRUE),"")),"") -> 0.4999972025 | F11: =IF(AND(C11<>"",D11<>""),IF($H$4<>"",_xlfn.NORM.DIST(D11,$J$4,$J$6,TRUE)*(1-BRLRWT!$H$10/100)-_xlfn.NORM.DIST(C11,$J$4,$J$6,TRUE)*(1-BRLRWT!$H$10/100),IF($J$4<>"",_xlfn.NORM.DIST(D11,$J$4,$J$6,TRUE)-_xlfn.NORM.DIST(C11,$J$4,$J$6,TRUE),"")),"") -> 0.5 | G11: 0.9999972024 | H11: =IF(E11<>"",ROUND(E11*BRLRWT!$H$9*1000,0),"") -> 3500 | I11: =IF(F11<>"",ROUND(F11*BRLRWT!$H$9*1000,0),"") -> 3500 | J11: =IF(G11<>"",H11+I11,"") -> 7000
C12: 6 | D12: 12 | E12: =IF(AND(C12<>"",D12<>""),IF($H$4<>"",_xlfn.NORM.DIST(D12,$I$4,$I$6,TRUE)*BRLRWT!$H$10/100-_xlfn.NORM.DIST(C12,$I$4,$I$6,TRUE)*BRLRWT!$H$10/100,IF($I$4<>"",_xlfn.NORM.DIST(D12,$I$4,$I$6,TRUE)-_xlfn.NORM.DIST(C12,$I$4,$I$6,TRUE),"")),"") -> 2.775557562e-16 | F12: =IF(AND(C12<>"",D12<>""),IF($H$4<>"",_xlfn.NORM.DIST(D12,$J$4,$J$6,TRUE)*(1-BRLRWT!$H$10/100)-_xlfn.NORM.DIST(C12,$J$4,$J$6,TRUE)*(1-BRLRWT!$H$10/100),IF($J$4<>"",_xlfn.NORM.DIST(D12,$J$4,$J$6,TRUE)-_xlfn.NORM.DIST(C12,$J$4,$J$6,TRUE),"")),"") -> 0 | G12: 2.775557562e-16 | H12: =IF(E12<>"",ROUND(E12*BRLRWT!$H$9*1000,0),"") -> 0 | I12: =IF(F12<>"",ROUND(F12*BRLRWT!$H$9*1000,0),"") -> 0 | J12: =IF(G12<>"",H12+I12,"") -> 0
C13: 0.63 | D13: 0.77 | E13: =IF(AND(C13<>"",D13<>""),IF($H$4<>"",_xlfn.NORM.DIST(D13,$I$4,$I$6,TRUE)*BRLRWT!$H$10/100-_xlfn.NORM.DIST(C13,$I$4,$I$6,TRUE)*BRLRWT!$H$10/100,IF($I$4<>"",_xlfn.NORM.DIST(D13,$I$4,$I$6,TRUE)-_xlfn.NORM.DIST(C13,$I$4,$I$6,TRUE),"")),"") -> 1.2383219e-28 | F13: =IF(AND(C13<>"",D13<>""),IF($H$4<>"",_xlfn.NORM.DIST(D13,$J$4,$J$6,TRUE)*(1-BRLRWT!$H$10/100)-_xlfn.NORM.DIST(C13,$J$4,$J$6,TRUE)*(1-BRLRWT!$H$10/100),IF($J$4<>"",_xlfn.NORM.DIST(D13,$J$4,$J$6,TRUE)-_xlfn.NORM.DIST(C13,$J$4,$J$6,TRUE),"")),"") -> 3.790236346e-27 | G13: 3.914068536e-27 | H13: =IF(E13<>"",ROUND(E13*BRLRWT!$H$9*1000,0),"") -> 0 | I13: =IF(F13<>"",ROUND(F13*BRLRWT!$H$9*1000,0),"") -> 0 | J13: 0
C14: 2.5 | D14: 2.8 | E14: =IF(AND(C14<>"",D14<>""),IF($H$4<>"",_xlfn.NORM.DIST(D14,$I$4,$I$6,TRUE)*BRLRWT!$H$10/100-_xlfn.NORM.DIST(C14,$I$4,$I$6,TRUE)*BRLRWT!$H$10/100,IF($I$4<>"",_xlfn.NORM.DIST(D14,$I$4,$I$6,TRUE)-_xlfn.NORM.DIST(C14,$I$4,$I$6,TRUE),"")),"") -> 7.869518463e-05 | F14: =IF(AND(C14<>"",D14<>""),IF($H$4<>"",_xlfn.NORM.DIST(D14,$J$4,$J$6,TRUE)*(1-BRLRWT!$H$10/100)-_xlfn.NORM.DIST(C14,$J$4,$J$6,TRUE)*(1-BRLRWT!$H$10/100),IF($J$4<>"",_xlfn.NORM.DIST(D14,$J$4,$J$6,TRUE)-_xlfn.NORM.DIST(C14,$J$4,$J$6,TRUE),"")),"") -> 0.003406551424 | G14: 0.003485246609 | H14: =IF(E14<>"",ROUND(E14*BRLRWT!$H$9*1000,0),"") -> 1 | I14: =IF(F14<>"",ROUND(F14*BRLRWT!$H$9*1000,0),"") -> 24 | J14: 25
E15: =IF(AND(C15<>"",D15<>""),IF($H$4<>"",_xlfn.NORM.DIST(D15,$I$4,$I$6,TRUE)*BRLRWT!$H$10/100-_xlfn.NORM.DIST(C15,$I$4,$I$6,TRUE)*BRLRWT!$H$10/100,IF($I$4<>"",_xlfn.NORM.DIST(D15,$I$4,$I$6,TRUE)-_xlfn.NORM.DIST(C15,$I$4,$I$6,TRUE),"")),"") ->  | F15: =IF(AND(C15<>"",D15<>""),IF($H$4<>"",_xlfn.NORM.DIST(D15,$J$4,$J$6,TRUE)*(1-BRLRWT!$H$10/100)-_xlfn.NORM.DIST(C15,$J$4,$J$6,TRUE)*(1-BRLRWT!$H$10/100),IF($J$4<>"",_xlfn.NORM.DIST(D15,$J$4,$J$6,TRUE)-_xlfn.NORM.DIST(C15,$J$4,$J$6,TRUE),"")),"") ->  | H15: =IF(E15<>"",ROUND(E15*BRLRWT!$H$9*1000,0),"") ->  | I15: =IF(F15<>"",ROUND(F15*BRLRWT!$H$9*1000,0),"") -> 
E16: =IF(AND(C16<>"",D16<>""),IF($H$4<>"",_xlfn.NORM.DIST(D16,$I$4,$I$6,TRUE)*BRLRWT!$H$10/100-_xlfn.NORM.DIST(C16,$I$4,$I$6,TRUE)*BRLRWT!$H$10/100,IF($I$4<>"",_xlfn.NORM.DIST(D16,$I$4,$I$6,TRUE)-_xlfn.NORM.DIST(C16,$I$4,$I$6,TRUE),"")),"") ->  | F16: =IF(AND(C16<>"",D16<>""),IF($H$4<>"",_xlfn.NORM.DIST(D16,$J$4,$J$6,TRUE)*(1-BRLRWT!$H$10/100)-_xlfn.NORM.DIST(C16,$J$4,$J$6,TRUE)*(1-BRLRWT!$H$10/100),IF($J$4<>"",_xlfn.NORM.DIST(D16,$J$4,$J$6,TRUE)-_xlfn.NORM.DIST(C16,$J$4,$J$6,TRUE),"")),"") ->  | H16: =IF(E16<>"",ROUND(E16*BRLRWT!$H$9*1000,0),"") ->  | I16: =IF(F16<>"",ROUND(F16*BRLRWT!$H$9*1000,0),"") -> 
E17: =IF(AND(C17<>"",D17<>""),IF($H$4<>"",_xlfn.NORM.DIST(D17,$I$4,$I$6,TRUE)*BRLRWT!$H$10/100-_xlfn.NORM.DIST(C17,$I$4,$I$6,TRUE)*BRLRWT!$H$10/100,IF($I$4<>"",_xlfn.NORM.DIST(D17,$I$4,$I$6,TRUE)-_xlfn.NORM.DIST(C17,$I$4,$I$6,TRUE),"")),"") ->  | F17: =IF(AND(C17<>"",D17<>""),IF($H$4<>"",_xlfn.NORM.DIST(D17,$J$4,$J$6,TRUE)*(1-BRLRWT!$H$10/100)-_xlfn.NORM.DIST(C17,$J$4,$J$6,TRUE)*(1-BRLRWT!$H$10/100),IF($J$4<>"",_xlfn.NORM.DIST(D17,$J$4,$J$6,TRUE)-_xlfn.NORM.DIST(C17,$J$4,$J$6,TRUE),"")),"") ->  | H17: =IF(E17<>"",ROUND(E17*BRLRWT!$H$9*1000,0),"") ->  | I17: =IF(F17<>"",ROUND(F17*BRLRWT!$H$9*1000,0),"") -> 
E18: =IF(AND(C18<>"",D18<>""),IF($H$4<>"",_xlfn.NORM.DIST(D18,$I$4,$I$6,TRUE)*BRLRWT!$H$10/100-_xlfn.NORM.DIST(C18,$I$4,$I$6,TRUE)*BRLRWT!$H$10/100,IF($I$4<>"",_xlfn.NORM.DIST(D18,$I$4,$I$6,TRUE)-_xlfn.NORM.DIST(C18,$I$4,$I$6,TRUE),"")),"") ->  | F18: =IF(AND(C18<>"",D18<>""),IF($H$4<>"",_xlfn.NORM.DIST(D18,$J$4,$J$6,TRUE)*(1-BRLRWT!$H$10/100)-_xlfn.NORM.DIST(C18,$J$4,$J$6,TRUE)*(1-BRLRWT!$H$10/100),IF($J$4<>"",_xlfn.NORM.DIST(D18,$J$4,$J$6,TRUE)-_xlfn.NORM.DIST(C18,$J$4,$J$6,TRUE),"")),"") ->  | H18: =IF(E18<>"",ROUND(E18*BRLRWT!$H$9*1000,0),"") ->  | I18: =IF(F18<>"",ROUND(F18*BRLRWT!$H$9*1000,0),"") -> 
E19: =IF(AND(C19<>"",D19<>""),IF($H$4<>"",_xlfn.NORM.DIST(D19,$I$4,$I$6,TRUE)*BRLRWT!$H$10/100-_xlfn.NORM.DIST(C19,$I$4,$I$6,TRUE)*BRLRWT!$H$10/100,IF($I$4<>"",_xlfn.NORM.DIST(D19,$I$4,$I$6,TRUE)-_xlfn.NORM.DIST(C19,$I$4,$I$6,TRUE),"")),"") ->  | F19: =IF(AND(C19<>"",D19<>""),IF($H$4<>"",_xlfn.NORM.DIST(D19,$J$4,$J$6,TRUE)*(1-BRLRWT!$H$10/100)-_xlfn.NORM.DIST(C19,$J$4,$J$6,TRUE)*(1-BRLRWT!$H$10/100),IF($J$4<>"",_xlfn.NORM.DIST(D19,$J$4,$J$6,TRUE)-_xlfn.NORM.DIST(C19,$J$4,$J$6,TRUE),"")),"") ->  | H19: =IF(E19<>"",ROUND(E19*BRLRWT!$H$9*1000,0),"") ->  | I19: =IF(F19<>"",ROUND(F19*BRLRWT!$H$9*1000,0),"") -> 
E20: =IF(AND(C20<>"",D20<>""),IF($H$4<>"",_xlfn.NORM.DIST(D20,$I$4,$I$6,TRUE)*BRLRWT!$H$10/100-_xlfn.NORM.DIST(C20,$I$4,$I$6,TRUE)*BRLRWT!$H$10/100,IF($I$4<>"",_xlfn.NORM.DIST(D20,$I$4,$I$6,TRUE)-_xlfn.NORM.DIST(C20,$I$4,$I$6,TRUE),"")),"") ->  | F20: =IF(AND(C20<>"",D20<>""),IF($H$4<>"",_xlfn.NORM.DIST(D20,$J$4,$J$6,TRUE)*(1-BRLRWT!$H$10/100)-_xlfn.NORM.DIST(C20,$J$4,$J$6,TRUE)*(1-BRLRWT!$H$10/100),IF($J$4<>"",_xlfn.NORM.DIST(D20,$J$4,$J$6,TRUE)-_xlfn.NORM.DIST(C20,$J$4,$J$6,TRUE),"")),"") ->  | H20: =IF(E20<>"",ROUND(E20*BRLRWT!$H$9*1000,0),"") ->  | I20: =IF(F20<>"",ROUND(F20*BRLRWT!$H$9*1000,0),"") -> 
E21: =IF(AND(C21<>"",D21<>""),IF($H$4<>"",_xlfn.NORM.DIST(D21,$I$4,$I$6,TRUE)*BRLRWT!$H$10/100-_xlfn.NORM.DIST(C21,$I$4,$I$6,TRUE)*BRLRWT!$H$10/100,IF($I$4<>"",_xlfn.NORM.DIST(D21,$I$4,$I$6,TRUE)-_xlfn.NORM.DIST(C21,$I$4,$I$6,TRUE),"")),"") ->  | F21: =IF(AND(C21<>"",D21<>""),IF($H$4<>"",_xlfn.NORM.DIST(D21,$J$4,$J$6,TRUE)*(1-BRLRWT!$H$10/100)-_xlfn.NORM.DIST(C21,$J$4,$J$6,TRUE)*(1-BRLRWT!$H$10/100),IF($J$4<>"",_xlfn.NORM.DIST(D21,$J$4,$J$6,TRUE)-_xlfn.NORM.DIST(C21,$J$4,$J$6,TRUE),"")),"") ->  | H21: =IF(E21<>"",ROUND(E21*BRLRWT!$H$9*1000,0),"") ->  | I21: =IF(F21<>"",ROUND(F21*BRLRWT!$H$9*1000,0),"") -> 
E22: =IF(AND(C22<>"",D22<>""),IF($H$4<>"",_xlfn.NORM.DIST(D22,$I$4,$I$6,TRUE)*BRLRWT!$H$10/100-_xlfn.NORM.DIST(C22,$I$4,$I$6,TRUE)*BRLRWT!$H$10/100,IF($I$4<>"",_xlfn.NORM.DIST(D22,$I$4,$I$6,TRUE)-_xlfn.NORM.DIST(C22,$I$4,$I$6,TRUE),"")),"") ->  | F22: =IF(AND(C22<>"",D22<>""),IF($H$4<>"",_xlfn.NORM.DIST(D22,$J$4,$J$6,TRUE)*(1-BRLRWT!$H$10/100)-_xlfn.NORM.DIST(C22,$J$4,$J$6,TRUE)*(1-BRLRWT!$H$10/100),IF($J$4<>"",_xlfn.NORM.DIST(D22,$J$4,$J$6,TRUE)-_xlfn.NORM.DIST(C22,$J$4,$J$6,TRUE),"")),"") ->  | H22: =IF(E22<>"",ROUND(E22*BRLRWT!$H$9*1000,0),"") ->  | I22: =IF(F22<>"",ROUND(F22*BRLRWT!$H$9*1000,0),"") -> 
E23: =IF(AND(C23<>"",D23<>""),IF($H$4<>"",_xlfn.NORM.DIST(D23,$I$4,$I$6,TRUE)*BRLRWT!$H$10/100-_xlfn.NORM.DIST(C23,$I$4,$I$6,TRUE)*BRLRWT!$H$10/100,IF($I$4<>"",_xlfn.NORM.DIST(D23,$I$4,$I$6,TRUE)-_xlfn.NORM.DIST(C23,$I$4,$I$6,TRUE),"")),"") ->  | F23: =IF(AND(C23<>"",D23<>""),IF($H$4<>"",_xlfn.NORM.DIST(D23,$J$4,$J$6,TRUE)*(1-BRLRWT!$H$10/100)-_xlfn.NORM.DIST(C23,$J$4,$J$6,TRUE)*(1-BRLRWT!$H$10/100),IF($J$4<>"",_xlfn.NORM.DIST(D23,$J$4,$J$6,TRUE)-_xlfn.NORM.DIST(C23,$J$4,$J$6,TRUE),"")),"") ->  | H23: =IF(E23<>"",ROUND(E23*BRLRWT!$H$9*1000,0),"") ->  | I23: =IF(F23<>"",ROUND(F23*BRLRWT!$H$9*1000,0),"") -> 
E24: =IF(AND(C24<>"",D24<>""),IF($H$4<>"",_xlfn.NORM.DIST(D24,$I$4,$I$6,TRUE)*BRLRWT!$H$10/100-_xlfn.NORM.DIST(C24,$I$4,$I$6,TRUE)*BRLRWT!$H$10/100,IF($I$4<>"",_xlfn.NORM.DIST(D24,$I$4,$I$6,TRUE)-_xlfn.NORM.DIST(C24,$I$4,$I$6,TRUE),"")),"") ->  | F24: =IF(AND(C24<>"",D24<>""),IF($H$4<>"",_xlfn.NORM.DIST(D24,$J$4,$J$6,TRUE)*(1-BRLRWT!$H$10/100)-_xlfn.NORM.DIST(C24,$J$4,$J$6,TRUE)*(1-BRLRWT!$H$10/100),IF($J$4<>"",_xlfn.NORM.DIST(D24,$J$4,$J$6,TRUE)-_xlfn.NORM.DIST(C24,$J$4,$J$6,TRUE),"")),"") ->  | H24: =IF(E24<>"",ROUND(E24*BRLRWT!$H$9*1000,0),"") ->  | I24: =IF(F24<>"",ROUND(F24*BRLRWT!$H$9*1000,0),"") -> 
E25: =IF(AND(C25<>"",D25<>""),IF($H$4<>"",_xlfn.NORM.DIST(D25,$I$4,$I$6,TRUE)*BRLRWT!$H$10/100-_xlfn.NORM.DIST(C25,$I$4,$I$6,TRUE)*BRLRWT!$H$10/100,IF($I$4<>"",_xlfn.NORM.DIST(D25,$I$4,$I$6,TRUE)-_xlfn.NORM.DIST(C25,$I$4,$I$6,TRUE),"")),"") ->  | F25: =IF(AND(C25<>"",D25<>""),IF($H$4<>"",_xlfn.NORM.DIST(D25,$J$4,$J$6,TRUE)*(1-BRLRWT!$H$10/100)-_xlfn.NORM.DIST(C25,$J$4,$J$6,TRUE)*(1-BRLRWT!$H$10/100),IF($J$4<>"",_xlfn.NORM.DIST(D25,$J$4,$J$6,TRUE)-_xlfn.NORM.DIST(C25,$J$4,$J$6,TRUE),"")),"") ->  | H25: =IF(E25<>"",ROUND(E25*BRLRWT!$H$9*1000,0),"") ->  | I25: =IF(F25<>"",ROUND(F25*BRLRWT!$H$9*1000,0),"") -> 
E26: =IF(AND(C26<>"",D26<>""),IF($H$4<>"",_xlfn.NORM.DIST(D26,$I$4,$I$6,TRUE)*BRLRWT!$H$10/100-_xlfn.NORM.DIST(C26,$I$4,$I$6,TRUE)*BRLRWT!$H$10/100,IF($I$4<>"",_xlfn.NORM.DIST(D26,$I$4,$I$6,TRUE)-_xlfn.NORM.DIST(C26,$I$4,$I$6,TRUE),"")),"") ->  | F26: =IF(AND(C26<>"",D26<>""),IF($H$4<>"",_xlfn.NORM.DIST(D26,$J$4,$J$6,TRUE)*(1-BRLRWT!$H$10/100)-_xlfn.NORM.DIST(C26,$J$4,$J$6,TRUE)*(1-BRLRWT!$H$10/100),IF($J$4<>"",_xlfn.NORM.DIST(D26,$J$4,$J$6,TRUE)-_xlfn.NORM.DIST(C26,$J$4,$J$6,TRUE),"")),"") ->  | H26: =IF(E26<>"",ROUND(E26*BRLRWT!$H$9*1000,0),"") ->  | I26: =IF(F26<>"",ROUND(F26*BRLRWT!$H$9*1000,0),"") -> 
E27: =IF(AND(C27<>"",D27<>""),IF($H$4<>"",_xlfn.NORM.DIST(D27,$I$4,$I$6,TRUE)*BRLRWT!$H$10/100-_xlfn.NORM.DIST(C27,$I$4,$I$6,TRUE)*BRLRWT!$H$10/100,IF($I$4<>"",_xlfn.NORM.DIST(D27,$I$4,$I$6,TRUE)-_xlfn.NORM.DIST(C27,$I$4,$I$6,TRUE),"")),"") ->  | F27: =IF(AND(C27<>"",D27<>""),IF($H$4<>"",_xlfn.NORM.DIST(D27,$J$4,$J$6,TRUE)*(1-BRLRWT!$H$10/100)-_xlfn.NORM.DIST(C27,$J$4,$J$6,TRUE)*(1-BRLRWT!$H$10/100),IF($J$4<>"",_xlfn.NORM.DIST(D27,$J$4,$J$6,TRUE)-_xlfn.NORM.DIST(C27,$J$4,$J$6,TRUE),"")),"") ->  | H27: =IF(E27<>"",ROUND(E27*BRLRWT!$H$9*1000,0),"") ->  | I27: =IF(F27<>"",ROUND(F27*BRLRWT!$H$9*1000,0),"") -> 
E28: =IF(AND(C28<>"",D28<>""),IF($H$4<>"",_xlfn.NORM.DIST(D28,$I$4,$I$6,TRUE)*BRLRWT!$H$10/100-_xlfn.NORM.DIST(C28,$I$4,$I$6,TRUE)*BRLRWT!$H$10/100,IF($I$4<>"",_xlfn.NORM.DIST(D28,$I$4,$I$6,TRUE)-_xlfn.NORM.DIST(C28,$I$4,$I$6,TRUE),"")),"") ->  | F28: =IF(AND(C28<>"",D28<>""),IF($H$4<>"",_xlfn.NORM.DIST(D28,$J$4,$J$6,TRUE)*(1-BRLRWT!$H$10/100)-_xlfn.NORM.DIST(C28,$J$4,$J$6,TRUE)*(1-BRLRWT!$H$10/100),IF($J$4<>"",_xlfn.NORM.DIST(D28,$J$4,$J$6,TRUE)-_xlfn.NORM.DIST(C28,$J$4,$J$6,TRUE),"")),"") ->  | H28: =IF(E28<>"",ROUND(E28*BRLRWT!$H$9*1000,0),"") ->  | I28: =IF(F28<>"",ROUND(F28*BRLRWT!$H$9*1000,0),"") -> 
E29: =IF(AND(C29<>"",D29<>""),IF($H$4<>"",_xlfn.NORM.DIST(D29,$I$4,$I$6,TRUE)*BRLRWT!$H$10/100-_xlfn.NORM.DIST(C29,$I$4,$I$6,TRUE)*BRLRWT!$H$10/100,IF($I$4<>"",_xlfn.NORM.DIST(D29,$I$4,$I$6,TRUE)-_xlfn.NORM.DIST(C29,$I$4,$I$6,TRUE),"")),"") ->  | F29: =IF(AND(C29<>"",D29<>""),IF($H$4<>"",_xlfn.NORM.DIST(D29,$J$4,$J$6,TRUE)*(1-BRLRWT!$H$10/100)-_xlfn.NORM.DIST(C29,$J$4,$J$6,TRUE)*(1-BRLRWT!$H$10/100),IF($J$4<>"",_xlfn.NORM.DIST(D29,$J$4,$J$6,TRUE)-_xlfn.NORM.DIST(C29,$J$4,$J$6,TRUE),"")),"") ->  | H29: =IF(E29<>"",ROUND(E29*BRLRWT!$H$9*1000,0),"") ->  | I29: =IF(F29<>"",ROUND(F29*BRLRWT!$H$9*1000,0),"") -> 
E30: =IF(AND(C30<>"",D30<>""),IF($H$4<>"",_xlfn.NORM.DIST(D30,$I$4,$I$6,TRUE)*BRLRWT!$H$10/100-_xlfn.NORM.DIST(C30,$I$4,$I$6,TRUE)*BRLRWT!$H$10/100,IF($I$4<>"",_xlfn.NORM.DIST(D30,$I$4,$I$6,TRUE)-_xlfn.NORM.DIST(C30,$I$4,$I$6,TRUE),"")),"") ->  | F30: =IF(AND(C30<>"",D30<>""),IF($H$4<>"",_xlfn.NORM.DIST(D30,$J$4,$J$6,TRUE)*(1-BRLRWT!$H$10/100)-_xlfn.NORM.DIST(C30,$J$4,$J$6,TRUE)*(1-BRLRWT!$H$10/100),IF($J$4<>"",_xlfn.NORM.DIST(D30,$J$4,$J$6,TRUE)-_xlfn.NORM.DIST(C30,$J$4,$J$6,TRUE),"")),"") ->  | H30: =IF(E30<>"",ROUND(E30*BRLRWT!$H$9*1000,0),"") ->  | I30: =IF(F30<>"",ROUND(F30*BRLRWT!$H$9*1000,0),"") -> 
E31: =IF(AND(C31<>"",D31<>""),IF($H$4<>"",_xlfn.NORM.DIST(D31,$I$4,$I$6,TRUE)*BRLRWT!$H$10/100-_xlfn.NORM.DIST(C31,$I$4,$I$6,TRUE)*BRLRWT!$H$10/100,IF($I$4<>"",_xlfn.NORM.DIST(D31,$I$4,$I$6,TRUE)-_xlfn.NORM.DIST(C31,$I$4,$I$6,TRUE),"")),"") ->  | F31: =IF(AND(C31<>"",D31<>""),IF($H$4<>"",_xlfn.NORM.DIST(D31,$J$4,$J$6,TRUE)*(1-BRLRWT!$H$10/100)-_xlfn.NORM.DIST(C31,$J$4,$J$6,TRUE)*(1-BRLRWT!$H$10/100),IF($J$4<>"",_xlfn.NORM.DIST(D31,$J$4,$J$6,TRUE)-_xlfn.NORM.DIST(C31,$J$4,$J$6,TRUE),"")),"") ->  | H31: =IF(E31<>"",ROUND(E31*BRLRWT!$H$9*1000,0),"") ->  | I31: =IF(F31<>"",ROUND(F31*BRLRWT!$H$9*1000,0),"") -> 
E32: =IF(AND(C32<>"",D32<>""),IF($H$4<>"",_xlfn.NORM.DIST(D32,$I$4,$I$6,TRUE)*BRLRWT!$H$10/100-_xlfn.NORM.DIST(C32,$I$4,$I$6,TRUE)*BRLRWT!$H$10/100,IF($I$4<>"",_xlfn.NORM.DIST(D32,$I$4,$I$6,TRUE)-_xlfn.NORM.DIST(C32,$I$4,$I$6,TRUE),"")),"") ->  | F32: =IF(AND(C32<>"",D32<>""),IF($H$4<>"",_xlfn.NORM.DIST(D32,$J$4,$J$6,TRUE)*(1-BRLRWT!$H$10/100)-_xlfn.NORM.DIST(C32,$J$4,$J$6,TRUE)*(1-BRLRWT!$H$10/100),IF($J$4<>"",_xlfn.NORM.DIST(D32,$J$4,$J$6,TRUE)-_xlfn.NORM.DIST(C32,$J$4,$J$6,TRUE),"")),"") ->  | H32: =IF(E32<>"",ROUND(E32*BRLRWT!$H$9*1000,0),"") ->  | I32: =IF(F32<>"",ROUND(F32*BRLRWT!$H$9*1000,0),"") -> 
E33: =IF(AND(C33<>"",D33<>""),IF($H$4<>"",_xlfn.NORM.DIST(D33,$I$4,$I$6,TRUE)*BRLRWT!$H$10/100-_xlfn.NORM.DIST(C33,$I$4,$I$6,TRUE)*BRLRWT!$H$10/100,IF($I$4<>"",_xlfn.NORM.DIST(D33,$I$4,$I$6,TRUE)-_xlfn.NORM.DIST(C33,$I$4,$I$6,TRUE),"")),"") ->  | F33: =IF(AND(C33<>"",D33<>""),IF($H$4<>"",_xlfn.NORM.DIST(D33,$J$4,$J$6,TRUE)*(1-BRLRWT!$H$10/100)-_xlfn.NORM.DIST(C33,$J$4,$J$6,TRUE)*(1-BRLRWT!$H$10/100),IF($J$4<>"",_xlfn.NORM.DIST(D33,$J$4,$J$6,TRUE)-_xlfn.NORM.DIST(C33,$J$4,$J$6,TRUE),"")),"") ->  | H33: =IF(E33<>"",ROUND(E33*BRLRWT!$H$9*1000,0),"") ->  | I33: =IF(F33<>"",ROUND(F33*BRLRWT!$H$9*1000,0),"") -> 
E34: =IF(AND(C34<>"",D34<>""),IF($H$4<>"",_xlfn.NORM.DIST(D34,$I$4,$I$6,TRUE)*BRLRWT!$H$10/100-_xlfn.NORM.DIST(C34,$I$4,$I$6,TRUE)*BRLRWT!$H$10/100,IF($I$4<>"",_xlfn.NORM.DIST(D34,$I$4,$I$6,TRUE)-_xlfn.NORM.DIST(C34,$I$4,$I$6,TRUE),"")),"") ->  | F34: =IF(AND(C34<>"",D34<>""),IF($H$4<>"",_xlfn.NORM.DIST(D34,$J$4,$J$6,TRUE)*(1-BRLRWT!$H$10/100)-_xlfn.NORM.DIST(C34,$J$4,$J$6,TRUE)*(1-BRLRWT!$H$10/100),IF($J$4<>"",_xlfn.NORM.DIST(D34,$J$4,$J$6,TRUE)-_xlfn.NORM.DIST(C34,$J$4,$J$6,TRUE),"")),"") ->  | H34: =IF(E34<>"",ROUND(E34*BRLRWT!$H$9*1000,0),"") ->  | I34: =IF(F34<>"",ROUND(F34*BRLRWT!$H$9*1000,0),"") -> 
E35: =IF(AND(C35<>"",D35<>""),IF($H$4<>"",_xlfn.NORM.DIST(D35,$I$4,$I$6,TRUE)*BRLRWT!$H$10/100-_xlfn.NORM.DIST(C35,$I$4,$I$6,TRUE)*BRLRWT!$H$10/100,IF($I$4<>"",_xlfn.NORM.DIST(D35,$I$4,$I$6,TRUE)-_xlfn.NORM.DIST(C35,$I$4,$I$6,TRUE),"")),"") ->  | F35: =IF(AND(C35<>"",D35<>""),IF($H$4<>"",_xlfn.NORM.DIST(D35,$J$4,$J$6,TRUE)*(1-BRLRWT!$H$10/100)-_xlfn.NORM.DIST(C35,$J$4,$J$6,TRUE)*(1-BRLRWT!$H$10/100),IF($J$4<>"",_xlfn.NORM.DIST(D35,$J$4,$J$6,TRUE)-_xlfn.NORM.DIST(C35,$J$4,$J$6,TRUE),"")),"") ->  | H35: =IF(E35<>"",ROUND(E35*BRLRWT!$H$9*1000,0),"") ->  | I35: =IF(F35<>"",ROUND(F35*BRLRWT!$H$9*1000,0),"") -> 
E36: =IF(AND(C36<>"",D36<>""),IF($H$4<>"",_xlfn.NORM.DIST(D36,$I$4,$I$6,TRUE)*BRLRWT!$H$10/100-_xlfn.NORM.DIST(C36,$I$4,$I$6,TRUE)*BRLRWT!$H$10/100,IF($I$4<>"",_xlfn.NORM.DIST(D36,$I$4,$I$6,TRUE)-_xlfn.NORM.DIST(C36,$I$4,$I$6,TRUE),"")),"") ->  | F36: =IF(AND(C36<>"",D36<>""),IF($H$4<>"",_xlfn.NORM.DIST(D36,$J$4,$J$6,TRUE)*(1-BRLRWT!$H$10/100)-_xlfn.NORM.DIST(C36,$J$4,$J$6,TRUE)*(1-BRLRWT!$H$10/100),IF($J$4<>"",_xlfn.NORM.DIST(D36,$J$4,$J$6,TRUE)-_xlfn.NORM.DIST(C36,$J$4,$J$6,TRUE),"")),"") ->  | H36: =IF(E36<>"",ROUND(E36*BRLRWT!$H$9*1000,0),"") ->  | I36: =IF(F36<>"",ROUND(F36*BRLRWT!$H$9*1000,0),"") -> 
E37: =IF(AND(C37<>"",D37<>""),IF($H$4<>"",_xlfn.NORM.DIST(D37,$I$4,$I$6,TRUE)*BRLRWT!$H$10/100-_xlfn.NORM.DIST(C37,$I$4,$I$6,TRUE)*BRLRWT!$H$10/100,IF($I$4<>"",_xlfn.NORM.DIST(D37,$I$4,$I$6,TRUE)-_xlfn.NORM.DIST(C37,$I$4,$I$6,TRUE),"")),"") ->  | F37: =IF(AND(C37<>"",D37<>""),IF($H$4<>"",_xlfn.NORM.DIST(D37,$J$4,$J$6,TRUE)*(1-BRLRWT!$H$10/100)-_xlfn.NORM.DIST(C37,$J$4,$J$6,TRUE)*(1-BRLRWT!$H$10/100),IF($J$4<>"",_xlfn.NORM.DIST(D37,$J$4,$J$6,TRUE)-_xlfn.NORM.DIST(C37,$J$4,$J$6,TRUE),"")),"") ->  | H37: =IF(E37<>"",ROUND(E37*BRLRWT!$H$9*1000,0),"") ->  | I37: =IF(F37<>"",ROUND(F37*BRLRWT!$H$9*1000,0),"") -> 
E38: =IF(AND(C38<>"",D38<>""),IF($H$4<>"",_xlfn.NORM.DIST(D38,$I$4,$I$6,TRUE)*BRLRWT!$H$10/100-_xlfn.NORM.DIST(C38,$I$4,$I$6,TRUE)*BRLRWT!$H$10/100,IF($I$4<>"",_xlfn.NORM.DIST(D38,$I$4,$I$6,TRUE)-_xlfn.NORM.DIST(C38,$I$4,$I$6,TRUE),"")),"") ->  | F38: =IF(AND(C38<>"",D38<>""),IF($H$4<>"",_xlfn.NORM.DIST(D38,$J$4,$J$6,TRUE)*(1-BRLRWT!$H$10/100)-_xlfn.NORM.DIST(C38,$J$4,$J$6,TRUE)*(1-BRLRWT!$H$10/100),IF($J$4<>"",_xlfn.NORM.DIST(D38,$J$4,$J$6,TRUE)-_xlfn.NORM.DIST(C38,$J$4,$J$6,TRUE),"")),"") ->  | H38: =IF(E38<>"",ROUND(E38*BRLRWT!$H$9*1000,0),"") ->  | I38: =IF(F38<>"",ROUND(F38*BRLRWT!$H$9*1000,0),"") -> 
E39: =IF(AND(C39<>"",D39<>""),IF($H$4<>"",_xlfn.NORM.DIST(D39,$I$4,$I$6,TRUE)*BRLRWT!$H$10/100-_xlfn.NORM.DIST(C39,$I$4,$I$6,TRUE)*BRLRWT!$H$10/100,IF($I$4<>"",_xlfn.NORM.DIST(D39,$I$4,$I$6,TRUE)-_xlfn.NORM.DIST(C39,$I$4,$I$6,TRUE),"")),"") ->  | F39: =IF(AND(C39<>"",D39<>""),IF($H$4<>"",_xlfn.NORM.DIST(D39,$J$4,$J$6,TRUE)*(1-BRLRWT!$H$10/100)-_xlfn.NORM.DIST(C39,$J$4,$J$6,TRUE)*(1-BRLRWT!$H$10/100),IF($J$4<>"",_xlfn.NORM.DIST(D39,$J$4,$J$6,TRUE)-_xlfn.NORM.DIST(C39,$J$4,$J$6,TRUE),"")),"") ->  | H39: =IF(E39<>"",ROUND(E39*BRLRWT!$H$9*1000,0),"") ->  | I39: =IF(F39<>"",ROUND(F39*BRLRWT!$H$9*1000,0),"") -> 
E40: =IF(AND(C40<>"",D40<>""),IF($H$4<>"",_xlfn.NORM.DIST(D40,$I$4,$I$6,TRUE)*BRLRWT!$H$10/100-_xlfn.NORM.DIST(C40,$I$4,$I$6,TRUE)*BRLRWT!$H$10/100,IF($I$4<>"",_xlfn.NORM.DIST(D40,$I$4,$I$6,TRUE)-_xlfn.NORM.DIST(C40,$I$4,$I$6,TRUE),"")),"") ->  | F40: =IF(AND(C40<>"",D40<>""),IF($H$4<>"",_xlfn.NORM.DIST(D40,$J$4,$J$6,TRUE)*(1-BRLRWT!$H$10/100)-_xlfn.NORM.DIST(C40,$J$4,$J$6,TRUE)*(1-BRLRWT!$H$10/100),IF($J$4<>"",_xlfn.NORM.DIST(D40,$J$4,$J$6,TRUE)-_xlfn.NORM.DIST(C40,$J$4,$J$6,TRUE),"")),"") ->  | H40: =IF(E40<>"",ROUND(E40*BRLRWT!$H$9*1000,0),"") ->  | I40: =IF(F40<>"",ROUND(F40*BRLRWT!$H$9*1000,0),"") -> 
E41: =IF(AND(C41<>"",D41<>""),IF($H$4<>"",_xlfn.NORM.DIST(D41,$I$4,$I$6,TRUE)*BRLRWT!$H$10/100-_xlfn.NORM.DIST(C41,$I$4,$I$6,TRUE)*BRLRWT!$H$10/100,IF($I$4<>"",_xlfn.NORM.DIST(D41,$I$4,$I$6,TRUE)-_xlfn.NORM.DIST(C41,$I$4,$I$6,TRUE),"")),"") ->  | F41: =IF(AND(C41<>"",D41<>""),IF($H$4<>"",_xlfn.NORM.DIST(D41,$J$4,$J$6,TRUE)*(1-BRLRWT!$H$10/100)-_xlfn.NORM.DIST(C41,$J$4,$J$6,TRUE)*(1-BRLRWT!$H$10/100),IF($J$4<>"",_xlfn.NORM.DIST(D41,$J$4,$J$6,TRUE)-_xlfn.NORM.DIST(C41,$J$4,$J$6,TRUE),"")),"") ->  | H41: =IF(E41<>"",ROUND(E41*BRLRWT!$H$9*1000,0),"") ->  | I41: =IF(F41<>"",ROUND(F41*BRLRWT!$H$9*1000,0),"") -> 
E42: =IF(AND(C42<>"",D42<>""),IF($H$4<>"",_xlfn.NORM.DIST(D42,$I$4,$I$6,TRUE)*BRLRWT!$H$10/100-_xlfn.NORM.DIST(C42,$I$4,$I$6,TRUE)*BRLRWT!$H$10/100,IF($I$4<>"",_xlfn.NORM.DIST(D42,$I$4,$I$6,TRUE)-_xlfn.NORM.DIST(C42,$I$4,$I$6,TRUE),"")),"") ->  | F42: =IF(AND(C42<>"",D42<>""),IF($H$4<>"",_xlfn.NORM.DIST(D42,$J$4,$J$6,TRUE)*(1-BRLRWT!$H$10/100)-_xlfn.NORM.DIST(C42,$J$4,$J$6,TRUE)*(1-BRLRWT!$H$10/100),IF($J$4<>"",_xlfn.NORM.DIST(D42,$J$4,$J$6,TRUE)-_xlfn.NORM.DIST(C42,$J$4,$J$6,TRUE),"")),"") ->  | H42: =IF(E42<>"",ROUND(E42*BRLRWT!$H$9*1000,0),"") ->  | I42: =IF(F42<>"",ROUND(F42*BRLRWT!$H$9*1000,0),"") -> 
E43: =IF(AND(C43<>"",D43<>""),IF($H$4<>"",_xlfn.NORM.DIST(D43,$I$4,$I$6,TRUE)*BRLRWT!$H$10/100-_xlfn.NORM.DIST(C43,$I$4,$I$6,TRUE)*BRLRWT!$H$10/100,IF($I$4<>"",_xlfn.NORM.DIST(D43,$I$4,$I$6,TRUE)-_xlfn.NORM.DIST(C43,$I$4,$I$6,TRUE),"")),"") ->  | F43: =IF(AND(C43<>"",D43<>""),IF($H$4<>"",_xlfn.NORM.DIST(D43,$J$4,$J$6,TRUE)*(1-BRLRWT!$H$10/100)-_xlfn.NORM.DIST(C43,$J$4,$J$6,TRUE)*(1-BRLRWT!$H$10/100),IF($J$4<>"",_xlfn.NORM.DIST(D43,$J$4,$J$6,TRUE)-_xlfn.NORM.DIST(C43,$J$4,$J$6,TRUE),"")),"") ->  | H43: =IF(E43<>"",ROUND(E43*BRLRWT!$H$9*1000,0),"") ->  | I43: =IF(F43<>"",ROUND(F43*BRLRWT!$H$9*1000,0),"") -> 
E44: =IF(AND(C44<>"",D44<>""),IF($H$4<>"",_xlfn.NORM.DIST(D44,$I$4,$I$6,TRUE)*BRLRWT!$H$10/100-_xlfn.NORM.DIST(C44,$I$4,$I$6,TRUE)*BRLRWT!$H$10/100,IF($I$4<>"",_xlfn.NORM.DIST(D44,$I$4,$I$6,TRUE)-_xlfn.NORM.DIST(C44,$I$4,$I$6,TRUE),"")),"") ->  | F44: =IF(AND(C44<>"",D44<>""),IF($H$4<>"",_xlfn.NORM.DIST(D44,$J$4,$J$6,TRUE)*(1-BRLRWT!$H$10/100)-_xlfn.NORM.DIST(C44,$J$4,$J$6,TRUE)*(1-BRLRWT!$H$10/100),IF($J$4<>"",_xlfn.NORM.DIST(D44,$J$4,$J$6,TRUE)-_xlfn.NORM.DIST(C44,$J$4,$J$6,TRUE),"")),"") ->  | H44: =IF(E44<>"",ROUND(E44*BRLRWT!$H$9*1000,0),"") ->  | I44: =IF(F44<>"",ROUND(F44*BRLRWT!$H$9*1000,0),"") -> 
E45: =IF(AND(C45<>"",D45<>""),IF($H$4<>"",_xlfn.NORM.DIST(D45,$I$4,$I$6,TRUE)*BRLRWT!$H$10/100-_xlfn.NORM.DIST(C45,$I$4,$I$6,TRUE)*BRLRWT!$H$10/100,IF($I$4<>"",_xlfn.NORM.DIST(D45,$I$4,$I$6,TRUE)-_xlfn.NORM.DIST(C45,$I$4,$I$6,TRUE),"")),"") ->  | F45: =IF(AND(C45<>"",D45<>""),IF($H$4<>"",_xlfn.NORM.DIST(D45,$J$4,$J$6,TRUE)*(1-BRLRWT!$H$10/100)-_xlfn.NORM.DIST(C45,$J$4,$J$6,TRUE)*(1-BRLRWT!$H$10/100),IF($J$4<>"",_xlfn.NORM.DIST(D45,$J$4,$J$6,TRUE)-_xlfn.NORM.DIST(C45,$J$4,$J$6,TRUE),"")),"") ->  | H45: =IF(E45<>"",ROUND(E45*BRLRWT!$H$9*1000,0),"") ->  | I45: =IF(F45<>"",ROUND(F45*BRLRWT!$H$9*1000,0),"") -> 
E46: =IF(AND(C46<>"",D46<>""),IF($H$4<>"",_xlfn.NORM.DIST(D46,$I$4,$I$6,TRUE)*BRLRWT!$H$10/100-_xlfn.NORM.DIST(C46,$I$4,$I$6,TRUE)*BRLRWT!$H$10/100,IF($I$4<>"",_xlfn.NORM.DIST(D46,$I$4,$I$6,TRUE)-_xlfn.NORM.DIST(C46,$I$4,$I$6,TRUE),"")),"") ->  | F46: =IF(AND(C46<>"",D46<>""),IF($H$4<>"",_xlfn.NORM.DIST(D46,$J$4,$J$6,TRUE)*(1-BRLRWT!$H$10/100)-_xlfn.NORM.DIST(C46,$J$4,$J$6,TRUE)*(1-BRLRWT!$H$10/100),IF($J$4<>"",_xlfn.NORM.DIST(D46,$J$4,$J$6,TRUE)-_xlfn.NORM.DIST(C46,$J$4,$J$6,TRUE),"")),"") ->  | H46: =IF(E46<>"",ROUND(E46*BRLRWT!$H$9*1000,0),"") ->  | I46: =IF(F46<>"",ROUND(F46*BRLRWT!$H$9*1000,0),"") -> 
E47: =IF(AND(C47<>"",D47<>""),IF($H$4<>"",_xlfn.NORM.DIST(D47,$I$4,$I$6,TRUE)*BRLRWT!$H$10/100-_xlfn.NORM.DIST(C47,$I$4,$I$6,TRUE)*BRLRWT!$H$10/100,IF($I$4<>"",_xlfn.NORM.DIST(D47,$I$4,$I$6,TRUE)-_xlfn.NORM.DIST(C47,$I$4,$I$6,TRUE),"")),"") ->  | F47: =IF(AND(C47<>"",D47<>""),IF($H$4<>"",_xlfn.NORM.DIST(D47,$J$4,$J$6,TRUE)*(1-BRLRWT!$H$10/100)-_xlfn.NORM.DIST(C47,$J$4,$J$6,TRUE)*(1-BRLRWT!$H$10/100),IF($J$4<>"",_xlfn.NORM.DIST(D47,$J$4,$J$6,TRUE)-_xlfn.NORM.DIST(C47,$J$4,$J$6,TRUE),"")),"") ->  | H47: =IF(E47<>"",ROUND(E47*BRLRWT!$H$9*1000,0),"") ->  | I47: =IF(F47<>"",ROUND(F47*BRLRWT!$H$9*1000,0),"") -> 
E48: =IF(AND(C48<>"",D48<>""),IF($H$4<>"",_xlfn.NORM.DIST(D48,$I$4,$I$6,TRUE)*BRLRWT!$H$10/100-_xlfn.NORM.DIST(C48,$I$4,$I$6,TRUE)*BRLRWT!$H$10/100,IF($I$4<>"",_xlfn.NORM.DIST(D48,$I$4,$I$6,TRUE)-_xlfn.NORM.DIST(C48,$I$4,$I$6,TRUE),"")),"") ->  | F48: =IF(AND(C48<>"",D48<>""),IF($H$4<>"",_xlfn.NORM.DIST(D48,$J$4,$J$6,TRUE)*(1-BRLRWT!$H$10/100)-_xlfn.NORM.DIST(C48,$J$4,$J$6,TRUE)*(1-BRLRWT!$H$10/100),IF($J$4<>"",_xlfn.NORM.DIST(D48,$J$4,$J$6,TRUE)-_xlfn.NORM.DIST(C48,$J$4,$J$6,TRUE),"")),"") ->  | H48: =IF(E48<>"",ROUND(E48*BRLRWT!$H$9*1000,0),"") ->  | I48: =IF(F48<>"",ROUND(F48*BRLRWT!$H$9*1000,0),"") -> 
E49: =IF(AND(C49<>"",D49<>""),IF($H$4<>"",_xlfn.NORM.DIST(D49,$I$4,$I$6,TRUE)*BRLRWT!$H$10/100-_xlfn.NORM.DIST(C49,$I$4,$I$6,TRUE)*BRLRWT!$H$10/100,IF($I$4<>"",_xlfn.NORM.DIST(D49,$I$4,$I$6,TRUE)-_xlfn.NORM.DIST(C49,$I$4,$I$6,TRUE),"")),"") ->  | F49: =IF(AND(C49<>"",D49<>""),IF($H$4<>"",_xlfn.NORM.DIST(D49,$J$4,$J$6,TRUE)*(1-BRLRWT!$H$10/100)-_xlfn.NORM.DIST(C49,$J$4,$J$6,TRUE)*(1-BRLRWT!$H$10/100),IF($J$4<>"",_xlfn.NORM.DIST(D49,$J$4,$J$6,TRUE)-_xlfn.NORM.DIST(C49,$J$4,$J$6,TRUE),"")),"") ->  | H49: =IF(E49<>"",ROUND(E49*BRLRWT!$H$9*1000,0),"") ->  | I49: =IF(F49<>"",ROUND(F49*BRLRWT!$H$9*1000,0),"") -> 
E50: =IF(AND(C50<>"",D50<>""),IF($H$4<>"",_xlfn.NORM.DIST(D50,$I$4,$I$6,TRUE)*BRLRWT!$H$10/100-_xlfn.NORM.DIST(C50,$I$4,$I$6,TRUE)*BRLRWT!$H$10/100,IF($I$4<>"",_xlfn.NORM.DIST(D50,$I$4,$I$6,TRUE)-_xlfn.NORM.DIST(C50,$I$4,$I$6,TRUE),"")),"") ->  | F50: =IF(AND(C50<>"",D50<>""),IF($H$4<>"",_xlfn.NORM.DIST(D50,$J$4,$J$6,TRUE)*(1-BRLRWT!$H$10/100)-_xlfn.NORM.DIST(C50,$J$4,$J$6,TRUE)*(1-BRLRWT!$H$10/100),IF($J$4<>"",_xlfn.NORM.DIST(D50,$J$4,$J$6,TRUE)-_xlfn.NORM.DIST(C50,$J$4,$J$6,TRUE),"")),"") ->  | H50: =IF(E50<>"",ROUND(E50*BRLRWT!$H$9*1000,0),"") ->  | I50: =IF(F50<>"",ROUND(F50*BRLRWT!$H$9*1000,0),"") -> 

Sheet EvisWT
A8: 3-1. Results - Eviscerated Weight Distribution | K8: Breed
B10: Weight (lbs) | D10: Percentage | G10: Numbers
B11: Min. (>) | C11: Max. (≤) | D11: Male | E11: Female | F11: S/Run | G11: Male | H11: Female | I11: S/Run
B12: ="-inf." -> -inf. | C12: =$M$13 -> 1.51880008 | D12: =IF($L$30<>"",IF(INPUT!$H$10=1,_xlfn.NORM.DIST(C12,$L$30,$M$30,TRUE)*BRLRWT!$H$10/100,_xlfn.NORM.DIST(C12,$L$30,$M$30,TRUE)),"") -> 1.640886614e-08 | E12: =IF($L$31<>"",IF(INPUT!$H$10=1,_xlfn.NORM.DIST(C12,$L$31,$M$31,TRUE)*(1-BRLRWT!$H$10/100),_xlfn.NORM.DIST(C12,$L$31,$M$31,TRUE)),"") -> 2.127227965e-06 | F12: =IF(D12<>"",IF(E12<>"",D12+E12,""),"") -> 2.143636831e-06 | G12: =IF(D12<>"",D12*BRLRWT!$H$9*1000,"") -> 0.000114862063 | H12: =IF(E12<>"",E12*BRLRWT!$H$9*1000,"") -> 0.01489059575 | I12: =IF(G12<>"",IF(H12<>"",G12+H12,""),"") -> 0.01500545782
B13: =C12 -> 1.51880008 | C13: =C12+$M$14 -> 1.582655144 | D13: =IF($L$30<>"",IF(INPUT!$H$10=1,(_xlfn.NORM.DIST(C13,$L$30,$M$30,TRUE)-_xlfn.NORM.DIST(B13,$L$30,$M$30,TRUE))*BRLRWT!$H$10/100,(_xlfn.NORM.DIST(C13,$L$30,$M$30,TRUE)-_xlfn.NORM.DIST(B13,$L$30,$M$30,TRUE))),"") -> 6.633417457e-08 | E13: =IF($L$31<>"",IF(INPUT!$H$10=1,(_xlfn.NORM.DIST(C13,$L$31,$M$31,TRUE)-_xlfn.NORM.DIST(B13,$L$31,$M$31,TRUE))*(1-BRLRWT!$H$10/100),(_xlfn.NORM.DIST(C13,$L$31,$M$31,TRUE)-_xlfn.NORM.DIST(B13,$L$31,$M$31,TRUE))),"") -> 7.137667611e-06 | F13: =IF(D13<>"",IF(E13<>"",D13+E13,""),"") -> 7.204001785e-06 | G13: =IF(D13<>"",D13*BRLRWT!$H$9*1000,"") -> 0.000464339222 | H13: =IF(E13<>"",E13*BRLRWT!$H$9*1000,"") -> 0.04996367328 | I13: =IF(G13<>"",IF(H13<>"",G13+H13,""),"") -> 0.0504280125 | L13: min | M13: 1.51880008
B14: =C13 -> 1.582655144 | C14: =C13+$M$14 -> 1.646510209 | D14: =IF($L$30<>"",IF(INPUT!$H$10=1,(_xlfn.NORM.DIST(C14,$L$30,$M$30,TRUE)-_xlfn.NORM.DIST(B14,$L$30,$M$30,TRUE))*BRLRWT!$H$10/100,(_xlfn.NORM.DIST(C14,$L$30,$M$30,TRUE)-_xlfn.NORM.DIST(B14,$L$30,$M$30,TRUE))),"") -> 3.001522244e-07 | E14: =IF($L$31<>"",IF(INPUT!$H$10=1,(_xlfn.NORM.DIST(C14,$L$31,$M$31,TRUE)-_xlfn.NORM.DIST(B14,$L$31,$M$31,TRUE))*(1-BRLRWT!$H$10/100),(_xlfn.NORM.DIST(C14,$L$31,$M$31,TRUE)-_xlfn.NORM.DIST(B14,$L$31,$M$31,TRUE))),"") -> 2.717127112e-05 | F14: =IF(D14<>"",IF(E14<>"",D14+E14,""),"") -> 2.747142335e-05 | G14: =IF(D14<>"",D14*BRLRWT!$H$9*1000,"") -> 0.002101065571 | H14: =IF(E14<>"",E14*BRLRWT!$H$9*1000,"") -> 0.1901988979 | I14: =IF(G14<>"",IF(H14<>"",G14+H14,""),"") -> 0.1922999634 | L14: step size | M14: 0.06385506438
B15: =C14 -> 1.646510209 | C15: =C14+$M$14 -> 1.710365273 | D15: =IF($L$30<>"",IF(INPUT!$H$10=1,(_xlfn.NORM.DIST(C15,$L$30,$M$30,TRUE)-_xlfn.NORM.DIST(B15,$L$30,$M$30,TRUE))*BRLRWT!$H$10/100,(_xlfn.NORM.DIST(C15,$L$30,$M$30,TRUE)-_xlfn.NORM.DIST(B15,$L$30,$M$30,TRUE))),"") -> 1.243594501e-06 | E15: =IF($L$31<>"",IF(INPUT!$H$10=1,(_xlfn.NORM.DIST(C15,$L$31,$M$31,TRUE)-_xlfn.NORM.DIST(B15,$L$31,$M$31,TRUE))*(1-BRLRWT!$H$10/100),(_xlfn.NORM.DIST(C15,$L$31,$M$31,TRUE)-_xlfn.NORM.DIST(B15,$L$31,$M$31,TRUE))),"") -> 9.303356438e-05 | F15: 9.427715888e-05 | G15: =IF(D15<>"",D15*BRLRWT!$H$9*1000,"") -> 0.008705161508 | H15: =IF(E15<>"",E15*BRLRWT!$H$9*1000,"") -> 0.6512349507 | I15: 0.6599401122
B16: 1.710365273 | C16: 1.774220338 | D16: =IF($L$30<>"",IF(INPUT!$H$10=1,(_xlfn.NORM.DIST(C16,$L$30,$M$30,TRUE)-_xlfn.NORM.DIST(B16,$L$30,$M$30,TRUE))*BRLRWT!$H$10/100,(_xlfn.NORM.DIST(C16,$L$30,$M$30,TRUE)-_xlfn.NORM.DIST(B16,$L$30,$M$30,TRUE))),"") -> 4.717936279e-06 | E16: =IF($L$31<>"",IF(INPUT!$H$10=1,(_xlfn.NORM.DIST(C16,$L$31,$M$31,TRUE)-_xlfn.NORM.DIST(B16,$L$31,$M$31,TRUE))*(1-BRLRWT!$H$10/100),(_xlfn.NORM.DIST(C16,$L$31,$M$31,TRUE)-_xlfn.NORM.DIST(B16,$L$31,$M$31,TRUE))),"") -> 0.0002865169012 | F16: 0.0002912348375 | G16: =IF(D16<>"",D16*BRLRWT!$H$9*1000,"") -> 0.03302555395 | H16: =IF(E16<>"",E16*BRLRWT!$H$9*1000,"") -> 2.005618308 | I16: 2.038643862
B17: 1.774220338 | C17: 1.838075402 | D17: =IF($L$30<>"",IF(INPUT!$H$10=1,(_xlfn.NORM.DIST(C17,$L$30,$M$30,TRUE)-_xlfn.NORM.DIST(B17,$L$30,$M$30,TRUE))*BRLRWT!$H$10/100,(_xlfn.NORM.DIST(C17,$L$30,$M$30,TRUE)-_xlfn.NORM.DIST(B17,$L$30,$M$30,TRUE))),"") -> 1.638944794e-05 | E17: =IF($L$31<>"",IF(INPUT!$H$10=1,(_xlfn.NORM.DIST(C17,$L$31,$M$31,TRUE)-_xlfn.NORM.DIST(B17,$L$31,$M$31,TRUE))*(1-BRLRWT!$H$10/100),(_xlfn.NORM.DIST(C17,$L$31,$M$31,TRUE)-_xlfn.NORM.DIST(B17,$L$31,$M$31,TRUE))),"") -> 0.0007936813867 | F17: 0.0008100708347 | G17: =IF(D17<>"",D17*BRLRWT!$H$9*1000,"") -> 0.1147261356 | H17: =IF(E17<>"",E17*BRLRWT!$H$9*1000,"") -> 5.555769707 | I17: 5.670495843
B18: 1.838075402 | C18: 1.901930466 | D18: =IF($L$30<>"",IF(INPUT!$H$10=1,(_xlfn.NORM.DIST(C18,$L$30,$M$30,TRUE)-_xlfn.NORM.DIST(B18,$L$30,$M$30,TRUE))*BRLRWT!$H$10/100,(_xlfn.NORM.DIST(C18,$L$30,$M$30,TRUE)-_xlfn.NORM.DIST(B18,$L$30,$M$30,TRUE))),"") -> 5.213367443e-05 | E18: =IF($L$31<>"",IF(INPUT!$H$10=1,(_xlfn.NORM.DIST(C18,$L$31,$M$31,TRUE)-_xlfn.NORM.DIST(B18,$L$31,$M$31,TRUE))*(1-BRLRWT!$H$10/100),(_xlfn.NORM.DIST(C18,$L$31,$M$31,TRUE)-_xlfn.NORM.DIST(B18,$L$31,$M$31,TRUE))),"") -> 0.001977568997 | F18: 0.002029702671 | G18: =IF(D18<>"",D18*BRLRWT!$H$9*1000,"") -> 0.364935721 | H18: =IF(E18<>"",E18*BRLRWT!$H$9*1000,"") -> 13.84298298 | I18: 14.2079187
B19: 1.901930466 | C19: 1.965785531 | D19: =IF($L$30<>"",IF(INPUT!$H$10=1,(_xlfn.NORM.DIST(C19,$L$30,$M$30,TRUE)-_xlfn.NORM.DIST(B19,$L$30,$M$30,TRUE))*BRLRWT!$H$10/100,(_xlfn.NORM.DIST(C19,$L$30,$M$30,TRUE)-_xlfn.NORM.DIST(B19,$L$30,$M$30,TRUE))),"") -> 0.0001518506754 | E19: =IF($L$31<>"",IF(INPUT!$H$10=1,(_xlfn.NORM.DIST(C19,$L$31,$M$31,TRUE)-_xlfn.NORM.DIST(B19,$L$31,$M$31,TRUE))*(1-BRLRWT!$H$10/100),(_xlfn.NORM.DIST(C19,$L$31,$M$31,TRUE)-_xlfn.NORM.DIST(B19,$L$31,$M$31,TRUE))),"") -> 0.004432108241 | F19: 0.004583958916 | G19: =IF(D19<>"",D19*BRLRWT!$H$9*1000,"") -> 1.062954728 | H19: =IF(E19<>"",E19*BRLRWT!$H$9*1000,"") -> 31.02475769 | I19: 32.08771241
B20: 1.965785531 | C20: 2.029640595 | D20: =IF($L$30<>"",IF(INPUT!$H$10=1,(_xlfn.NORM.DIST(C20,$L$30,$M$30,TRUE)-_xlfn.NORM.DIST(B20,$L$30,$M$30,TRUE))*BRLRWT!$H$10/100,(_xlfn.NORM.DIST(C20,$L$30,$M$30,TRUE)-_xlfn.NORM.DIST(B20,$L$30,$M$30,TRUE))),"") -> 0.0004050064742 | E20: =IF($L$31<>"",IF(INPUT!$H$10=1,(_xlfn.NORM.DIST(C20,$L$31,$M$31,TRUE)-_xlfn.NORM.DIST(B20,$L$31,$M$31,TRUE))*(1-BRLRWT!$H$10/100),(_xlfn.NORM.DIST(C20,$L$31,$M$31,TRUE)-_xlfn.NORM.DIST(B20,$L$31,$M$31,TRUE))),"") -> 0.008934818018 | F20: 0.009339824492 | G20: =IF(D20<>"",D20*BRLRWT!$H$9*1000,"") -> 2.83504532 | H20: =IF(E20<>"",E20*BRLRWT!$H$9*1000,"") -> 62.54372613 | I20: 65.37877145
B21: 2.029640595 | C21: 2.093495659 | D21: =IF($L$30<>"",IF(INPUT!$H$10=1,(_xlfn.NORM.DIST(C21,$L$30,$M$30,TRUE)-_xlfn.NORM.DIST(B21,$L$30,$M$30,TRUE))*BRLRWT!$H$10/100,(_xlfn.NORM.DIST(C21,$L$30,$M$30,TRUE)-_xlfn.NORM.DIST(B21,$L$30,$M$30,TRUE))),"") -> 0.000989136758 | E21: =IF($L$31<>"",IF(INPUT!$H$10=1,(_xlfn.NORM.DIST(C21,$L$31,$M$31,TRUE)-_xlfn.NORM.DIST(B21,$L$31,$M$31,TRUE))*(1-BRLRWT!$H$10/100),(_xlfn.NORM.DIST(C21,$L$31,$M$31,TRUE)-_xlfn.NORM.DIST(B21,$L$31,$M$31,TRUE))),"") -> 0.01620170329 | F21: 0.01719084004 | G21: =IF(D21<>"",D21*BRLRWT!$H$9*1000,"") -> 6.923957306 | H21: =IF(E21<>"",E21*BRLRWT!$H$9*1000,"") -> 113.411923 | I21: 120.3358803
B22: 2.093495659 | C22: 2.157350724 | D22: =IF($L$30<>"",IF(INPUT!$H$10=1,(_xlfn.NORM.DIST(C22,$L$30,$M$30,TRUE)-_xlfn.NORM.DIST(B22,$L$30,$M$30,TRUE))*BRLRWT!$H$10/100,(_xlfn.NORM.DIST(C22,$L$30,$M$30,TRUE)-_xlfn.NORM.DIST(B22,$L$30,$M$30,TRUE))),"") -> 0.002212085802 | E22: =IF($L$31<>"",IF(INPUT!$H$10=1,(_xlfn.NORM.DIST(C22,$L$31,$M$31,TRUE)-_xlfn.NORM.DIST(B22,$L$31,$M$31,TRUE))*(1-BRLRWT!$H$10/100),(_xlfn.NORM.DIST(C22,$L$31,$M$31,TRUE)-_xlfn.NORM.DIST(B22,$L$31,$M$31,TRUE))),"") -> 0.02642638734 | F22: 0.02863847314 | G22: =IF(D22<>"",D22*BRLRWT!$H$9*1000,"") -> 15.48460062 | H22: =IF(E22<>"",E22*BRLRWT!$H$9*1000,"") -> 184.9847114 | I22: 200.469312
B23: 2.157350724 | C23: 2.221205788 | D23: =IF($L$30<>"",IF(INPUT!$H$10=1,(_xlfn.NORM.DIST(C23,$L$30,$M$30,TRUE)-_xlfn.NORM.DIST(B23,$L$30,$M$30,TRUE))*BRLRWT!$H$10/100,(_xlfn.NORM.DIST(C23,$L$30,$M$30,TRUE)-_xlfn.NORM.DIST(B23,$L$30,$M$30,TRUE))),"") -> 0.004530026836 | E23: =IF($L$31<>"",IF(INPUT!$H$10=1,(_xlfn.NORM.DIST(C23,$L$31,$M$31,TRUE)-_xlfn.NORM.DIST(B23,$L$31,$M$31,TRUE))*(1-BRLRWT!$H$10/100),(_xlfn.NORM.DIST(C23,$L$31,$M$31,TRUE)-_xlfn.NORM.DIST(B23,$L$31,$M$31,TRUE))),"") -> 0.03877208819 | F23: 0.04330211503 | G23: =IF(D23<>"",D23*BRLRWT!$H$9*1000,"") -> 31.71018786 | H23: =IF(E23<>"",E23*BRLRWT!$H$9*1000,"") -> 271.4046173 | I23: 303.1148052
B24: 2.221205788 | C24: 2.285060853 | D24: =IF($L$30<>"",IF(INPUT!$H$10=1,(_xlfn.NORM.DIST(C24,$L$30,$M$30,TRUE)-_xlfn.NORM.DIST(B24,$L$30,$M$30,TRUE))*BRLRWT!$H$10/100,(_xlfn.NORM.DIST(C24,$L$30,$M$30,TRUE)-_xlfn.NORM.DIST(B24,$L$30,$M$30,TRUE))),"") -> 0.008494826161 | E24: =IF($L$31<>"",IF(INPUT!$H$10=1,(_xlfn.NORM.DIST(C24,$L$31,$M$31,TRUE)-_xlfn.NORM.DIST(B24,$L$31,$M$31,TRUE))*(1-BRLRWT!$H$10/100),(_xlfn.NORM.DIST(C24,$L$31,$M$31,TRUE)-_xlfn.NORM.DIST(B24,$L$31,$M$31,TRUE))),"") -> 0.05116895296 | F24: 0.05966377912 | G24: =IF(D24<>"",D24*BRLRWT!$H$9*1000,"") -> 59.46378313 | H24: =IF(E24<>"",E24*BRLRWT!$H$9*1000,"") -> 358.1826707 | I24: 417.6464538
B25: 2.285060853 | C25: 2.348915917 | D25: =IF($L$30<>"",IF(INPUT!$H$10=1,(_xlfn.NORM.DIST(C25,$L$30,$M$30,TRUE)-_xlfn.NORM.DIST(B25,$L$30,$M$30,TRUE))*BRLRWT!$H$10/100,(_xlfn.NORM.DIST(C25,$L$30,$M$30,TRUE)-_xlfn.NORM.DIST(B25,$L$30,$M$30,TRUE))),"") -> 0.01458695583 | E25: =IF($L$31<>"",IF(INPUT!$H$10=1,(_xlfn.NORM.DIST(C25,$L$31,$M$31,TRUE)-_xlfn.NORM.DIST(B25,$L$31,$M$31,TRUE))*(1-BRLRWT!$H$10/100),(_xlfn.NORM.DIST(C25,$L$31,$M$31,TRUE)-_xlfn.NORM.DIST(B25,$L$31,$M$31,TRUE))),"") -> 0.06074366986 | F25: 0.07533062569 | G25: =IF(D25<>"",D25*BRLRWT!$H$9*1000,"") -> 102.1086908 | H25: =IF(E25<>"",E25*BRLRWT!$H$9*1000,"") -> 425.205689 | I25: 527.3143798
B26: 2.348915917 | C26: 2.412770981 | D26: =IF($L$30<>"",IF(INPUT!$H$10=1,(_xlfn.NORM.DIST(C26,$L$30,$M$30,TRUE)-_xlfn.NORM.DIST(B26,$L$30,$M$30,TRUE))*BRLRWT!$H$10/100,(_xlfn.NORM.DIST(C26,$L$30,$M$30,TRUE)-_xlfn.NORM.DIST(B26,$L$30,$M$30,TRUE))),"") -> 0.02293678918 | E26: =IF($L$31<>"",IF(INPUT!$H$10=1,(_xlfn.NORM.DIST(C26,$L$31,$M$31,TRUE)-_xlfn.NORM.DIST(B26,$L$31,$M$31,TRUE))*(1-BRLRWT!$H$10/100),(_xlfn.NORM.DIST(C26,$L$31,$M$31,TRUE)-_xlfn.NORM.DIST(B26,$L$31,$M$31,TRUE))),"") -> 0.06486395629 | F26: 0.08780074546 | G26: =IF(D26<>"",D26*BRLRWT!$H$9*1000,"") -> 160.5575242 | H26: =IF(E26<>"",E26*BRLRWT!$H$9*1000,"") -> 454.047694 | I26: 614.6052182
B27: 2.412770981 | C27: 2.476626046 | D27: =IF($L$30<>"",IF(INPUT!$H$10=1,(_xlfn.NORM.DIST(C27,$L$30,$M$30,TRUE)-_xlfn.NORM.DIST(B27,$L$30,$M$30,TRUE))*BRLRWT!$H$10/100,(_xlfn.NORM.DIST(C27,$L$30,$M$30,TRUE)-_xlfn.NORM.DIST(B27,$L$30,$M$30,TRUE))),"") -> 0.0330262667 | E27: =IF($L$31<>"",IF(INPUT!$H$10=1,(_xlfn.NORM.DIST(C27,$L$31,$M$31,TRUE)-_xlfn.NORM.DIST(B27,$L$31,$M$31,TRUE))*(1-BRLRWT!$H$10/100),(_xlfn.NORM.DIST(C27,$L$31,$M$31,TRUE)-_xlfn.NORM.DIST(B27,$L$31,$M$31,TRUE))),"") -> 0.06230372931 | F27: 0.095329996 | G27: =IF(D27<>"",D27*BRLRWT!$H$9*1000,"") -> 231.1838669 | H27: =IF(E27<>"",E27*BRLRWT!$H$9*1000,"") -> 436.1261051 | I27: 667.309972
B28: 2.476626046 | C28: 2.54048111 | D28: =IF($L$30<>"",IF(INPUT!$H$10=1,(_xlfn.NORM.DIST(C28,$L$30,$M$30,TRUE)-_xlfn.NORM.DIST(B28,$L$30,$M$30,TRUE))*BRLRWT!$H$10/100,(_xlfn.NORM.DIST(C28,$L$30,$M$30,TRUE)-_xlfn.NORM.DIST(B28,$L$30,$M$30,TRUE))),"") -> 0.04354578861 | E28: =IF($L$31<>"",IF(INPUT!$H$10=1,(_xlfn.NORM.DIST(C28,$L$31,$M$31,TRUE)-_xlfn.NORM.DIST(B28,$L$31,$M$31,TRUE))*(1-BRLRWT!$H$10/100),(_xlfn.NORM.DIST(C28,$L$31,$M$31,TRUE)-_xlfn.NORM.DIST(B28,$L$31,$M$31,TRUE))),"") -> 0.05383102817 | F28: 0.09737681679 | G28: =IF(D28<>"",D28*BRLRWT!$H$9*1000,"") -> 304.8205203 | H28: =IF(E28<>"",E28*BRLRWT!$H$9*1000,"") -> 376.8171972 | I28: 681.6377175 | K28: - Summary
B29: 2.54048111 | C29: 2.604336174 | D29: =IF($L$30<>"",IF(INPUT!$H$10=1,(_xlfn.NORM.DIST(C29,$L$30,$M$30,TRUE)-_xlfn.NORM.DIST(B29,$L$30,$M$30,TRUE))*BRLRWT!$H$10/100,(_xlfn.NORM.DIST(C29,$L$30,$M$30,TRUE)-_xlfn.NORM.DIST(B29,$L$30,$M$30,TRUE))),"") -> 0.05257670256 | E29: =IF($L$31<>"",IF(INPUT!$H$10=1,(_xlfn.NORM.DIST(C29,$L$31,$M$31,TRUE)-_xlfn.NORM.DIST(B29,$L$31,$M$31,TRUE))*(1-BRLRWT!$H$10/100),(_xlfn.NORM.DIST(C29,$L$31,$M$31,TRUE)-_xlfn.NORM.DIST(B29,$L$31,$M$31,TRUE))),"") -> 0.041836822 | F29: 0.09441352456 | G29: =IF(D29<>"",D29*BRLRWT!$H$9*1000,"") -> 368.0369179 | H29: =IF(E29<>"",E29*BRLRWT!$H$9*1000,"") -> 292.857754 | I29: 660.8946719 | K29: Unit (lbs) | L29: Mean | M29: Std. Dev. | N29: C.V. (%)
B30: 2.604336174 | C30: 2.668191239 | D30: =IF($L$30<>"",IF(INPUT!$H$10=1,(_xlfn.NORM.DIST(C30,$L$30,$M$30,TRUE)-_xlfn.NORM.DIST(B30,$L$30,$M$30,TRUE))*BRLRWT!$H$10/100,(_xlfn.NORM.DIST(C30,$L$30,$M$30,TRUE)-_xlfn.NORM.DIST(B30,$L$30,$M$30,TRUE))),"") -> 0.05813015924 | E30: =IF($L$31<>"",IF(INPUT!$H$10=1,(_xlfn.NORM.DIST(C30,$L$31,$M$31,TRUE)-_xlfn.NORM.DIST(B30,$L$31,$M$31,TRUE))*(1-BRLRWT!$H$10/100),(_xlfn.NORM.DIST(C30,$L$31,$M$31,TRUE)-_xlfn.NORM.DIST(B30,$L$31,$M$31,TRUE))),"") -> 0.02924764988 | F30: 0.08737780912 | G30: =IF(D30<>"",D30*BRLRWT!$H$9*1000,"") -> 406.9111147 | H30: =IF(E30<>"",E30*BRLRWT!$H$9*1000,"") -> 204.7335491 | I30: 611.6446638 | K30: Male | L30: 2.677157639 | M30: 0.2144024021 | N30: =IF(L30<>"",M30/L30*100,"") -> 8.008583393
B31: 2.668191239 | C31: 2.732046303 | D31: =IF($L$30<>"",IF(INPUT!$H$10=1,(_xlfn.NORM.DIST(C31,$L$30,$M$30,TRUE)-_xlfn.NORM.DIST(B31,$L$30,$M$30,TRUE))*BRLRWT!$H$10/100,(_xlfn.NORM.DIST(C31,$L$30,$M$30,TRUE)-_xlfn.NORM.DIST(B31,$L$30,$M$30,TRUE))),"") -> 0.05885331306 | E31: =IF($L$31<>"",IF(INPUT!$H$10=1,(_xlfn.NORM.DIST(C31,$L$31,$M$31,TRUE)-_xlfn.NORM.DIST(B31,$L$31,$M$31,TRUE))*(1-BRLRWT!$H$10/100),(_xlfn.NORM.DIST(C31,$L$31,$M$31,TRUE)-_xlfn.NORM.DIST(B31,$L$31,$M$31,TRUE))),"") -> 0.01839195845 | F31: 0.07724527152 | G31: =IF(D31<>"",D31*BRLRWT!$H$9*1000,"") -> 411.9731914 | H31: =IF(E31<>"",E31*BRLRWT!$H$9*1000,"") -> 128.7437092 | I31: 540.7169006 | K31: Female | L31: 2.388488685 | M31: 0.1953495003 | N31: =IF(L31<>"",M31/L31*100,"") -> 8.178791111
B32: 2.732046303 | C32: 2.795901368 | D32: =IF($L$30<>"",IF(INPUT!$H$10=1,(_xlfn.NORM.DIST(C32,$L$30,$M$30,TRUE)-_xlfn.NORM.DIST(B32,$L$30,$M$30,TRUE))*BRLRWT!$H$10/100,(_xlfn.NORM.DIST(C32,$L$30,$M$30,TRUE)-_xlfn.NORM.DIST(B32,$L$30,$M$30,TRUE))),"") -> 0.05456342026 | E32: =IF($L$31<>"",IF(INPUT!$H$10=1,(_xlfn.NORM.DIST(C32,$L$31,$M$31,TRUE)-_xlfn.NORM.DIST(B32,$L$31,$M$31,TRUE))*(1-BRLRWT!$H$10/100),(_xlfn.NORM.DIST(C32,$L$31,$M$31,TRUE)-_xlfn.NORM.DIST(B32,$L$31,$M$31,TRUE))),"") -> 0.01040321765 | F32: 0.0649666379 | G32: =IF(D32<>"",D32*BRLRWT!$H$9*1000,"") -> 381.9439418 | H32: =IF(E32<>"",E32*BRLRWT!$H$9*1000,"") -> 72.82252355 | I32: 454.7664653 | K32: S/Run | L32: 2.532823162 | M32: 0.2507934407 | N32: =IF(L32<>"",M32/L32*100,"") -> 9.901735125
B33: 2.795901368 | C33: 2.859756432 | D33: =IF($L$30<>"",IF(INPUT!$H$10=1,(_xlfn.NORM.DIST(C33,$L$30,$M$30,TRUE)-_xlfn.NORM.DIST(B33,$L$30,$M$30,TRUE))*BRLRWT!$H$10/100,(_xlfn.NORM.DIST(C33,$L$30,$M$30,TRUE)-_xlfn.NORM.DIST(B33,$L$30,$M$30,TRUE))),"") -> 0.04632264312 | E33: =IF($L$31<>"",IF(INPUT!$H$10=1,(_xlfn.NORM.DIST(C33,$L$31,$M$31,TRUE)-_xlfn.NORM.DIST(B33,$L$31,$M$31,TRUE))*(1-BRLRWT!$H$10/100),(_xlfn.NORM.DIST(C33,$L$31,$M$31,TRUE)-_xlfn.NORM.DIST(B33,$L$31,$M$31,TRUE))),"") -> 0.005293070167 | F33: 0.05161571329 | G33: =IF(D33<>"",D33*BRLRWT!$H$9*1000,"") -> 324.2585018 | H33: =IF(E33<>"",E33*BRLRWT!$H$9*1000,"") -> 37.05149117 | I33: 361.309993
B34: 2.859756432 | C34: 2.923611496 | D34: =IF($L$30<>"",IF(INPUT!$H$10=1,(_xlfn.NORM.DIST(C34,$L$30,$M$30,TRUE)-_xlfn.NORM.DIST(B34,$L$30,$M$30,TRUE))*BRLRWT!$H$10/100,(_xlfn.NORM.DIST(C34,$L$30,$M$30,TRUE)-_xlfn.NORM.DIST(B34,$L$30,$M$30,TRUE))),"") -> 0.03601187564 | E34: =IF($L$31<>"",IF(INPUT!$H$10=1,(_xlfn.NORM.DIST(C34,$L$31,$M$31,TRUE)-_xlfn.NORM.DIST(B34,$L$31,$M$31,TRUE))*(1-BRLRWT!$H$10/100),(_xlfn.NORM.DIST(C34,$L$31,$M$31,TRUE)-_xlfn.NORM.DIST(B34,$L$31,$M$31,TRUE))),"") -> 0.00242239525 | F34: 0.03843427089 | G34: =IF(D34<>"",D34*BRLRWT!$H$9*1000,"") -> 252.0831295 | H34: =IF(E34<>"",E34*BRLRWT!$H$9*1000,"") -> 16.95676675 | I34: 269.0398962
B35: 2.923611496 | C35: 2.987466561 | D35: =IF($L$30<>"",IF(INPUT!$H$10=1,(_xlfn.NORM.DIST(C35,$L$30,$M$30,TRUE)-_xlfn.NORM.DIST(B35,$L$30,$M$30,TRUE))*BRLRWT!$H$10/100,(_xlfn.NORM.DIST(C35,$L$30,$M$30,TRUE)-_xlfn.NORM.DIST(B35,$L$30,$M$30,TRUE))),"") -> 0.02563646757 | E35: =IF($L$31<>"",IF(INPUT!$H$10=1,(_xlfn.NORM.DIST(C35,$L$31,$M$31,TRUE)-_xlfn.NORM.DIST(B35,$L$31,$M$31,TRUE))*(1-BRLRWT!$H$10/100),(_xlfn.NORM.DIST(C35,$L$31,$M$31,TRUE)-_xlfn.NORM.DIST(B35,$L$31,$M$31,TRUE))),"") -> 0.0009971866822 | F35: 0.02663365425 | G35: =IF(D35<>"",D35*BRLRWT!$H$9*1000,"") -> 179.455273 | H35: =IF(E35<>"",E35*BRLRWT!$H$9*1000,"") -> 6.980306776 | I35: 186.4355798
B36: 2.987466561 | C36: 3.051321625 | D36: =IF($L$30<>"",IF(INPUT!$H$10=1,(_xlfn.NORM.DIST(C36,$L$30,$M$30,TRUE)-_xlfn.NORM.DIST(B36,$L$30,$M$30,TRUE))*BRLRWT!$H$10/100,(_xlfn.NORM.DIST(C36,$L$30,$M$30,TRUE)-_xlfn.NORM.DIST(B36,$L$30,$M$30,TRUE))),"") -> 0.01671205318 | E36: =IF($L$31<>"",IF(INPUT!$H$10=1,(_xlfn.NORM.DIST(C36,$L$31,$M$31,TRUE)-_xlfn.NORM.DIST(B36,$L$31,$M$31,TRUE))*(1-BRLRWT!$H$10/100),(_xlfn.NORM.DIST(C36,$L$31,$M$31,TRUE)-_xlfn.NORM.DIST(B36,$L$31,$M$31,TRUE))),"") -> 0.0003692311802 | F36: 0.01708128436 | G36: =IF(D36<>"",D36*BRLRWT!$H$9*1000,"") -> 116.9843723 | H36: =IF(E36<>"",E36*BRLRWT!$H$9*1000,"") -> 2.584618261 | I36: 119.5689905
B37: 3.051321625 | C37: 3.115176689 | D37: =IF($L$30<>"",IF(INPUT!$H$10=1,(_xlfn.NORM.DIST(C37,$L$30,$M$30,TRUE)-_xlfn.NORM.DIST(B37,$L$30,$M$30,TRUE))*BRLRWT!$H$10/100,(_xlfn.NORM.DIST(C37,$L$30,$M$30,TRUE)-_xlfn.NORM.DIST(B37,$L$30,$M$30,TRUE))),"") -> 0.009976071516 | E37: =IF($L$31<>"",IF(INPUT!$H$10=1,(_xlfn.NORM.DIST(C37,$L$31,$M$31,TRUE)-_xlfn.NORM.DIST(B37,$L$31,$M$31,TRUE))*(1-BRLRWT!$H$10/100),(_xlfn.NORM.DIST(C37,$L$31,$M$31,TRUE)-_xlfn.NORM.DIST(B37,$L$31,$M$31,TRUE))),"") -> 0.0001229721185 | F37: 0.01009904363 | G37: =IF(D37<>"",D37*BRLRWT!$H$9*1000,"") -> 69.83250061 | H37: =IF(E37<>"",E37*BRLRWT!$H$9*1000,"") -> 0.8608048292 | I37: 70.69330544
B38: 3.115176689 | C38: 3.179031754 | D38: =IF($L$30<>"",IF(INPUT!$H$10=1,(_xlfn.NORM.DIST(C38,$L$30,$M$30,TRUE)-_xlfn.NORM.DIST(B38,$L$30,$M$30,TRUE))*BRLRWT!$H$10/100,(_xlfn.NORM.DIST(C38,$L$30,$M$30,TRUE)-_xlfn.NORM.DIST(B38,$L$30,$M$30,TRUE))),"") -> 0.005453133683 | E38: =IF($L$31<>"",IF(INPUT!$H$10=1,(_xlfn.NORM.DIST(C38,$L$31,$M$31,TRUE)-_xlfn.NORM.DIST(B38,$L$31,$M$31,TRUE))*(1-BRLRWT!$H$10/100),(_xlfn.NORM.DIST(C38,$L$31,$M$31,TRUE)-_xlfn.NORM.DIST(B38,$L$31,$M$31,TRUE))),"") -> 3.683807488e-05 | F38: 0.005489971758 | G38: =IF(D38<>"",D38*BRLRWT!$H$9*1000,"") -> 38.17193578 | H38: =IF(E38<>"",E38*BRLRWT!$H$9*1000,"") -> 0.2578665241 | I38: 38.42980231
B39: 3.179031754 | C39: 3.242886818 | D39: =IF($L$30<>"",IF(INPUT!$H$10=1,(_xlfn.NORM.DIST(C39,$L$30,$M$30,TRUE)-_xlfn.NORM.DIST(B39,$L$30,$M$30,TRUE))*BRLRWT!$H$10/100,(_xlfn.NORM.DIST(C39,$L$30,$M$30,TRUE)-_xlfn.NORM.DIST(B39,$L$30,$M$30,TRUE))),"") -> 0.002729531443 | E39: =IF($L$31<>"",IF(INPUT!$H$10=1,(_xlfn.NORM.DIST(C39,$L$31,$M$31,TRUE)-_xlfn.NORM.DIST(B39,$L$31,$M$31,TRUE))*(1-BRLRWT!$H$10/100),(_xlfn.NORM.DIST(C39,$L$31,$M$31,TRUE)-_xlfn.NORM.DIST(B39,$L$31,$M$31,TRUE))),"") -> 9.925775474e-06 | F39: 0.002739457219 | G39: =IF(D39<>"",D39*BRLRWT!$H$9*1000,"") -> 19.1067201 | H39: =IF(E39<>"",E39*BRLRWT!$H$9*1000,"") -> 0.06948042832 | I39: 19.17620053
B40: 3.242886818 | C40: 3.306741883 | D40: =IF($L$30<>"",IF(INPUT!$H$10=1,(_xlfn.NORM.DIST(C40,$L$30,$M$30,TRUE)-_xlfn.NORM.DIST(B40,$L$30,$M$30,TRUE))*BRLRWT!$H$10/100,(_xlfn.NORM.DIST(C40,$L$30,$M$30,TRUE)-_xlfn.NORM.DIST(B40,$L$30,$M$30,TRUE))),"") -> 0.00125107615 | E40: =IF($L$31<>"",IF(INPUT!$H$10=1,(_xlfn.NORM.DIST(C40,$L$31,$M$31,TRUE)-_xlfn.NORM.DIST(B40,$L$31,$M$31,TRUE))*(1-BRLRWT!$H$10/100),(_xlfn.NORM.DIST(C40,$L$31,$M$31,TRUE)-_xlfn.NORM.DIST(B40,$L$31,$M$31,TRUE))),"") -> 2.4054934e-06 | F40: 0.001253481644 | G40: =IF(D40<>"",D40*BRLRWT!$H$9*1000,"") -> 8.757533051 | H40: =IF(E40<>"",E40*BRLRWT!$H$9*1000,"") -> 0.0168384538 | I40: 8.774371505
B41: 3.306741883 | C41: 3.370596947 | D41: =IF($L$30<>"",IF(INPUT!$H$10=1,(_xlfn.NORM.DIST(C41,$L$30,$M$30,TRUE)-_xlfn.NORM.DIST(B41,$L$30,$M$30,TRUE))*BRLRWT!$H$10/100,(_xlfn.NORM.DIST(C41,$L$30,$M$30,TRUE)-_xlfn.NORM.DIST(B41,$L$30,$M$30,TRUE))),"") -> 0.0005250869205 | E41: =IF($L$31<>"",IF(INPUT!$H$10=1,(_xlfn.NORM.DIST(C41,$L$31,$M$31,TRUE)-_xlfn.NORM.DIST(B41,$L$31,$M$31,TRUE))*(1-BRLRWT!$H$10/100),(_xlfn.NORM.DIST(C41,$L$31,$M$31,TRUE)-_xlfn.NORM.DIST(B41,$L$31,$M$31,TRUE))),"") -> 5.243373058e-07 | F41: 0.0005256112578 | G41: =IF(D41<>"",D41*BRLRWT!$H$9*1000,"") -> 3.675608444 | H41: =IF(E41<>"",E41*BRLRWT!$H$9*1000,"") -> 0.003670361141 | I41: 3.679278805
B42: 3.370596947 | C42: 3.434452011 | D42: =IF($L$30<>"",IF(INPUT!$H$10=1,(_xlfn.NORM.DIST(C42,$L$30,$M$30,TRUE)-_xlfn.NORM.DIST(B42,$L$30,$M$30,TRUE))*BRLRWT!$H$10/100,(_xlfn.NORM.DIST(C42,$L$30,$M$30,TRUE)-_xlfn.NORM.DIST(B42,$L$30,$M$30,TRUE))),"") -> 0.000201803366 | E42: =IF($L$31<>"",IF(INPUT!$H$10=1,(_xlfn.NORM.DIST(C42,$L$31,$M$31,TRUE)-_xlfn.NORM.DIST(B42,$L$31,$M$31,TRUE))*(1-BRLRWT!$H$10/100),(_xlfn.NORM.DIST(C42,$L$31,$M$31,TRUE)-_xlfn.NORM.DIST(B42,$L$31,$M$31,TRUE))),"") -> 1.027965673e-07 | F42: 0.0002019061625 | G42: =IF(D42<>"",D42*BRLRWT!$H$9*1000,"") -> 1.412623562 | H42: =IF(E42<>"",E42*BRLRWT!$H$9*1000,"") -> 0.0007195759708 | I42: 1.413343138
B43: 3.434452011 | C43: 3.498307076 | D43: =IF($L$30<>"",IF(INPUT!$H$10=1,(_xlfn.NORM.DIST(C43,$L$30,$M$30,TRUE)-_xlfn.NORM.DIST(B43,$L$30,$M$30,TRUE))*BRLRWT!$H$10/100,(_xlfn.NORM.DIST(C43,$L$30,$M$30,TRUE)-_xlfn.NORM.DIST(B43,$L$30,$M$30,TRUE))),"") -> 7.101876532e-05 | E43: =IF($L$31<>"",IF(INPUT!$H$10=1,(_xlfn.NORM.DIST(C43,$L$31,$M$31,TRUE)-_xlfn.NORM.DIST(B43,$L$31,$M$31,TRUE))*(1-BRLRWT!$H$10/100),(_xlfn.NORM.DIST(C43,$L$31,$M$31,TRUE)-_xlfn.NORM.DIST(B43,$L$31,$M$31,TRUE))),"") -> 1.812599648e-08 | F43: 7.103689131e-05 | G43: =IF(D43<>"",D43*BRLRWT!$H$9*1000,"") -> 0.4971313572 | H43: =IF(E43<>"",E43*BRLRWT!$H$9*1000,"") -> 0.0001268819754 | I43: 0.4972582392
B44: 3.498307076 | C44: 3.56216214 | D44: =IF($L$30<>"",IF(INPUT!$H$10=1,(_xlfn.NORM.DIST(C44,$L$30,$M$30,TRUE)-_xlfn.NORM.DIST(B44,$L$30,$M$30,TRUE))*BRLRWT!$H$10/100,(_xlfn.NORM.DIST(C44,$L$30,$M$30,TRUE)-_xlfn.NORM.DIST(B44,$L$30,$M$30,TRUE))),"") -> 2.288563253e-05 | E44: =IF($L$31<>"",IF(INPUT!$H$10=1,(_xlfn.NORM.DIST(C44,$L$31,$M$31,TRUE)-_xlfn.NORM.DIST(B44,$L$31,$M$31,TRUE))*(1-BRLRWT!$H$10/100),(_xlfn.NORM.DIST(C44,$L$31,$M$31,TRUE)-_xlfn.NORM.DIST(B44,$L$31,$M$31,TRUE))),"") -> 2.874580907e-09 | F44: 2.288850711e-05 | G44: =IF(D44<>"",D44*BRLRWT!$H$9*1000,"") -> 0.1601994277 | H44: =IF(E44<>"",E44*BRLRWT!$H$9*1000,"") -> 2.012206635e-05 | I44: 0.1602195498
B45: 3.56216214 | C45: ="inf." -> inf. | D45: =IF($L$30<>"",IF(INPUT!$H$10=1,(1-_xlfn.NORM.DIST(B45,$L$30,$M$30,TRUE))*BRLRWT!$H$10/100,(1-_xlfn.NORM.DIST(B45,$L$30,$M$30,TRUE))),"") -> 9.157325872e-06 | E45: =IF($L$31<>"",IF(INPUT!$H$10=1,(1-_xlfn.NORM.DIST(B44,$L$31,$M$31,TRUE))*(1-BRLRWT!$H$10/100),(1-_xlfn.NORM.DIST(B44,$L$31,$M$31,TRUE))),"") -> 3.343943122e-09 | F45: 9.160669815e-06 | G45: =IF(D45<>"",D45*BRLRWT!$H$9*1000,"") -> 0.0641012811 | H45: =IF(E45<>"",E45*BRLRWT!$H$9*1000,"") -> 2.340760186e-05 | I45: 0.0641246887
B46: Total | D46: =SUM(D12:D45) -> 0.5 | E46: 0.5000000029 | F46: 1.000000003 | G46: 3500 | H46: 3500.00002 | I46: 7000.00002

Sheet BreastWT
A8: 3-2. Results - Breast Weight Distribution | K8: Breed
B10: Weight (lbs) | D10: Percentage | G10: Numbers
B11: Min. (>) | C11: Max. (≤) | D11: Male | E11: Female | F11: S/Run | G11: Male | H11: Female | I11: S/Run
B12: ="-inf." -> -inf. | C12: =$M$13 -> 0.39293498 | D12: =IF($L$30<>"",IF(INPUT!$H$10=1,_xlfn.NORM.DIST(C12,$L$30,$M$30,TRUE)*BRLRWT!$H$10/100,_xlfn.NORM.DIST(C12,$L$30,$M$30,TRUE)),"") -> 1.640886614e-08 | E12: =IF($L$31<>"",IF(INPUT!$H$10=1,_xlfn.NORM.DIST(C12,$L$31,$M$31,TRUE)*(1-BRLRWT!$H$10/100),_xlfn.NORM.DIST(C12,$L$31,$M$31,TRUE)),"") -> 1.025713733e-06 | F12: =IF(D12<>"",IF(E12<>"",D12+E12,""),"") -> 1.042122599e-06 | G12: =IF(D12<>"",D12*BRLRWT!$H$9*1000,"") -> 0.000114862063 | H12: =IF(E12<>"",E12*BRLRWT!$H$9*1000,"") -> 0.00717999613 | I12: =IF(G12<>"",IF(H12<>"",G12+H12,""),"") -> 0.007294858193 | L12: Range
B13: =C12 -> 0.39293498 | C13: =C12+$M$14 -> 0.4214048488 | D13: =IF($L$30<>"",IF(INPUT!$H$10=1,(_xlfn.NORM.DIST(C13,$L$30,$M$30,TRUE)-_xlfn.NORM.DIST(B13,$L$30,$M$30,TRUE))*BRLRWT!$H$10/100,(_xlfn.NORM.DIST(C13,$L$30,$M$30,TRUE)-_xlfn.NORM.DIST(B13,$L$30,$M$30,TRUE))),"") -> 8.042939488e-08 | E13: =IF($L$31<>"",IF(INPUT!$H$10=1,(_xlfn.NORM.DIST(C13,$L$31,$M$31,TRUE)-_xlfn.NORM.DIST(B13,$L$31,$M$31,TRUE))*(1-BRLRWT!$H$10/100),(_xlfn.NORM.DIST(C13,$L$31,$M$31,TRUE)-_xlfn.NORM.DIST(B13,$L$31,$M$31,TRUE))),"") -> 3.765389445e-06 | F13: =IF(D13<>"",IF(E13<>"",D13+E13,""),"") -> 3.84581884e-06 | G13: =IF(D13<>"",D13*BRLRWT!$H$9*1000,"") -> 0.0005630057641 | H13: =IF(E13<>"",E13*BRLRWT!$H$9*1000,"") -> 0.02635772612 | I13: =IF(G13<>"",IF(H13<>"",G13+H13,""),"") -> 0.02692073188 | L13: min | M13: 0.39293498
B14: =C13 -> 0.4214048488 | C14: =C13+$M$14 -> 0.4498747175 | D14: =IF($L$30<>"",IF(INPUT!$H$10=1,(_xlfn.NORM.DIST(C14,$L$30,$M$30,TRUE)-_xlfn.NORM.DIST(B14,$L$30,$M$30,TRUE))*BRLRWT!$H$10/100,(_xlfn.NORM.DIST(C14,$L$30,$M$30,TRUE)-_xlfn.NORM.DIST(B14,$L$30,$M$30,TRUE))),"") -> 4.182472889e-07 | E14: =IF($L$31<>"",IF(INPUT!$H$10=1,(_xlfn.NORM.DIST(C14,$L$31,$M$31,TRUE)-_xlfn.NORM.DIST(B14,$L$31,$M$31,TRUE))*(1-BRLRWT!$H$10/100),(_xlfn.NORM.DIST(C14,$L$31,$M$31,TRUE)-_xlfn.NORM.DIST(B14,$L$31,$M$31,TRUE))),"") -> 1.534981628e-05 | F14: =IF(D14<>"",IF(E14<>"",D14+E14,""),"") -> 1.576806357e-05 | G14: =IF(D14<>"",D14*BRLRWT!$H$9*1000,"") -> 0.002927731022 | H14: =IF(E14<>"",E14*BRLRWT!$H$9*1000,"") -> 0.107448714 | I14: =IF(G14<>"",IF(H14<>"",G14+H14,""),"") -> 0.110376445 | L14: step size | M14: 0.02846986875
B15: =C14 -> 0.4498747175 | C15: =C14+$M$14 -> 0.4783445863 | D15: =IF($L$30<>"",IF(INPUT!$H$10=1,(_xlfn.NORM.DIST(C15,$L$30,$M$30,TRUE)-_xlfn.NORM.DIST(B15,$L$30,$M$30,TRUE))*BRLRWT!$H$10/100,(_xlfn.NORM.DIST(C15,$L$30,$M$30,TRUE)-_xlfn.NORM.DIST(B15,$L$30,$M$30,TRUE))),"") -> 1.955209661e-06 | E15: =IF($L$31<>"",IF(INPUT!$H$10=1,(_xlfn.NORM.DIST(C15,$L$31,$M$31,TRUE)-_xlfn.NORM.DIST(B15,$L$31,$M$31,TRUE))*(1-BRLRWT!$H$10/100),(_xlfn.NORM.DIST(C15,$L$31,$M$31,TRUE)-_xlfn.NORM.DIST(B15,$L$31,$M$31,TRUE))),"") -> 5.610664021e-05 | F15: 5.806184987e-05 | G15: =IF(D15<>"",D15*BRLRWT!$H$9*1000,"") -> 0.01368646763 | H15: =IF(E15<>"",E15*BRLRWT!$H$9*1000,"") -> 0.3927464815 | I15: 0.4064329491
B16: 0.4783445863 | C16: 0.506814455 | D16: =IF($L$30<>"",IF(INPUT!$H$10=1,(_xlfn.NORM.DIST(C16,$L$30,$M$30,TRUE)-_xlfn.NORM.DIST(B16,$L$30,$M$30,TRUE))*BRLRWT!$H$10/100,(_xlfn.NORM.DIST(C16,$L$30,$M$30,TRUE)-_xlfn.NORM.DIST(B16,$L$30,$M$30,TRUE))),"") -> 8.216769936e-06 | E16: =IF($L$31<>"",IF(INPUT!$H$10=1,(_xlfn.NORM.DIST(C16,$L$31,$M$31,TRUE)-_xlfn.NORM.DIST(B16,$L$31,$M$31,TRUE))*(1-BRLRWT!$H$10/100),(_xlfn.NORM.DIST(C16,$L$31,$M$31,TRUE)-_xlfn.NORM.DIST(B16,$L$31,$M$31,TRUE))),"") -> 0.000183885975 | F16: 0.0001921027449 | G16: =IF(D16<>"",D16*BRLRWT!$H$9*1000,"") -> 0.05751738955 | H16: =IF(E16<>"",E16*BRLRWT!$H$9*1000,"") -> 1.287201825 | I16: 1.344719214
B17: 0.506814455 | C17: 0.5352843238 | D17: =IF($L$30<>"",IF(INPUT!$H$10=1,(_xlfn.NORM.DIST(C17,$L$30,$M$30,TRUE)-_xlfn.NORM.DIST(B17,$L$30,$M$30,TRUE))*BRLRWT!$H$10/100,(_xlfn.NORM.DIST(C17,$L$30,$M$30,TRUE)-_xlfn.NORM.DIST(B17,$L$30,$M$30,TRUE))),"") -> 3.104287766e-05 | E17: =IF($L$31<>"",IF(INPUT!$H$10=1,(_xlfn.NORM.DIST(C17,$L$31,$M$31,TRUE)-_xlfn.NORM.DIST(B17,$L$31,$M$31,TRUE))*(1-BRLRWT!$H$10/100),(_xlfn.NORM.DIST(C17,$L$31,$M$31,TRUE)-_xlfn.NORM.DIST(B17,$L$31,$M$31,TRUE))),"") -> 0.0005403949994 | F17: 0.0005714378771 | G17: =IF(D17<>"",D17*BRLRWT!$H$9*1000,"") -> 0.2173001436 | H17: =IF(E17<>"",E17*BRLRWT!$H$9*1000,"") -> 3.782764996 | I17: 4.000065139
B18: 0.5352843238 | C18: 0.5637541925 | D18: =IF($L$30<>"",IF(INPUT!$H$10=1,(_xlfn.NORM.DIST(C18,$L$30,$M$30,TRUE)-_xlfn.NORM.DIST(B18,$L$30,$M$30,TRUE))*BRLRWT!$H$10/100,(_xlfn.NORM.DIST(C18,$L$30,$M$30,TRUE)-_xlfn.NORM.DIST(B18,$L$30,$M$30,TRUE))),"") -> 0.0001054340875 | E18: =IF($L$31<>"",IF(INPUT!$H$10=1,(_xlfn.NORM.DIST(C18,$L$31,$M$31,TRUE)-_xlfn.NORM.DIST(B18,$L$31,$M$31,TRUE))*(1-BRLRWT!$H$10/100),(_xlfn.NORM.DIST(C18,$L$31,$M$31,TRUE)-_xlfn.NORM.DIST(B18,$L$31,$M$31,TRUE))),"") -> 0.001423990646 | F18: 0.001529424734 | G18: =IF(D18<>"",D18*BRLRWT!$H$9*1000,"") -> 0.7380386127 | H18: =IF(E18<>"",E18*BRLRWT!$H$9*1000,"") -> 9.967934523 | I18: 10.70597314
B19: 0.5637541925 | C19: 0.5922240613 | D19: =IF($L$30<>"",IF(INPUT!$H$10=1,(_xlfn.NORM.DIST(C19,$L$30,$M$30,TRUE)-_xlfn.NORM.DIST(B19,$L$30,$M$30,TRUE))*BRLRWT!$H$10/100,(_xlfn.NORM.DIST(C19,$L$30,$M$30,TRUE)-_xlfn.NORM.DIST(B19,$L$30,$M$30,TRUE))),"") -> 0.0003219312944 | E19: =IF($L$31<>"",IF(INPUT!$H$10=1,(_xlfn.NORM.DIST(C19,$L$31,$M$31,TRUE)-_xlfn.NORM.DIST(B19,$L$31,$M$31,TRUE))*(1-BRLRWT!$H$10/100),(_xlfn.NORM.DIST(C19,$L$31,$M$31,TRUE)-_xlfn.NORM.DIST(B19,$L$31,$M$31,TRUE))),"") -> 0.003364653739 | F19: 0.003686585034 | G19: =IF(D19<>"",D19*BRLRWT!$H$9*1000,"") -> 2.253519061 | H19: =IF(E19<>"",E19*BRLRWT!$H$9*1000,"") -> 23.55257618 | I19: 25.80609524
B20: 0.5922240613 | C20: 0.62069393 | D20: =IF($L$30<>"",IF(INPUT!$H$10=1,(_xlfn.NORM.DIST(C20,$L$30,$M$30,TRUE)-_xlfn.NORM.DIST(B20,$L$30,$M$30,TRUE))*BRLRWT!$H$10/100,(_xlfn.NORM.DIST(C20,$L$30,$M$30,TRUE)-_xlfn.NORM.DIST(B20,$L$30,$M$30,TRUE))),"") -> 0.0008837164722 | E20: =IF($L$31<>"",IF(INPUT!$H$10=1,(_xlfn.NORM.DIST(C20,$L$31,$M$31,TRUE)-_xlfn.NORM.DIST(B20,$L$31,$M$31,TRUE))*(1-BRLRWT!$H$10/100),(_xlfn.NORM.DIST(C20,$L$31,$M$31,TRUE)-_xlfn.NORM.DIST(B20,$L$31,$M$31,TRUE))),"") -> 0.007128775573 | F20: 0.008012492045 | G20: =IF(D20<>"",D20*BRLRWT!$H$9*1000,"") -> 6.186015305 | H20: =IF(E20<>"",E20*BRLRWT!$H$9*1000,"") -> 49.90142901 | I20: 56.08744432
B21: 0.62069393 | C21: 0.6491637988 | D21: =IF($L$30<>"",IF(INPUT!$H$10=1,(_xlfn.NORM.DIST(C21,$L$30,$M$30,TRUE)-_xlfn.NORM.DIST(B21,$L$30,$M$30,TRUE))*BRLRWT!$H$10/100,(_xlfn.NORM.DIST(C21,$L$30,$M$30,TRUE)-_xlfn.NORM.DIST(B21,$L$30,$M$30,TRUE))),"") -> 0.002180893557 | E21: =IF($L$31<>"",IF(INPUT!$H$10=1,(_xlfn.NORM.DIST(C21,$L$31,$M$31,TRUE)-_xlfn.NORM.DIST(B21,$L$31,$M$31,TRUE))*(1-BRLRWT!$H$10/100),(_xlfn.NORM.DIST(C21,$L$31,$M$31,TRUE)-_xlfn.NORM.DIST(B21,$L$31,$M$31,TRUE))),"") -> 0.0135436052 | F21: 0.01572449875 | G21: =IF(D21<>"",D21*BRLRWT!$H$9*1000,"") -> 15.2662549 | H21: =IF(E21<>"",E21*BRLRWT!$H$9*1000,"") -> 94.80523638 | I21: 110.0714913
B22: 0.6491637988 | C22: 0.6776336675 | D22: =IF($L$30<>"",IF(INPUT!$H$10=1,(_xlfn.NORM.DIST(C22,$L$30,$M$30,TRUE)-_xlfn.NORM.DIST(B22,$L$30,$M$30,TRUE))*BRLRWT!$H$10/100,(_xlfn.NORM.DIST(C22,$L$30,$M$30,TRUE)-_xlfn.NORM.DIST(B22,$L$30,$M$30,TRUE))),"") -> 0.004838731651 | E22: =IF($L$31<>"",IF(INPUT!$H$10=1,(_xlfn.NORM.DIST(C22,$L$31,$M$31,TRUE)-_xlfn.NORM.DIST(B22,$L$31,$M$31,TRUE))*(1-BRLRWT!$H$10/100),(_xlfn.NORM.DIST(C22,$L$31,$M$31,TRUE)-_xlfn.NORM.DIST(B22,$L$31,$M$31,TRUE))),"") -> 0.02307285796 | F22: 0.02791158961 | G22: =IF(D22<>"",D22*BRLRWT!$H$9*1000,"") -> 33.87112155 | H22: =IF(E22<>"",E22*BRLRWT!$H$9*1000,"") -> 161.5100057 | I22: 195.3811273
B23: 0.6776336675 | C23: 0.7061035363 | D23: =IF($L$30<>"",IF(INPUT!$H$10=1,(_xlfn.NORM.DIST(C23,$L$30,$M$30,TRUE)-_xlfn.NORM.DIST(B23,$L$30,$M$30,TRUE))*BRLRWT!$H$10/100,(_xlfn.NORM.DIST(C23,$L$30,$M$30,TRUE)-_xlfn.NORM.DIST(B23,$L$30,$M$30,TRUE))),"") -> 0.009651782798 | E23: =IF($L$31<>"",IF(INPUT!$H$10=1,(_xlfn.NORM.DIST(C23,$L$31,$M$31,TRUE)-_xlfn.NORM.DIST(B23,$L$31,$M$31,TRUE))*(1-BRLRWT!$H$10/100),(_xlfn.NORM.DIST(C23,$L$31,$M$31,TRUE)-_xlfn.NORM.DIST(B23,$L$31,$M$31,TRUE))),"") -> 0.03524672487 | F23: 0.04489850767 | G23: =IF(D23<>"",D23*BRLRWT!$H$9*1000,"") -> 67.56247958 | H23: =IF(E23<>"",E23*BRLRWT!$H$9*1000,"") -> 246.7270741 | I23: 314.2895537
B24: 0.7061035363 | C24: 0.734573405 | D24: =IF($L$30<>"",IF(INPUT!$H$10=1,(_xlfn.NORM.DIST(C24,$L$30,$M$30,TRUE)-_xlfn.NORM.DIST(B24,$L$30,$M$30,TRUE))*BRLRWT!$H$10/100,(_xlfn.NORM.DIST(C24,$L$30,$M$30,TRUE)-_xlfn.NORM.DIST(B24,$L$30,$M$30,TRUE))),"") -> 0.01730873976 | E24: =IF($L$31<>"",IF(INPUT!$H$10=1,(_xlfn.NORM.DIST(C24,$L$31,$M$31,TRUE)-_xlfn.NORM.DIST(B24,$L$31,$M$31,TRUE))*(1-BRLRWT!$H$10/100),(_xlfn.NORM.DIST(C24,$L$31,$M$31,TRUE)-_xlfn.NORM.DIST(B24,$L$31,$M$31,TRUE))),"") -> 0.04828235251 | F24: 0.06559109227 | G24: =IF(D24<>"",D24*BRLRWT!$H$9*1000,"") -> 121.1611783 | H24: =IF(E24<>"",E24*BRLRWT!$H$9*1000,"") -> 337.9764676 | I24: 459.1376459
B25: 0.734573405 | C25: 0.7630432738 | D25: =IF($L$30<>"",IF(INPUT!$H$10=1,(_xlfn.NORM.DIST(C25,$L$30,$M$30,TRUE)-_xlfn.NORM.DIST(B25,$L$30,$M$30,TRUE))*BRLRWT!$H$10/100,(_xlfn.NORM.DIST(C25,$L$30,$M$30,TRUE)-_xlfn.NORM.DIST(B25,$L$30,$M$30,TRUE))),"") -> 0.0279066562 | E25: =IF($L$31<>"",IF(INPUT!$H$10=1,(_xlfn.NORM.DIST(C25,$L$31,$M$31,TRUE)-_xlfn.NORM.DIST(B25,$L$31,$M$31,TRUE))*(1-BRLRWT!$H$10/100),(_xlfn.NORM.DIST(C25,$L$31,$M$31,TRUE)-_xlfn.NORM.DIST(B25,$L$31,$M$31,TRUE))),"") -> 0.05930780571 | F25: 0.0872144619 | G25: =IF(D25<>"",D25*BRLRWT!$H$9*1000,"") -> 195.3465934 | H25: =IF(E25<>"",E25*BRLRWT!$H$9*1000,"") -> 415.15464 | I25: 610.5012333
B26: 0.7630432738 | C26: 0.7915131425 | D26: =IF($L$30<>"",IF(INPUT!$H$10=1,(_xlfn.NORM.DIST(C26,$L$30,$M$30,TRUE)-_xlfn.NORM.DIST(B26,$L$30,$M$30,TRUE))*BRLRWT!$H$10/100,(_xlfn.NORM.DIST(C26,$L$30,$M$30,TRUE)-_xlfn.NORM.DIST(B26,$L$30,$M$30,TRUE))),"") -> 0.04045169255 | E26: =IF($L$31<>"",IF(INPUT!$H$10=1,(_xlfn.NORM.DIST(C26,$L$31,$M$31,TRUE)-_xlfn.NORM.DIST(B26,$L$31,$M$31,TRUE))*(1-BRLRWT!$H$10/100),(_xlfn.NORM.DIST(C26,$L$31,$M$31,TRUE)-_xlfn.NORM.DIST(B26,$L$31,$M$31,TRUE))),"") -> 0.06532659998 | F26: 0.1057782925 | G26: =IF(D26<>"",D26*BRLRWT!$H$9*1000,"") -> 283.1618478 | H26: =IF(E26<>"",E26*BRLRWT!$H$9*1000,"") -> 457.2861998 | I26: 740.4480477
B27: 0.7915131425 | C27: 0.8199830113 | D27: =IF($L$30<>"",IF(INPUT!$H$10=1,(_xlfn.NORM.DIST(C27,$L$30,$M$30,TRUE)-_xlfn.NORM.DIST(B27,$L$30,$M$30,TRUE))*BRLRWT!$H$10/100,(_xlfn.NORM.DIST(C27,$L$30,$M$30,TRUE)-_xlfn.NORM.DIST(B27,$L$30,$M$30,TRUE))),"") -> 0.05271737493 | E27: =IF($L$31<>"",IF(INPUT!$H$10=1,(_xlfn.NORM.DIST(C27,$L$31,$M$31,TRUE)-_xlfn.NORM.DIST(B27,$L$31,$M$31,TRUE))*(1-BRLRWT!$H$10/100),(_xlfn.NORM.DIST(C27,$L$31,$M$31,TRUE)-_xlfn.NORM.DIST(B27,$L$31,$M$31,TRUE))),"") -> 0.06452432715 | F27: 0.1172417021 | G27: =IF(D27<>"",D27*BRLRWT!$H$9*1000,"") -> 369.0216245 | H27: =IF(E27<>"",E27*BRLRWT!$H$9*1000,"") -> 451.67029 | I27: 820.6919145
B28: 0.8199830113 | C28: 0.84845288 | D28: =IF($L$30<>"",IF(INPUT!$H$10=1,(_xlfn.NORM.DIST(C28,$L$30,$M$30,TRUE)-_xlfn.NORM.DIST(B28,$L$30,$M$30,TRUE))*BRLRWT!$H$10/100,(_xlfn.NORM.DIST(C28,$L$30,$M$30,TRUE)-_xlfn.NORM.DIST(B28,$L$30,$M$30,TRUE))),"") -> 0.06176752717 | E28: =IF($L$31<>"",IF(INPUT!$H$10=1,(_xlfn.NORM.DIST(C28,$L$31,$M$31,TRUE)-_xlfn.NORM.DIST(B28,$L$31,$M$31,TRUE))*(1-BRLRWT!$H$10/100),(_xlfn.NORM.DIST(C28,$L$31,$M$31,TRUE)-_xlfn.NORM.DIST(B28,$L$31,$M$31,TRUE))),"") -> 0.05714945384 | F28: 0.118916981 | G28: =IF(D28<>"",D28*BRLRWT!$H$9*1000,"") -> 432.3726902 | H28: =IF(E28<>"",E28*BRLRWT!$H$9*1000,"") -> 400.0461769 | I28: 832.4188671 | K28: - Summary
B29: 0.84845288 | C29: 0.8769227488 | D29: =IF($L$30<>"",IF(INPUT!$H$10=1,(_xlfn.NORM.DIST(C29,$L$30,$M$30,TRUE)-_xlfn.NORM.DIST(B29,$L$30,$M$30,TRUE))*BRLRWT!$H$10/100,(_xlfn.NORM.DIST(C29,$L$30,$M$30,TRUE)-_xlfn.NORM.DIST(B29,$L$30,$M$30,TRUE))),"") -> 0.06506639123 | E29: =IF($L$31<>"",IF(INPUT!$H$10=1,(_xlfn.NORM.DIST(C29,$L$31,$M$31,TRUE)-_xlfn.NORM.DIST(B29,$L$31,$M$31,TRUE))*(1-BRLRWT!$H$10/100),(_xlfn.NORM.DIST(C29,$L$31,$M$31,TRUE)-_xlfn.NORM.DIST(B29,$L$31,$M$31,TRUE))),"") -> 0.04538948673 | F29: 0.110455878 | G29: =IF(D29<>"",D29*BRLRWT!$H$9*1000,"") -> 455.4647386 | H29: =IF(E29<>"",E29*BRLRWT!$H$9*1000,"") -> 317.7264071 | I29: 773.1911457 | K29: Unit (lbs) | L29: Mean | M29: Std. Dev. | N29: C.V. (%)
B30: 0.8769227488 | C30: 0.9053926175 | D30: =IF($L$30<>"",IF(INPUT!$H$10=1,(_xlfn.NORM.DIST(C30,$L$30,$M$30,TRUE)-_xlfn.NORM.DIST(B30,$L$30,$M$30,TRUE))*BRLRWT!$H$10/100,(_xlfn.NORM.DIST(C30,$L$30,$M$30,TRUE)-_xlfn.NORM.DIST(B30,$L$30,$M$30,TRUE))),"") -> 0.06162309752 | E30: =IF($L$31<>"",IF(INPUT!$H$10=1,(_xlfn.NORM.DIST(C30,$L$31,$M$31,TRUE)-_xlfn.NORM.DIST(B30,$L$31,$M$31,TRUE))*(1-BRLRWT!$H$10/100),(_xlfn.NORM.DIST(C30,$L$31,$M$31,TRUE)-_xlfn.NORM.DIST(B30,$L$31,$M$31,TRUE))),"") -> 0.03232599811 | F30: 0.09394909563 | G30: =IF(D30<>"",D30*BRLRWT!$H$9*1000,"") -> 431.3616826 | H30: =IF(E30<>"",E30*BRLRWT!$H$9*1000,"") -> 226.2819868 | I30: 657.6436694 | K30: Male | L30: 0.8623746224 | M30: 0.08688939453 | N30: =IF(L30<>"",M30/L30*100,"") -> 10.07559734
B31: 0.9053926175 | C31: 0.9338624863 | D31: =IF($L$30<>"",IF(INPUT!$H$10=1,(_xlfn.NORM.DIST(C31,$L$30,$M$30,TRUE)-_xlfn.NORM.DIST(B31,$L$30,$M$30,TRUE))*BRLRWT!$H$10/100,(_xlfn.NORM.DIST(C31,$L$30,$M$30,TRUE)-_xlfn.NORM.DIST(B31,$L$30,$M$30,TRUE))),"") -> 0.05247112614 | E31: =IF($L$31<>"",IF(INPUT!$H$10=1,(_xlfn.NORM.DIST(C31,$L$31,$M$31,TRUE)-_xlfn.NORM.DIST(B31,$L$31,$M$31,TRUE))*(1-BRLRWT!$H$10/100),(_xlfn.NORM.DIST(C31,$L$31,$M$31,TRUE)-_xlfn.NORM.DIST(B31,$L$31,$M$31,TRUE))),"") -> 0.0206443152 | F31: 0.07311544134 | G31: =IF(D31<>"",D31*BRLRWT!$H$9*1000,"") -> 367.297883 | H31: =IF(E31<>"",E31*BRLRWT!$H$9*1000,"") -> 144.5102064 | I31: 511.8080894 | K31: Female | L31: 0.7882860541 | M31: 0.08583201152 | N31: =IF(L31<>"",M31/L31*100,"") -> 10.88843461
B32: 0.9338624863 | C32: 0.962332355 | D32: =IF($L$30<>"",IF(INPUT!$H$10=1,(_xlfn.NORM.DIST(C32,$L$30,$M$30,TRUE)-_xlfn.NORM.DIST(B32,$L$30,$M$30,TRUE))*BRLRWT!$H$10/100,(_xlfn.NORM.DIST(C32,$L$30,$M$30,TRUE)-_xlfn.NORM.DIST(B32,$L$30,$M$30,TRUE))),"") -> 0.04016858977 | E32: =IF($L$31<>"",IF(INPUT!$H$10=1,(_xlfn.NORM.DIST(C32,$L$31,$M$31,TRUE)-_xlfn.NORM.DIST(B32,$L$31,$M$31,TRUE))*(1-BRLRWT!$H$10/100),(_xlfn.NORM.DIST(C32,$L$31,$M$31,TRUE)-_xlfn.NORM.DIST(B32,$L$31,$M$31,TRUE))),"") -> 0.01182221256 | F32: 0.05199080233 | G32: =IF(D32<>"",D32*BRLRWT!$H$9*1000,"") -> 281.1801284 | H32: =IF(E32<>"",E32*BRLRWT!$H$9*1000,"") -> 82.75548793 | I32: 363.9356163 | K32: S/Run | L32: 0.8253303382 | M32: 0.0939719614 | N32: =IF(L32<>"",M32/L32*100,"") -> 11.38598172
B33: 0.962332355 | C33: 0.9908022238 | D33: =IF($L$30<>"",IF(INPUT!$H$10=1,(_xlfn.NORM.DIST(C33,$L$30,$M$30,TRUE)-_xlfn.NORM.DIST(B33,$L$30,$M$30,TRUE))*BRLRWT!$H$10/100,(_xlfn.NORM.DIST(C33,$L$30,$M$30,TRUE)-_xlfn.NORM.DIST(B33,$L$30,$M$30,TRUE))),"") -> 0.02764654954 | E33: =IF($L$31<>"",IF(INPUT!$H$10=1,(_xlfn.NORM.DIST(C33,$L$31,$M$31,TRUE)-_xlfn.NORM.DIST(B33,$L$31,$M$31,TRUE))*(1-BRLRWT!$H$10/100),(_xlfn.NORM.DIST(C33,$L$31,$M$31,TRUE)-_xlfn.NORM.DIST(B33,$L$31,$M$31,TRUE))),"") -> 0.006070775528 | F33: 0.03371732506 | G33: =IF(D33<>"",D33*BRLRWT!$H$9*1000,"") -> 193.5258468 | H33: =IF(E33<>"",E33*BRLRWT!$H$9*1000,"") -> 42.49542869 | I33: 236.0212755
B34: 0.9908022238 | C34: 1.019272093 | D34: =IF($L$30<>"",IF(INPUT!$H$10=1,(_xlfn.NORM.DIST(C34,$L$30,$M$30,TRUE)-_xlfn.NORM.DIST(B34,$L$30,$M$30,TRUE))*BRLRWT!$H$10/100,(_xlfn.NORM.DIST(C34,$L$30,$M$30,TRUE)-_xlfn.NORM.DIST(B34,$L$30,$M$30,TRUE))),"") -> 0.01710731249 | E34: =IF($L$31<>"",IF(INPUT!$H$10=1,(_xlfn.NORM.DIST(C34,$L$31,$M$31,TRUE)-_xlfn.NORM.DIST(B34,$L$31,$M$31,TRUE))*(1-BRLRWT!$H$10/100),(_xlfn.NORM.DIST(C34,$L$31,$M$31,TRUE)-_xlfn.NORM.DIST(B34,$L$31,$M$31,TRUE))),"") -> 0.002795333445 | F34: 0.01990264593 | G34: =IF(D34<>"",D34*BRLRWT!$H$9*1000,"") -> 119.7511874 | H34: =IF(E34<>"",E34*BRLRWT!$H$9*1000,"") -> 19.56733412 | I34: 139.3185215
B35: 1.019272093 | C35: 1.047741961 | D35: =IF($L$30<>"",IF(INPUT!$H$10=1,(_xlfn.NORM.DIST(C35,$L$30,$M$30,TRUE)-_xlfn.NORM.DIST(B35,$L$30,$M$30,TRUE))*BRLRWT!$H$10/100,(_xlfn.NORM.DIST(C35,$L$30,$M$30,TRUE)-_xlfn.NORM.DIST(B35,$L$30,$M$30,TRUE))),"") -> 0.009517152647 | E35: =IF($L$31<>"",IF(INPUT!$H$10=1,(_xlfn.NORM.DIST(C35,$L$31,$M$31,TRUE)-_xlfn.NORM.DIST(B35,$L$31,$M$31,TRUE))*(1-BRLRWT!$H$10/100),(_xlfn.NORM.DIST(C35,$L$31,$M$31,TRUE)-_xlfn.NORM.DIST(B35,$L$31,$M$31,TRUE))),"") -> 0.001154153429 | F35: 0.01067130608 | G35: =IF(D35<>"",D35*BRLRWT!$H$9*1000,"") -> 66.62006853 | H35: =IF(E35<>"",E35*BRLRWT!$H$9*1000,"") -> 8.079074001 | I35: 74.69914253
B36: 1.047741961 | C36: 1.07621183 | D36: =IF($L$30<>"",IF(INPUT!$H$10=1,(_xlfn.NORM.DIST(C36,$L$30,$M$30,TRUE)-_xlfn.NORM.DIST(B36,$L$30,$M$30,TRUE))*BRLRWT!$H$10/100,(_xlfn.NORM.DIST(C36,$L$30,$M$30,TRUE)-_xlfn.NORM.DIST(B36,$L$30,$M$30,TRUE))),"") -> 0.004760078627 | E36: =IF($L$31<>"",IF(INPUT!$H$10=1,(_xlfn.NORM.DIST(C36,$L$31,$M$31,TRUE)-_xlfn.NORM.DIST(B36,$L$31,$M$31,TRUE))*(1-BRLRWT!$H$10/100),(_xlfn.NORM.DIST(C36,$L$31,$M$31,TRUE)-_xlfn.NORM.DIST(B36,$L$31,$M$31,TRUE))),"") -> 0.0004272971075 | F36: 0.005187375734 | G36: =IF(D36<>"",D36*BRLRWT!$H$9*1000,"") -> 33.32055039 | H36: =IF(E36<>"",E36*BRLRWT!$H$9*1000,"") -> 2.991079753 | I36: 36.31163014
B37: 1.07621183 | C37: 1.104681699 | D37: =IF($L$30<>"",IF(INPUT!$H$10=1,(_xlfn.NORM.DIST(C37,$L$30,$M$30,TRUE)-_xlfn.NORM.DIST(B37,$L$30,$M$30,TRUE))*BRLRWT!$H$10/100,(_xlfn.NORM.DIST(C37,$L$30,$M$30,TRUE)-_xlfn.NORM.DIST(B37,$L$30,$M$30,TRUE))),"") -> 0.002140425333 | E37: =IF($L$31<>"",IF(INPUT!$H$10=1,(_xlfn.NORM.DIST(C37,$L$31,$M$31,TRUE)-_xlfn.NORM.DIST(B37,$L$31,$M$31,TRUE))*(1-BRLRWT!$H$10/100),(_xlfn.NORM.DIST(C37,$L$31,$M$31,TRUE)-_xlfn.NORM.DIST(B37,$L$31,$M$31,TRUE))),"") -> 0.0001418497003 | F37: 0.002282275033 | G37: =IF(D37<>"",D37*BRLRWT!$H$9*1000,"") -> 14.98297733 | H37: =IF(E37<>"",E37*BRLRWT!$H$9*1000,"") -> 0.992947902 | I37: 15.97592523
B38: 1.104681699 | C38: 1.133151568 | D38: =IF($L$30<>"",IF(INPUT!$H$10=1,(_xlfn.NORM.DIST(C38,$L$30,$M$30,TRUE)-_xlfn.NORM.DIST(B38,$L$30,$M$30,TRUE))*BRLRWT!$H$10/100,(_xlfn.NORM.DIST(C38,$L$30,$M$30,TRUE)-_xlfn.NORM.DIST(B38,$L$30,$M$30,TRUE))),"") -> 0.0008652896479 | E38: =IF($L$31<>"",IF(INPUT!$H$10=1,(_xlfn.NORM.DIST(C38,$L$31,$M$31,TRUE)-_xlfn.NORM.DIST(B38,$L$31,$M$31,TRUE))*(1-BRLRWT!$H$10/100),(_xlfn.NORM.DIST(C38,$L$31,$M$31,TRUE)-_xlfn.NORM.DIST(B38,$L$31,$M$31,TRUE))),"") -> 4.222349098e-05 | F38: 0.0009075131388 | G38: =IF(D38<>"",D38*BRLRWT!$H$9*1000,"") -> 6.057027535 | H38: =IF(E38<>"",E38*BRLRWT!$H$9*1000,"") -> 0.2955644369 | I38: 6.352591972
B39: 1.133151568 | C39: 1.161621436 | D39: =IF($L$30<>"",IF(INPUT!$H$10=1,(_xlfn.NORM.DIST(C39,$L$30,$M$30,TRUE)-_xlfn.NORM.DIST(B39,$L$30,$M$30,TRUE))*BRLRWT!$H$10/100,(_xlfn.NORM.DIST(C39,$L$30,$M$30,TRUE)-_xlfn.NORM.DIST(B39,$L$30,$M$30,TRUE))),"") -> 0.0003144811442 | E39: =IF($L$31<>"",IF(INPUT!$H$10=1,(_xlfn.NORM.DIST(C39,$L$31,$M$31,TRUE)-_xlfn.NORM.DIST(B39,$L$31,$M$31,TRUE))*(1-BRLRWT!$H$10/100),(_xlfn.NORM.DIST(C39,$L$31,$M$31,TRUE)-_xlfn.NORM.DIST(B39,$L$31,$M$31,TRUE))),"") -> 1.126942887e-05 | F39: 0.000325750573 | G39: =IF(D39<>"",D39*BRLRWT!$H$9*1000,"") -> 2.201368009 | H39: =IF(E39<>"",E39*BRLRWT!$H$9*1000,"") -> 0.07888600206 | I39: 2.280254011
B40: 1.161621436 | C40: 1.190091305 | D40: =IF($L$30<>"",IF(INPUT!$H$10=1,(_xlfn.NORM.DIST(C40,$L$30,$M$30,TRUE)-_xlfn.NORM.DIST(B40,$L$30,$M$30,TRUE))*BRLRWT!$H$10/100,(_xlfn.NORM.DIST(C40,$L$30,$M$30,TRUE)-_xlfn.NORM.DIST(B40,$L$30,$M$30,TRUE))),"") -> 0.000102753168 | E40: =IF($L$31<>"",IF(INPUT!$H$10=1,(_xlfn.NORM.DIST(C40,$L$31,$M$31,TRUE)-_xlfn.NORM.DIST(B40,$L$31,$M$31,TRUE))*(1-BRLRWT!$H$10/100),(_xlfn.NORM.DIST(C40,$L$31,$M$31,TRUE)-_xlfn.NORM.DIST(B40,$L$31,$M$31,TRUE))),"") -> 2.69690837e-06 | F40: 0.0001054500764 | G40: =IF(D40<>"",D40*BRLRWT!$H$9*1000,"") -> 0.7192721759 | H40: =IF(E40<>"",E40*BRLRWT!$H$9*1000,"") -> 0.01887835859 | I40: 0.7381505345
B41: 1.190091305 | C41: 1.218561174 | D41: =IF($L$30<>"",IF(INPUT!$H$10=1,(_xlfn.NORM.DIST(C41,$L$30,$M$30,TRUE)-_xlfn.NORM.DIST(B41,$L$30,$M$30,TRUE))*BRLRWT!$H$10/100,(_xlfn.NORM.DIST(C41,$L$30,$M$30,TRUE)-_xlfn.NORM.DIST(B41,$L$30,$M$30,TRUE))),"") -> 3.018275012e-05 | E41: =IF($L$31<>"",IF(INPUT!$H$10=1,(_xlfn.NORM.DIST(C41,$L$31,$M$31,TRUE)-_xlfn.NORM.DIST(B41,$L$31,$M$31,TRUE))*(1-BRLRWT!$H$10/100),(_xlfn.NORM.DIST(C41,$L$31,$M$31,TRUE)-_xlfn.NORM.DIST(B41,$L$31,$M$31,TRUE))),"") -> 5.78683542e-07 | F41: 3.076143366e-05 | G41: =IF(D41<>"",D41*BRLRWT!$H$9*1000,"") -> 0.2112792508 | H41: =IF(E41<>"",E41*BRLRWT!$H$9*1000,"") -> 0.004050784794 | I41: 0.2153300356
B42: 1.218561174 | C42: 1.247031043 | D42: =IF($L$30<>"",IF(INPUT!$H$10=1,(_xlfn.NORM.DIST(C42,$L$30,$M$30,TRUE)-_xlfn.NORM.DIST(B42,$L$30,$M$30,TRUE))*BRLRWT!$H$10/100,(_xlfn.NORM.DIST(C42,$L$30,$M$30,TRUE)-_xlfn.NORM.DIST(B42,$L$30,$M$30,TRUE))),"") -> 7.970407204e-06 | E42: =IF($L$31<>"",IF(INPUT!$H$10=1,(_xlfn.NORM.DIST(C42,$L$31,$M$31,TRUE)-_xlfn.NORM.DIST(B42,$L$31,$M$31,TRUE))*(1-BRLRWT!$H$10/100),(_xlfn.NORM.DIST(C42,$L$31,$M$31,TRUE)-_xlfn.NORM.DIST(B42,$L$31,$M$31,TRUE))),"") -> 1.113321438e-07 | F42: 8.081739348e-06 | G42: =IF(D42<>"",D42*BRLRWT!$H$9*1000,"") -> 0.05579285043 | H42: =IF(E42<>"",E42*BRLRWT!$H$9*1000,"") -> 0.0007793250065 | I42: 0.05657217544
B43: 1.247031043 | C43: 1.275500911 | D43: =IF($L$30<>"",IF(INPUT!$H$10=1,(_xlfn.NORM.DIST(C43,$L$30,$M$30,TRUE)-_xlfn.NORM.DIST(B43,$L$30,$M$30,TRUE))*BRLRWT!$H$10/100,(_xlfn.NORM.DIST(C43,$L$30,$M$30,TRUE)-_xlfn.NORM.DIST(B43,$L$30,$M$30,TRUE))),"") -> 1.892148195e-06 | E43: =IF($L$31<>"",IF(INPUT!$H$10=1,(_xlfn.NORM.DIST(C43,$L$31,$M$31,TRUE)-_xlfn.NORM.DIST(B43,$L$31,$M$31,TRUE))*(1-BRLRWT!$H$10/100),(_xlfn.NORM.DIST(C43,$L$31,$M$31,TRUE)-_xlfn.NORM.DIST(B43,$L$31,$M$31,TRUE))),"") -> 1.920428283e-08 | F43: 1.911352478e-06 | G43: =IF(D43<>"",D43*BRLRWT!$H$9*1000,"") -> 0.01324503737 | H43: =IF(E43<>"",E43*BRLRWT!$H$9*1000,"") -> 0.0001344299798 | I43: 0.01337946735
B44: 1.275500911 | C44: 1.30397078 | D44: =IF($L$30<>"",IF(INPUT!$H$10=1,(_xlfn.NORM.DIST(C44,$L$30,$M$30,TRUE)-_xlfn.NORM.DIST(B44,$L$30,$M$30,TRUE))*BRLRWT!$H$10/100,(_xlfn.NORM.DIST(C44,$L$30,$M$30,TRUE)-_xlfn.NORM.DIST(B44,$L$30,$M$30,TRUE))),"") -> 4.038101726e-07 | E44: =IF($L$31<>"",IF(INPUT!$H$10=1,(_xlfn.NORM.DIST(C44,$L$31,$M$31,TRUE)-_xlfn.NORM.DIST(B44,$L$31,$M$31,TRUE))*(1-BRLRWT!$H$10/100),(_xlfn.NORM.DIST(C44,$L$31,$M$31,TRUE)-_xlfn.NORM.DIST(B44,$L$31,$M$31,TRUE))),"") -> 2.97007241e-09 | F44: 4.06780245e-07 | G44: =IF(D44<>"",D44*BRLRWT!$H$9*1000,"") -> 0.002826671208 | H44: =IF(E44<>"",E44*BRLRWT!$H$9*1000,"") -> 2.079050687e-05 | I44: 0.002847461715
B45: 1.30397078 | C45: ="inf." -> inf. | D45: =IF($L$30<>"",IF(INPUT!$H$10=1,(1-_xlfn.NORM.DIST(B45,$L$30,$M$30,TRUE))*BRLRWT!$H$10/100,(1-_xlfn.NORM.DIST(B45,$L$30,$M$30,TRUE))),"") -> 9.323320249e-08 | E45: =IF($L$31<>"",IF(INPUT!$H$10=1,(1-_xlfn.NORM.DIST(B44,$L$31,$M$31,TRUE))*(1-BRLRWT!$H$10/100),(1-_xlfn.NORM.DIST(B44,$L$31,$M$31,TRUE))),"") -> 3.439434626e-09 | F45: 9.667263712e-08 | G45: =IF(D45<>"",D45*BRLRWT!$H$9*1000,"") -> 0.0006526324174 | H45: =IF(E45<>"",E45*BRLRWT!$H$9*1000,"") -> 2.407604238e-05 | I45: 0.0006767084598
B46: Total | D46: =SUM(D12:D45) -> 0.5 | E46: 0.500000003 | F46: 1.000000003 | G46: 3500 | H46: 3500.000021 | I46: 7000.000021

Sheet FilletWT
A8: 3-3. Results - Fillet Weight Distribution | K8: Breed
B10: Weight (lbs) | D10: Percentage | G10: Numbers
B11: Min. (>) | C11: Max. (≤) | D11: Male | E11: Female | F11: S/Run | G11: Male | H11: Female | I11: S/Run
B12: ="-inf." -> -inf. | C12: =$M$13 -> 0.3318272 | D12: =IF($L$30<>"",IF(INPUT!$H$10=1,_xlfn.NORM.DIST(C12,$L$30,$M$30,TRUE)*BRLRWT!$H$10/100,_xlfn.NORM.DIST(C12,$L$30,$M$30,TRUE)),"") -> 1.640886614e-08 | E12: =IF($L$31<>"",IF(INPUT!$H$10=1,_xlfn.NORM.DIST(C12,$L$31,$M$31,TRUE)*(1-BRLRWT!$H$10/100),_xlfn.NORM.DIST(C12,$L$31,$M$31,TRUE)),"") -> 1.287096075e-06 | F12: =IF(D12<>"",IF(E12<>"",D12+E12,""),"") -> 1.303504941e-06 | G12: =IF(D12<>"",D12*BRLRWT!$H$9*1000,"") -> 0.000114862063 | H12: =IF(E12<>"",E12*BRLRWT!$H$9*1000,"") -> 0.009009672526 | I12: =IF(G12<>"",IF(H12<>"",G12+H12,""),"") -> 0.009124534589 | L12: Range
B13: =C12 -> 0.3318272 | C13: =C12+$M$14 -> 0.3555195738 | D13: =IF($L$30<>"",IF(INPUT!$H$10=1,(_xlfn.NORM.DIST(C13,$L$30,$M$30,TRUE)-_xlfn.NORM.DIST(B13,$L$30,$M$30,TRUE))*BRLRWT!$H$10/100,(_xlfn.NORM.DIST(C13,$L$30,$M$30,TRUE)-_xlfn.NORM.DIST(B13,$L$30,$M$30,TRUE))),"") -> 7.809190586e-08 | E13: =IF($L$31<>"",IF(INPUT!$H$10=1,(_xlfn.NORM.DIST(C13,$L$31,$M$31,TRUE)-_xlfn.NORM.DIST(B13,$L$31,$M$31,TRUE))*(1-BRLRWT!$H$10/100),(_xlfn.NORM.DIST(C13,$L$31,$M$31,TRUE)-_xlfn.NORM.DIST(B13,$L$31,$M$31,TRUE))),"") -> 4.595871883e-06 | F13: =IF(D13<>"",IF(E13<>"",D13+E13,""),"") -> 4.673963789e-06 | G13: =IF(D13<>"",D13*BRLRWT!$H$9*1000,"") -> 0.000546643341 | H13: =IF(E13<>"",E13*BRLRWT!$H$9*1000,"") -> 0.03217110318 | I13: =IF(G13<>"",IF(H13<>"",G13+H13,""),"") -> 0.03271774652 | L13: min | M13: 0.3318272
B14: =C13 -> 0.3555195738 | C14: =C13+$M$14 -> 0.3792119475 | D14: =IF($L$30<>"",IF(INPUT!$H$10=1,(_xlfn.NORM.DIST(C14,$L$30,$M$30,TRUE)-_xlfn.NORM.DIST(B14,$L$30,$M$30,TRUE))*BRLRWT!$H$10/100,(_xlfn.NORM.DIST(C14,$L$30,$M$30,TRUE)-_xlfn.NORM.DIST(B14,$L$30,$M$30,TRUE))),"") -> 3.974529637e-07 | E14: =IF($L$31<>"",IF(INPUT!$H$10=1,(_xlfn.NORM.DIST(C14,$L$31,$M$31,TRUE)-_xlfn.NORM.DIST(B14,$L$31,$M$31,TRUE))*(1-BRLRWT!$H$10/100),(_xlfn.NORM.DIST(C14,$L$31,$M$31,TRUE)-_xlfn.NORM.DIST(B14,$L$31,$M$31,TRUE))),"") -> 1.834175778e-05 | F14: =IF(D14<>"",IF(E14<>"",D14+E14,""),"") -> 1.873921074e-05 | G14: =IF(D14<>"",D14*BRLRWT!$H$9*1000,"") -> 0.002782170746 | H14: =IF(E14<>"",E14*BRLRWT!$H$9*1000,"") -> 0.1283923044 | I14: =IF(G14<>"",IF(H14<>"",G14+H14,""),"") -> 0.1311744752 | L14: step size | M14: 0.02369237375
B15: =C14 -> 0.3792119475 | C15: =C14+$M$14 -> 0.4029043213 | D15: =IF($L$30<>"",IF(INPUT!$H$10=1,(_xlfn.NORM.DIST(C15,$L$30,$M$30,TRUE)-_xlfn.NORM.DIST(B15,$L$30,$M$30,TRUE))*BRLRWT!$H$10/100,(_xlfn.NORM.DIST(C15,$L$30,$M$30,TRUE)-_xlfn.NORM.DIST(B15,$L$30,$M$30,TRUE))),"") -> 1.823897178e-06 | E15: =IF($L$31<>"",IF(INPUT!$H$10=1,(_xlfn.NORM.DIST(C15,$L$31,$M$31,TRUE)-_xlfn.NORM.DIST(B15,$L$31,$M$31,TRUE))*(1-BRLRWT!$H$10/100),(_xlfn.NORM.DIST(C15,$L$31,$M$31,TRUE)-_xlfn.NORM.DIST(B15,$L$31,$M$31,TRUE))),"") -> 6.56979864e-05 | F15: 6.752188357e-05 | G15: =IF(D15<>"",D15*BRLRWT!$H$9*1000,"") -> 0.01276728025 | H15: =IF(E15<>"",E15*BRLRWT!$H$9*1000,"") -> 0.4598859048 | I15: 0.472653185
B16: 0.4029043213 | C16: 0.426596695 | D16: =IF($L$30<>"",IF(INPUT!$H$10=1,(_xlfn.NORM.DIST(C16,$L$30,$M$30,TRUE)-_xlfn.NORM.DIST(B16,$L$30,$M$30,TRUE))*BRLRWT!$H$10/100,(_xlfn.NORM.DIST(C16,$L$30,$M$30,TRUE)-_xlfn.NORM.DIST(B16,$L$30,$M$30,TRUE))),"") -> 7.546665024e-06 | E16: =IF($L$31<>"",IF(INPUT!$H$10=1,(_xlfn.NORM.DIST(C16,$L$31,$M$31,TRUE)-_xlfn.NORM.DIST(B16,$L$31,$M$31,TRUE))*(1-BRLRWT!$H$10/100),(_xlfn.NORM.DIST(C16,$L$31,$M$31,TRUE)-_xlfn.NORM.DIST(B16,$L$31,$M$31,TRUE))),"") -> 0.0002112061132 | F16: 0.0002187527783 | G16: =IF(D16<>"",D16*BRLRWT!$H$9*1000,"") -> 0.05282665517 | H16: =IF(E16<>"",E16*BRLRWT!$H$9*1000,"") -> 1.478442793 | I16: 1.531269448
B17: 0.426596695 | C17: 0.4502890688 | D17: =IF($L$30<>"",IF(INPUT!$H$10=1,(_xlfn.NORM.DIST(C17,$L$30,$M$30,TRUE)-_xlfn.NORM.DIST(B17,$L$30,$M$30,TRUE))*BRLRWT!$H$10/100,(_xlfn.NORM.DIST(C17,$L$30,$M$30,TRUE)-_xlfn.NORM.DIST(B17,$L$30,$M$30,TRUE))),"") -> 2.81549578e-05 | E17: =IF($L$31<>"",IF(INPUT!$H$10=1,(_xlfn.NORM.DIST(C17,$L$31,$M$31,TRUE)-_xlfn.NORM.DIST(B17,$L$31,$M$31,TRUE))*(1-BRLRWT!$H$10/100),(_xlfn.NORM.DIST(C17,$L$31,$M$31,TRUE)-_xlfn.NORM.DIST(B17,$L$31,$M$31,TRUE))),"") -> 0.0006094093877 | F17: 0.0006375643455 | G17: =IF(D17<>"",D17*BRLRWT!$H$9*1000,"") -> 0.1970847046 | H17: =IF(E17<>"",E17*BRLRWT!$H$9*1000,"") -> 4.265865714 | I17: 4.462950418
B18: 0.4502890688 | C18: 0.4739814425 | D18: =IF($L$30<>"",IF(INPUT!$H$10=1,(_xlfn.NORM.DIST(C18,$L$30,$M$30,TRUE)-_xlfn.NORM.DIST(B18,$L$30,$M$30,TRUE))*BRLRWT!$H$10/100,(_xlfn.NORM.DIST(C18,$L$30,$M$30,TRUE)-_xlfn.NORM.DIST(B18,$L$30,$M$30,TRUE))),"") -> 9.471188666e-05 | E18: =IF($L$31<>"",IF(INPUT!$H$10=1,(_xlfn.NORM.DIST(C18,$L$31,$M$31,TRUE)-_xlfn.NORM.DIST(B18,$L$31,$M$31,TRUE))*(1-BRLRWT!$H$10/100),(_xlfn.NORM.DIST(C18,$L$31,$M$31,TRUE)-_xlfn.NORM.DIST(B18,$L$31,$M$31,TRUE))),"") -> 0.001578209179 | F18: 0.001672921066 | G18: =IF(D18<>"",D18*BRLRWT!$H$9*1000,"") -> 0.6629832066 | H18: =IF(E18<>"",E18*BRLRWT!$H$9*1000,"") -> 11.04746425 | I18: 11.71044746
B19: 0.4739814425 | C19: 0.4976738163 | D19: =IF($L$30<>"",IF(INPUT!$H$10=1,(_xlfn.NORM.DIST(C19,$L$30,$M$30,TRUE)-_xlfn.NORM.DIST(B19,$L$30,$M$30,TRUE))*BRLRWT!$H$10/100,(_xlfn.NORM.DIST(C19,$L$30,$M$30,TRUE)-_xlfn.NORM.DIST(B19,$L$30,$M$30,TRUE))),"") -> 0.0002872819412 | E19: =IF($L$31<>"",IF(INPUT!$H$10=1,(_xlfn.NORM.DIST(C19,$L$31,$M$31,TRUE)-_xlfn.NORM.DIST(B19,$L$31,$M$31,TRUE))*(1-BRLRWT!$H$10/100),(_xlfn.NORM.DIST(C19,$L$31,$M$31,TRUE)-_xlfn.NORM.DIST(B19,$L$31,$M$31,TRUE))),"") -> 0.003668401865 | F19: 0.003955683806 | G19: =IF(D19<>"",D19*BRLRWT!$H$9*1000,"") -> 2.010973588 | H19: =IF(E19<>"",E19*BRLRWT!$H$9*1000,"") -> 25.67881306 | I19: 27.68978665
B20: 0.4976738163 | C20: 0.52136619 | D20: =IF($L$30<>"",IF(INPUT!$H$10=1,(_xlfn.NORM.DIST(C20,$L$30,$M$30,TRUE)-_xlfn.NORM.DIST(B20,$L$30,$M$30,TRUE))*BRLRWT!$H$10/100,(_xlfn.NORM.DIST(C20,$L$30,$M$30,TRUE)-_xlfn.NORM.DIST(B20,$L$30,$M$30,TRUE))),"") -> 0.0007857249204 | E20: =IF($L$31<>"",IF(INPUT!$H$10=1,(_xlfn.NORM.DIST(C20,$L$31,$M$31,TRUE)-_xlfn.NORM.DIST(B20,$L$31,$M$31,TRUE))*(1-BRLRWT!$H$10/100),(_xlfn.NORM.DIST(C20,$L$31,$M$31,TRUE)-_xlfn.NORM.DIST(B20,$L$31,$M$31,TRUE))),"") -> 0.007653320374 | F20: 0.008439045295 | G20: =IF(D20<>"",D20*BRLRWT!$H$9*1000,"") -> 5.500074443 | H20: =IF(E20<>"",E20*BRLRWT!$H$9*1000,"") -> 53.57324262 | I20: 59.07331706
B21: 0.52136619 | C21: 0.5450585638 | D21: =IF($L$30<>"",IF(INPUT!$H$10=1,(_xlfn.NORM.DIST(C21,$L$30,$M$30,TRUE)-_xlfn.NORM.DIST(B21,$L$30,$M$30,TRUE))*BRLRWT!$H$10/100,(_xlfn.NORM.DIST(C21,$L$30,$M$30,TRUE)-_xlfn.NORM.DIST(B21,$L$30,$M$30,TRUE))),"") -> 0.001937737304 | E21: =IF($L$31<>"",IF(INPUT!$H$10=1,(_xlfn.NORM.DIST(C21,$L$31,$M$31,TRUE)-_xlfn.NORM.DIST(B21,$L$31,$M$31,TRUE))*(1-BRLRWT!$H$10/100),(_xlfn.NORM.DIST(C21,$L$31,$M$31,TRUE)-_xlfn.NORM.DIST(B21,$L$31,$M$31,TRUE))),"") -> 0.01433134091 | F21: 0.01626907821 | G21: =IF(D21<>"",D21*BRLRWT!$H$9*1000,"") -> 13.56416113 | H21: =IF(E21<>"",E21*BRLRWT!$H$9*1000,"") -> 100.3193864 | I21: 113.8835475
B22: 0.5450585638 | C22: 0.5687509375 | D22: =IF($L$30<>"",IF(INPUT!$H$10=1,(_xlfn.NORM.DIST(C22,$L$30,$M$30,TRUE)-_xlfn.NORM.DIST(B22,$L$30,$M$30,TRUE))*BRLRWT!$H$10/100,(_xlfn.NORM.DIST(C22,$L$30,$M$30,TRUE)-_xlfn.NORM.DIST(B22,$L$30,$M$30,TRUE))),"") -> 0.004309083558 | E22: =IF($L$31<>"",IF(INPUT!$H$10=1,(_xlfn.NORM.DIST(C22,$L$31,$M$31,TRUE)-_xlfn.NORM.DIST(B22,$L$31,$M$31,TRUE))*(1-BRLRWT!$H$10/100),(_xlfn.NORM.DIST(C22,$L$31,$M$31,TRUE)-_xlfn.NORM.DIST(B22,$L$31,$M$31,TRUE))),"") -> 0.0240874348 | F22: 0.02839651835 | G22: =IF(D22<>"",D22*BRLRWT!$H$9*1000,"") -> 30.16358491 | H22: =IF(E22<>"",E22*BRLRWT!$H$9*1000,"") -> 168.6120436 | I22: 198.7756285
B23: 0.5687509375 | C23: 0.5924433113 | D23: =IF($L$30<>"",IF(INPUT!$H$10=1,(_xlfn.NORM.DIST(C23,$L$30,$M$30,TRUE)-_xlfn.NORM.DIST(B23,$L$30,$M$30,TRUE))*BRLRWT!$H$10/100,(_xlfn.NORM.DIST(C23,$L$30,$M$30,TRUE)-_xlfn.NORM.DIST(B23,$L$30,$M$30,TRUE))),"") -> 0.008640595814 | E23: =IF($L$31<>"",IF(INPUT!$H$10=1,(_xlfn.NORM.DIST(C23,$L$31,$M$31,TRUE)-_xlfn.NORM.DIST(B23,$L$31,$M$31,TRUE))*(1-BRLRWT!$H$10/100),(_xlfn.NORM.DIST(C23,$L$31,$M$31,TRUE)-_xlfn.NORM.DIST(B23,$L$31,$M$31,TRUE))),"") -> 0.03633820311 | F23: 0.04497879892 | G23: =IF(D23<>"",D23*BRLRWT!$H$9*1000,"") -> 60.4841707 | H23: =IF(E23<>"",E23*BRLRWT!$H$9*1000,"") -> 254.3674218 | I23: 314.8515925
B24: 0.5924433113 | C24: 0.616135685 | D24: =IF($L$30<>"",IF(INPUT!$H$10=1,(_xlfn.NORM.DIST(C24,$L$30,$M$30,TRUE)-_xlfn.NORM.DIST(B24,$L$30,$M$30,TRUE))*BRLRWT!$H$10/100,(_xlfn.NORM.DIST(C24,$L$30,$M$30,TRUE)-_xlfn.NORM.DIST(B24,$L$30,$M$30,TRUE))),"") -> 0.01562334311 | E24: =IF($L$31<>"",IF(INPUT!$H$10=1,(_xlfn.NORM.DIST(C24,$L$31,$M$31,TRUE)-_xlfn.NORM.DIST(B24,$L$31,$M$31,TRUE))*(1-BRLRWT!$H$10/100),(_xlfn.NORM.DIST(C24,$L$31,$M$31,TRUE)-_xlfn.NORM.DIST(B24,$L$31,$M$31,TRUE))),"") -> 0.0492047936 | F24: 0.06482813671 | G24: =IF(D24<>"",D24*BRLRWT!$H$9*1000,"") -> 109.3634018 | H24: =IF(E24<>"",E24*BRLRWT!$H$9*1000,"") -> 344.4335552 | I24: 453.796957
B25: 0.616135685 | C25: 0.6398280588 | D25: =IF($L$30<>"",IF(INPUT!$H$10=1,(_xlfn.NORM.DIST(C25,$L$30,$M$30,TRUE)-_xlfn.NORM.DIST(B25,$L$30,$M$30,TRUE))*BRLRWT!$H$10/100,(_xlfn.NORM.DIST(C25,$L$30,$M$30,TRUE)-_xlfn.NORM.DIST(B25,$L$30,$M$30,TRUE))),"") -> 0.02547288409 | E25: =IF($L$31<>"",IF(INPUT!$H$10=1,(_xlfn.NORM.DIST(C25,$L$31,$M$31,TRUE)-_xlfn.NORM.DIST(B25,$L$31,$M$31,TRUE))*(1-BRLRWT!$H$10/100),(_xlfn.NORM.DIST(C25,$L$31,$M$31,TRUE)-_xlfn.NORM.DIST(B25,$L$31,$M$31,TRUE))),"") -> 0.05980312245 | F25: 0.08527600655 | G25: =IF(D25<>"",D25*BRLRWT!$H$9*1000,"") -> 178.3101887 | H25: =IF(E25<>"",E25*BRLRWT!$H$9*1000,"") -> 418.6218572 | I25: 596.9320458
B26: 0.6398280588 | C26: 0.6635204325 | D26: =IF($L$30<>"",IF(INPUT!$H$10=1,(_xlfn.NORM.DIST(C26,$L$30,$M$30,TRUE)-_xlfn.NORM.DIST(B26,$L$30,$M$30,TRUE))*BRLRWT!$H$10/100,(_xlfn.NORM.DIST(C26,$L$30,$M$30,TRUE)-_xlfn.NORM.DIST(B26,$L$30,$M$30,TRUE))),"") -> 0.03745054175 | E26: =IF($L$31<>"",IF(INPUT!$H$10=1,(_xlfn.NORM.DIST(C26,$L$31,$M$31,TRUE)-_xlfn.NORM.DIST(B26,$L$31,$M$31,TRUE))*(1-BRLRWT!$H$10/100),(_xlfn.NORM.DIST(C26,$L$31,$M$31,TRUE)-_xlfn.NORM.DIST(B26,$L$31,$M$31,TRUE))),"") -> 0.06523996143 | F26: 0.1026905032 | G26: =IF(D26<>"",D26*BRLRWT!$H$9*1000,"") -> 262.1537922 | H26: =IF(E26<>"",E26*BRLRWT!$H$9*1000,"") -> 456.67973 | I26: 718.8335223
B27: 0.6635204325 | C27: 0.6872128063 | D27: =IF($L$30<>"",IF(INPUT!$H$10=1,(_xlfn.NORM.DIST(C27,$L$30,$M$30,TRUE)-_xlfn.NORM.DIST(B27,$L$30,$M$30,TRUE))*BRLRWT!$H$10/100,(_xlfn.NORM.DIST(C27,$L$30,$M$30,TRUE)-_xlfn.NORM.DIST(B27,$L$30,$M$30,TRUE))),"") -> 0.04964956962 | E27: =IF($L$31<>"",IF(INPUT!$H$10=1,(_xlfn.NORM.DIST(C27,$L$31,$M$31,TRUE)-_xlfn.NORM.DIST(B27,$L$31,$M$31,TRUE))*(1-BRLRWT!$H$10/100),(_xlfn.NORM.DIST(C27,$L$31,$M$31,TRUE)-_xlfn.NORM.DIST(B27,$L$31,$M$31,TRUE))),"") -> 0.06388182699 | F27: 0.1135313966 | G27: =IF(D27<>"",D27*BRLRWT!$H$9*1000,"") -> 347.5469873 | H27: =IF(E27<>"",E27*BRLRWT!$H$9*1000,"") -> 447.1727889 | I27: 794.7197762
B28: 0.6872128063 | C28: 0.71090518 | D28: =IF($L$30<>"",IF(INPUT!$H$10=1,(_xlfn.NORM.DIST(C28,$L$30,$M$30,TRUE)-_xlfn.NORM.DIST(B28,$L$30,$M$30,TRUE))*BRLRWT!$H$10/100,(_xlfn.NORM.DIST(C28,$L$30,$M$30,TRUE)-_xlfn.NORM.DIST(B28,$L$30,$M$30,TRUE))),"") -> 0.05935419515 | E28: =IF($L$31<>"",IF(INPUT!$H$10=1,(_xlfn.NORM.DIST(C28,$L$31,$M$31,TRUE)-_xlfn.NORM.DIST(B28,$L$31,$M$31,TRUE))*(1-BRLRWT!$H$10/100),(_xlfn.NORM.DIST(C28,$L$31,$M$31,TRUE)-_xlfn.NORM.DIST(B28,$L$31,$M$31,TRUE))),"") -> 0.05614546195 | F28: 0.1154996571 | G28: =IF(D28<>"",D28*BRLRWT!$H$9*1000,"") -> 415.4793661 | H28: =IF(E28<>"",E28*BRLRWT!$H$9*1000,"") -> 393.0182336 | I28: 808.4975997 | K28: - Summary
B29: 0.71090518 | C29: 0.7345975538 | D29: =IF($L$30<>"",IF(INPUT!$H$10=1,(_xlfn.NORM.DIST(C29,$L$30,$M$30,TRUE)-_xlfn.NORM.DIST(B29,$L$30,$M$30,TRUE))*BRLRWT!$H$10/100,(_xlfn.NORM.DIST(C29,$L$30,$M$30,TRUE)-_xlfn.NORM.DIST(B29,$L$30,$M$30,TRUE))),"") -> 0.06398329938 | E29: =IF($L$31<>"",IF(INPUT!$H$10=1,(_xlfn.NORM.DIST(C29,$L$31,$M$31,TRUE)-_xlfn.NORM.DIST(B29,$L$31,$M$31,TRUE))*(1-BRLRWT!$H$10/100),(_xlfn.NORM.DIST(C29,$L$31,$M$31,TRUE)-_xlfn.NORM.DIST(B29,$L$31,$M$31,TRUE))),"") -> 0.04429197902 | F29: 0.1082752784 | G29: =IF(D29<>"",D29*BRLRWT!$H$9*1000,"") -> 447.8830957 | H29: =IF(E29<>"",E29*BRLRWT!$H$9*1000,"") -> 310.0438532 | I29: 757.9269489 | K29: Unit (lbs) | L29: Mean | M29: Std. Dev. | N29: C.V. (%)
B30: 0.7345975538 | C30: 0.7582899275 | D30: =IF($L$30<>"",IF(INPUT!$H$10=1,(_xlfn.NORM.DIST(C30,$L$30,$M$30,TRUE)-_xlfn.NORM.DIST(B30,$L$30,$M$30,TRUE))*BRLRWT!$H$10/100,(_xlfn.NORM.DIST(C30,$L$30,$M$30,TRUE)-_xlfn.NORM.DIST(B30,$L$30,$M$30,TRUE))),"") -> 0.06219585312 | E30: =IF($L$31<>"",IF(INPUT!$H$10=1,(_xlfn.NORM.DIST(C30,$L$31,$M$31,TRUE)-_xlfn.NORM.DIST(B30,$L$31,$M$31,TRUE))*(1-BRLRWT!$H$10/100),(_xlfn.NORM.DIST(C30,$L$31,$M$31,TRUE)-_xlfn.NORM.DIST(B30,$L$31,$M$31,TRUE))),"") -> 0.03136227086 | F30: 0.09355812397 | G30: =IF(D30<>"",D30*BRLRWT!$H$9*1000,"") -> 435.3709718 | H30: =IF(E30<>"",E30*BRLRWT!$H$9*1000,"") -> 219.535896 | I30: 654.9068678 | K30: Male | L30: 0.7281074176 | M30: 0.07334819019 | N30: =IF(L30<>"",M30/L30*100,"") -> 10.07381444
B31: 0.7582899275 | C31: 0.7819823013 | D31: =IF($L$30<>"",IF(INPUT!$H$10=1,(_xlfn.NORM.DIST(C31,$L$30,$M$30,TRUE)-_xlfn.NORM.DIST(B31,$L$30,$M$30,TRUE))*BRLRWT!$H$10/100,(_xlfn.NORM.DIST(C31,$L$30,$M$30,TRUE)-_xlfn.NORM.DIST(B31,$L$30,$M$30,TRUE))),"") -> 0.05451747058 | E31: =IF($L$31<>"",IF(INPUT!$H$10=1,(_xlfn.NORM.DIST(C31,$L$31,$M$31,TRUE)-_xlfn.NORM.DIST(B31,$L$31,$M$31,TRUE))*(1-BRLRWT!$H$10/100),(_xlfn.NORM.DIST(C31,$L$31,$M$31,TRUE)-_xlfn.NORM.DIST(B31,$L$31,$M$31,TRUE))),"") -> 0.01993243266 | F31: 0.07444990324 | G31: =IF(D31<>"",D31*BRLRWT!$H$9*1000,"") -> 381.6222941 | H31: =IF(E31<>"",E31*BRLRWT!$H$9*1000,"") -> 139.5270286 | I31: 521.1493227 | K31: Female | L31: 0.6589076062 | M31: 0.0717494237 | N31: =IF(L31<>"",M31/L31*100,"") -> 10.88914789
B32: 0.7819823013 | C32: 0.805674675 | D32: =IF($L$30<>"",IF(INPUT!$H$10=1,(_xlfn.NORM.DIST(C32,$L$30,$M$30,TRUE)-_xlfn.NORM.DIST(B32,$L$30,$M$30,TRUE))*BRLRWT!$H$10/100,(_xlfn.NORM.DIST(C32,$L$30,$M$30,TRUE)-_xlfn.NORM.DIST(B32,$L$30,$M$30,TRUE))),"") -> 0.04309123065 | E32: =IF($L$31<>"",IF(INPUT!$H$10=1,(_xlfn.NORM.DIST(C32,$L$31,$M$31,TRUE)-_xlfn.NORM.DIST(B32,$L$31,$M$31,TRUE))*(1-BRLRWT!$H$10/100),(_xlfn.NORM.DIST(C32,$L$31,$M$31,TRUE)-_xlfn.NORM.DIST(B32,$L$31,$M$31,TRUE))),"") -> 0.01137054838 | F32: 0.05446177903 | G32: =IF(D32<>"",D32*BRLRWT!$H$9*1000,"") -> 301.6386145 | H32: =IF(E32<>"",E32*BRLRWT!$H$9*1000,"") -> 79.59383869 | I32: 381.2324532 | K32: S/Run | L32: 0.6935075119 | M32: 0.08038110397 | N32: =IF(L32<>"",M32/L32*100,"") -> 11.5905167
B33: 0.805674675 | C33: 0.8293670488 | D33: =IF($L$30<>"",IF(INPUT!$H$10=1,(_xlfn.NORM.DIST(C33,$L$30,$M$30,TRUE)-_xlfn.NORM.DIST(B33,$L$30,$M$30,TRUE))*BRLRWT!$H$10/100,(_xlfn.NORM.DIST(C33,$L$30,$M$30,TRUE)-_xlfn.NORM.DIST(B33,$L$30,$M$30,TRUE))),"") -> 0.03071284634 | E33: =IF($L$31<>"",IF(INPUT!$H$10=1,(_xlfn.NORM.DIST(C33,$L$31,$M$31,TRUE)-_xlfn.NORM.DIST(B33,$L$31,$M$31,TRUE))*(1-BRLRWT!$H$10/100),(_xlfn.NORM.DIST(C33,$L$31,$M$31,TRUE)-_xlfn.NORM.DIST(B33,$L$31,$M$31,TRUE))),"") -> 0.005821947082 | F33: 0.03653479342 | G33: =IF(D33<>"",D33*BRLRWT!$H$9*1000,"") -> 214.9899243 | H33: =IF(E33<>"",E33*BRLRWT!$H$9*1000,"") -> 40.75362958 | I33: 255.7435539
B34: 0.8293670488 | C34: 0.8530594225 | D34: =IF($L$30<>"",IF(INPUT!$H$10=1,(_xlfn.NORM.DIST(C34,$L$30,$M$30,TRUE)-_xlfn.NORM.DIST(B34,$L$30,$M$30,TRUE))*BRLRWT!$H$10/100,(_xlfn.NORM.DIST(C34,$L$30,$M$30,TRUE)-_xlfn.NORM.DIST(B34,$L$30,$M$30,TRUE))),"") -> 0.01973912193 | E34: =IF($L$31<>"",IF(INPUT!$H$10=1,(_xlfn.NORM.DIST(C34,$L$31,$M$31,TRUE)-_xlfn.NORM.DIST(B34,$L$31,$M$31,TRUE))*(1-BRLRWT!$H$10/100),(_xlfn.NORM.DIST(C34,$L$31,$M$31,TRUE)-_xlfn.NORM.DIST(B34,$L$31,$M$31,TRUE))),"") -> 0.002675579198 | F34: 0.02241470113 | G34: =IF(D34<>"",D34*BRLRWT!$H$9*1000,"") -> 138.1738535 | H34: =IF(E34<>"",E34*BRLRWT!$H$9*1000,"") -> 18.72905438 | I34: 156.9029079
B35: 0.8530594225 | C35: 0.8767517963 | D35: =IF($L$30<>"",IF(INPUT!$H$10=1,(_xlfn.NORM.DIST(C35,$L$30,$M$30,TRUE)-_xlfn.NORM.DIST(B35,$L$30,$M$30,TRUE))*BRLRWT!$H$10/100,(_xlfn.NORM.DIST(C35,$L$30,$M$30,TRUE)-_xlfn.NORM.DIST(B35,$L$30,$M$30,TRUE))),"") -> 0.01143958845 | E35: =IF($L$31<>"",IF(INPUT!$H$10=1,(_xlfn.NORM.DIST(C35,$L$31,$M$31,TRUE)-_xlfn.NORM.DIST(B35,$L$31,$M$31,TRUE))*(1-BRLRWT!$H$10/100),(_xlfn.NORM.DIST(C35,$L$31,$M$31,TRUE)-_xlfn.NORM.DIST(B35,$L$31,$M$31,TRUE))),"") -> 0.001103637916 | F35: 0.01254322636 | G35: =IF(D35<>"",D35*BRLRWT!$H$9*1000,"") -> 80.07711912 | H35: =IF(E35<>"",E35*BRLRWT!$H$9*1000,"") -> 7.725465415 | I35: 87.80258453
B36: 0.8767517963 | C36: 0.90044417 | D36: =IF($L$30<>"",IF(INPUT!$H$10=1,(_xlfn.NORM.DIST(C36,$L$30,$M$30,TRUE)-_xlfn.NORM.DIST(B36,$L$30,$M$30,TRUE))*BRLRWT!$H$10/100,(_xlfn.NORM.DIST(C36,$L$30,$M$30,TRUE)-_xlfn.NORM.DIST(B36,$L$30,$M$30,TRUE))),"") -> 0.00597813328 | E36: =IF($L$31<>"",IF(INPUT!$H$10=1,(_xlfn.NORM.DIST(C36,$L$31,$M$31,TRUE)-_xlfn.NORM.DIST(B36,$L$31,$M$31,TRUE))*(1-BRLRWT!$H$10/100),(_xlfn.NORM.DIST(C36,$L$31,$M$31,TRUE)-_xlfn.NORM.DIST(B36,$L$31,$M$31,TRUE))),"") -> 0.0004085928511 | F36: 0.006386726131 | G36: =IF(D36<>"",D36*BRLRWT!$H$9*1000,"") -> 41.84693296 | H36: =IF(E36<>"",E36*BRLRWT!$H$9*1000,"") -> 2.860149958 | I36: 44.70708292
B37: 0.90044417 | C37: 0.9241365438 | D37: =IF($L$30<>"",IF(INPUT!$H$10=1,(_xlfn.NORM.DIST(C37,$L$30,$M$30,TRUE)-_xlfn.NORM.DIST(B37,$L$30,$M$30,TRUE))*BRLRWT!$H$10/100,(_xlfn.NORM.DIST(C37,$L$30,$M$30,TRUE)-_xlfn.NORM.DIST(B37,$L$30,$M$30,TRUE))),"") -> 0.002817025859 | E37: =IF($L$31<>"",IF(INPUT!$H$10=1,(_xlfn.NORM.DIST(C37,$L$31,$M$31,TRUE)-_xlfn.NORM.DIST(B37,$L$31,$M$31,TRUE))*(1-BRLRWT!$H$10/100),(_xlfn.NORM.DIST(C37,$L$31,$M$31,TRUE)-_xlfn.NORM.DIST(B37,$L$31,$M$31,TRUE))),"") -> 0.0001357706703 | F37: 0.00295279653 | G37: =IF(D37<>"",D37*BRLRWT!$H$9*1000,"") -> 19.71918101 | H37: =IF(E37<>"",E37*BRLRWT!$H$9*1000,"") -> 0.9503946922 | I37: 20.66957571
B38: 0.9241365438 | C38: 0.9478289175 | D38: =IF($L$30<>"",IF(INPUT!$H$10=1,(_xlfn.NORM.DIST(C38,$L$30,$M$30,TRUE)-_xlfn.NORM.DIST(B38,$L$30,$M$30,TRUE))*BRLRWT!$H$10/100,(_xlfn.NORM.DIST(C38,$L$30,$M$30,TRUE)-_xlfn.NORM.DIST(B38,$L$30,$M$30,TRUE))),"") -> 0.001196969739 | E38: =IF($L$31<>"",IF(INPUT!$H$10=1,(_xlfn.NORM.DIST(C38,$L$31,$M$31,TRUE)-_xlfn.NORM.DIST(B38,$L$31,$M$31,TRUE))*(1-BRLRWT!$H$10/100),(_xlfn.NORM.DIST(C38,$L$31,$M$31,TRUE)-_xlfn.NORM.DIST(B38,$L$31,$M$31,TRUE))),"") -> 4.049184089e-05 | F38: 0.00123746158 | G38: =IF(D38<>"",D38*BRLRWT!$H$9*1000,"") -> 8.378788171 | H38: =IF(E38<>"",E38*BRLRWT!$H$9*1000,"") -> 0.2834428862 | I38: 8.662231058
B39: 0.9478289175 | C39: 0.9715212913 | D39: =IF($L$30<>"",IF(INPUT!$H$10=1,(_xlfn.NORM.DIST(C39,$L$30,$M$30,TRUE)-_xlfn.NORM.DIST(B39,$L$30,$M$30,TRUE))*BRLRWT!$H$10/100,(_xlfn.NORM.DIST(C39,$L$30,$M$30,TRUE)-_xlfn.NORM.DIST(B39,$L$30,$M$30,TRUE))),"") -> 0.0004586055352 | E39: =IF($L$31<>"",IF(INPUT!$H$10=1,(_xlfn.NORM.DIST(C39,$L$31,$M$31,TRUE)-_xlfn.NORM.DIST(B39,$L$31,$M$31,TRUE))*(1-BRLRWT!$H$10/100),(_xlfn.NORM.DIST(C39,$L$31,$M$31,TRUE)-_xlfn.NORM.DIST(B39,$L$31,$M$31,TRUE))),"") -> 1.083853027e-05 | F39: 0.0004694440655 | G39: =IF(D39<>"",D39*BRLRWT!$H$9*1000,"") -> 3.210238747 | H39: =IF(E39<>"",E39*BRLRWT!$H$9*1000,"") -> 0.07586971187 | I39: 3.286108458
B40: 0.9715212913 | C40: 0.995213665 | D40: =IF($L$30<>"",IF(INPUT!$H$10=1,(_xlfn.NORM.DIST(C40,$L$30,$M$30,TRUE)-_xlfn.NORM.DIST(B40,$L$30,$M$30,TRUE))*BRLRWT!$H$10/100,(_xlfn.NORM.DIST(C40,$L$30,$M$30,TRUE)-_xlfn.NORM.DIST(B40,$L$30,$M$30,TRUE))),"") -> 0.0001584366091 | E40: =IF($L$31<>"",IF(INPUT!$H$10=1,(_xlfn.NORM.DIST(C40,$L$31,$M$31,TRUE)-_xlfn.NORM.DIST(B40,$L$31,$M$31,TRUE))*(1-BRLRWT!$H$10/100),(_xlfn.NORM.DIST(C40,$L$31,$M$31,TRUE)-_xlfn.NORM.DIST(B40,$L$31,$M$31,TRUE))),"") -> 2.603809445e-06 | F40: 0.0001610404185 | G40: =IF(D40<>"",D40*BRLRWT!$H$9*1000,"") -> 1.109056263 | H40: =IF(E40<>"",E40*BRLRWT!$H$9*1000,"") -> 0.01822666612 | I40: 1.127282929
B41: 0.995213665 | C41: 1.018906039 | D41: =IF($L$30<>"",IF(INPUT!$H$10=1,(_xlfn.NORM.DIST(C41,$L$30,$M$30,TRUE)-_xlfn.NORM.DIST(B41,$L$30,$M$30,TRUE))*BRLRWT!$H$10/100,(_xlfn.NORM.DIST(C41,$L$30,$M$30,TRUE)-_xlfn.NORM.DIST(B41,$L$30,$M$30,TRUE))),"") -> 4.935463258e-05 | E41: =IF($L$31<>"",IF(INPUT!$H$10=1,(_xlfn.NORM.DIST(C41,$L$31,$M$31,TRUE)-_xlfn.NORM.DIST(B41,$L$31,$M$31,TRUE))*(1-BRLRWT!$H$10/100),(_xlfn.NORM.DIST(C41,$L$31,$M$31,TRUE)-_xlfn.NORM.DIST(B41,$L$31,$M$31,TRUE))),"") -> 5.614075347e-07 | F41: 4.991604011e-05 | G41: =IF(D41<>"",D41*BRLRWT!$H$9*1000,"") -> 0.345482428 | H41: =IF(E41<>"",E41*BRLRWT!$H$9*1000,"") -> 0.003929852743 | I41: 0.3494122808
B42: 1.018906039 | C42: 1.042598413 | D42: =IF($L$30<>"",IF(INPUT!$H$10=1,(_xlfn.NORM.DIST(C42,$L$30,$M$30,TRUE)-_xlfn.NORM.DIST(B42,$L$30,$M$30,TRUE))*BRLRWT!$H$10/100,(_xlfn.NORM.DIST(C42,$L$30,$M$30,TRUE)-_xlfn.NORM.DIST(B42,$L$30,$M$30,TRUE))),"") -> 1.386283797e-05 | E42: =IF($L$31<>"",IF(INPUT!$H$10=1,(_xlfn.NORM.DIST(C42,$L$31,$M$31,TRUE)-_xlfn.NORM.DIST(B42,$L$31,$M$31,TRUE))*(1-BRLRWT!$H$10/100),(_xlfn.NORM.DIST(C42,$L$31,$M$31,TRUE)-_xlfn.NORM.DIST(B42,$L$31,$M$31,TRUE))),"") -> 1.086354413e-07 | F42: 1.397147341e-05 | G42: =IF(D42<>"",D42*BRLRWT!$H$9*1000,"") -> 0.09703986578 | H42: =IF(E42<>"",E42*BRLRWT!$H$9*1000,"") -> 0.0007604480892 | I42: 0.09780031386
B43: 1.042598413 | C43: 1.066290786 | D43: =IF($L$30<>"",IF(INPUT!$H$10=1,(_xlfn.NORM.DIST(C43,$L$30,$M$30,TRUE)-_xlfn.NORM.DIST(B43,$L$30,$M$30,TRUE))*BRLRWT!$H$10/100,(_xlfn.NORM.DIST(C43,$L$30,$M$30,TRUE)-_xlfn.NORM.DIST(B43,$L$30,$M$30,TRUE))),"") -> 3.510941731e-06 | E43: =IF($L$31<>"",IF(INPUT!$H$10=1,(_xlfn.NORM.DIST(C43,$L$31,$M$31,TRUE)-_xlfn.NORM.DIST(B43,$L$31,$M$31,TRUE))*(1-BRLRWT!$H$10/100),(_xlfn.NORM.DIST(C43,$L$31,$M$31,TRUE)-_xlfn.NORM.DIST(B43,$L$31,$M$31,TRUE))),"") -> 1.88661311e-08 | F43: 3.529807862e-06 | G43: =IF(D43<>"",D43*BRLRWT!$H$9*1000,"") -> 0.02457659212 | H43: =IF(E43<>"",E43*BRLRWT!$H$9*1000,"") -> 0.0001320629177 | I43: 0.02470865503
B44: 1.066290786 | C44: 1.08998316 | D44: =IF($L$30<>"",IF(INPUT!$H$10=1,(_xlfn.NORM.DIST(C44,$L$30,$M$30,TRUE)-_xlfn.NORM.DIST(B44,$L$30,$M$30,TRUE))*BRLRWT!$H$10/100,(_xlfn.NORM.DIST(C44,$L$30,$M$30,TRUE)-_xlfn.NORM.DIST(B44,$L$30,$M$30,TRUE))),"") -> 8.017472652e-07 | E44: =IF($L$31<>"",IF(INPUT!$H$10=1,(_xlfn.NORM.DIST(C44,$L$31,$M$31,TRUE)-_xlfn.NORM.DIST(B44,$L$31,$M$31,TRUE))*(1-BRLRWT!$H$10/100),(_xlfn.NORM.DIST(C44,$L$31,$M$31,TRUE)-_xlfn.NORM.DIST(B44,$L$31,$M$31,TRUE))),"") -> 2.940395261e-09 | F44: 8.046876604e-07 | G44: =IF(D44<>"",D44*BRLRWT!$H$9*1000,"") -> 0.005612230856 | H44: =IF(E44<>"",E44*BRLRWT!$H$9*1000,"") -> 2.058276682e-05 | I44: 0.005632813623
B45: 1.08998316 | C45: ="inf." -> inf. | D45: =IF($L$30<>"",IF(INPUT!$H$10=1,(1-_xlfn.NORM.DIST(B45,$L$30,$M$30,TRUE))*BRLRWT!$H$10/100,(1-_xlfn.NORM.DIST(B45,$L$30,$M$30,TRUE))),"") -> 2.017471751e-07 | E45: =IF($L$31<>"",IF(INPUT!$H$10=1,(1-_xlfn.NORM.DIST(B44,$L$31,$M$31,TRUE))*(1-BRLRWT!$H$10/100),(1-_xlfn.NORM.DIST(B44,$L$31,$M$31,TRUE))),"") -> 3.409757476e-09 | F45: 2.051569326e-07 | G45: =IF(D45<>"",D45*BRLRWT!$H$9*1000,"") -> 0.001412230226 | H45: =IF(E45<>"",E45*BRLRWT!$H$9*1000,"") -> 2.386830233e-05 | I45: 0.001436098528
B46: Total | D46: =SUM(D12:D45) -> 0.5 | E46: 0.5000000029 | F46: 1.000000003 | G46: 3500 | H46: 3500.000021 | I46: 7000.000021

Sheet TenderWT
A8: 3-4. Results - Tender Weight Distribution | K8: Breed
B10: Weight (lbs) | D10: Percentage | G10: Numbers
B11: Min. (>) | C11: Max. (≤) | D11: Male | E11: Female | F11: S/Run | G11: Male | H11: Female | I11: S/Run
B12: ="-inf." -> -inf. | C12: =$M$13 -> 0.061311164 | D12: =IF($L$30<>"",IF(INPUT!$H$10=1,_xlfn.NORM.DIST(C12,$L$30,$M$30,TRUE)*BRLRWT!$H$10/100,_xlfn.NORM.DIST(C12,$L$30,$M$30,TRUE)),"") -> 1.640886614e-08 | E12: =IF($L$31<>"",IF(INPUT!$H$10=1,_xlfn.NORM.DIST(C12,$L$31,$M$31,TRUE)*(1-BRLRWT!$H$10/100),_xlfn.NORM.DIST(C12,$L$31,$M$31,TRUE)),"") -> 3.435345641e-07 | F12: =IF(D12<>"",IF(E12<>"",D12+E12,""),"") -> 3.599434303e-07 | G12: =IF(D12<>"",D12*BRLRWT!$H$9*1000,"") -> 0.000114862063 | H12: =IF(E12<>"",E12*BRLRWT!$H$9*1000,"") -> 0.002404741949 | I12: =IF(G12<>"",IF(H12<>"",G12+H12,""),"") -> 0.002519604012 | L12: Range
B13: =C12 -> 0.061311164 | C13: =C12+$M$14 -> 0.06607771325 | D13: =IF($L$30<>"",IF(INPUT!$H$10=1,(_xlfn.NORM.DIST(C13,$L$30,$M$30,TRUE)-_xlfn.NORM.DIST(B13,$L$30,$M$30,TRUE))*BRLRWT!$H$10/100,(_xlfn.NORM.DIST(C13,$L$30,$M$30,TRUE)-_xlfn.NORM.DIST(B13,$L$30,$M$30,TRUE))),"") -> 9.342053733e-08 | E13: =IF($L$31<>"",IF(INPUT!$H$10=1,(_xlfn.NORM.DIST(C13,$L$31,$M$31,TRUE)-_xlfn.NORM.DIST(B13,$L$31,$M$31,TRUE))*(1-BRLRWT!$H$10/100),(_xlfn.NORM.DIST(C13,$L$31,$M$31,TRUE)-_xlfn.NORM.DIST(B13,$L$31,$M$31,TRUE))),"") -> 1.436461322e-06 | F13: =IF(D13<>"",IF(E13<>"",D13+E13,""),"") -> 1.52988186e-06 | G13: =IF(D13<>"",D13*BRLRWT!$H$9*1000,"") -> 0.0006539437613 | H13: =IF(E13<>"",E13*BRLRWT!$H$9*1000,"") -> 0.01005522926 | I13: =IF(G13<>"",IF(H13<>"",G13+H13,""),"") -> 0.01070917302 | L13: min | M13: 0.061311164
B14: =C13 -> 0.06607771325 | C14: =C13+$M$14 -> 0.0708442625 | D14: =IF($L$30<>"",IF(INPUT!$H$10=1,(_xlfn.NORM.DIST(C14,$L$30,$M$30,TRUE)-_xlfn.NORM.DIST(B14,$L$30,$M$30,TRUE))*BRLRWT!$H$10/100,(_xlfn.NORM.DIST(C14,$L$30,$M$30,TRUE)-_xlfn.NORM.DIST(B14,$L$30,$M$30,TRUE))),"") -> 5.423773854e-07 | E14: =IF($L$31<>"",IF(INPUT!$H$10=1,(_xlfn.NORM.DIST(C14,$L$31,$M$31,TRUE)-_xlfn.NORM.DIST(B14,$L$31,$M$31,TRUE))*(1-BRLRWT!$H$10/100),(_xlfn.NORM.DIST(C14,$L$31,$M$31,TRUE)-_xlfn.NORM.DIST(B14,$L$31,$M$31,TRUE))),"") -> 6.480468188e-06 | F14: =IF(D14<>"",IF(E14<>"",D14+E14,""),"") -> 7.022845574e-06 | G14: =IF(D14<>"",D14*BRLRWT!$H$9*1000,"") -> 0.003796641698 | H14: =IF(E14<>"",E14*BRLRWT!$H$9*1000,"") -> 0.04536327732 | I14: =IF(G14<>"",IF(H14<>"",G14+H14,""),"") -> 0.04915991902 | L14: step size | M14: 0.00476654925
B15: =C14 -> 0.0708442625 | C15: =C14+$M$14 -> 0.07561081175 | D15: =IF($L$30<>"",IF(INPUT!$H$10=1,(_xlfn.NORM.DIST(C15,$L$30,$M$30,TRUE)-_xlfn.NORM.DIST(B15,$L$30,$M$30,TRUE))*BRLRWT!$H$10/100,(_xlfn.NORM.DIST(C15,$L$30,$M$30,TRUE)-_xlfn.NORM.DIST(B15,$L$30,$M$30,TRUE))),"") -> 2.785718913e-06 | E15: =IF($L$31<>"",IF(INPUT!$H$10=1,(_xlfn.NORM.DIST(C15,$L$31,$M$31,TRUE)-_xlfn.NORM.DIST(B15,$L$31,$M$31,TRUE))*(1-BRLRWT!$H$10/100),(_xlfn.NORM.DIST(C15,$L$31,$M$31,TRUE)-_xlfn.NORM.DIST(B15,$L$31,$M$31,TRUE))),"") -> 2.609396554e-05 | F15: 2.887968445e-05 | G15: =IF(D15<>"",D15*BRLRWT!$H$9*1000,"") -> 0.01950003239 | H15: =IF(E15<>"",E15*BRLRWT!$H$9*1000,"") -> 0.1826577587 | I15: 0.2021577911
B16: 0.07561081175 | C16: 0.080377361 | D16: =IF($L$30<>"",IF(INPUT!$H$10=1,(_xlfn.NORM.DIST(C16,$L$30,$M$30,TRUE)-_xlfn.NORM.DIST(B16,$L$30,$M$30,TRUE))*BRLRWT!$H$10/100,(_xlfn.NORM.DIST(C16,$L$30,$M$30,TRUE)-_xlfn.NORM.DIST(B16,$L$30,$M$30,TRUE))),"") -> 1.265781049e-05 | E16: =IF($L$31<>"",IF(INPUT!$H$10=1,(_xlfn.NORM.DIST(C16,$L$31,$M$31,TRUE)-_xlfn.NORM.DIST(B16,$L$31,$M$31,TRUE))*(1-BRLRWT!$H$10/100),(_xlfn.NORM.DIST(C16,$L$31,$M$31,TRUE)-_xlfn.NORM.DIST(B16,$L$31,$M$31,TRUE))),"") -> 9.377812754e-05 | F16: 0.000106435938 | G16: =IF(D16<>"",D16*BRLRWT!$H$9*1000,"") -> 0.08860467345 | H16: =IF(E16<>"",E16*BRLRWT!$H$9*1000,"") -> 0.6564468927 | I16: 0.7450515662
B17: 0.080377361 | C17: 0.08514391025 | D17: =IF($L$30<>"",IF(INPUT!$H$10=1,(_xlfn.NORM.DIST(C17,$L$30,$M$30,TRUE)-_xlfn.NORM.DIST(B17,$L$30,$M$30,TRUE))*BRLRWT!$H$10/100,(_xlfn.NORM.DIST(C17,$L$30,$M$30,TRUE)-_xlfn.NORM.DIST(B17,$L$30,$M$30,TRUE))),"") -> 5.088316319e-05 | E17: =IF($L$31<>"",IF(INPUT!$H$10=1,(_xlfn.NORM.DIST(C17,$L$31,$M$31,TRUE)-_xlfn.NORM.DIST(B17,$L$31,$M$31,TRUE))*(1-BRLRWT!$H$10/100),(_xlfn.NORM.DIST(C17,$L$31,$M$31,TRUE)-_xlfn.NORM.DIST(B17,$L$31,$M$31,TRUE))),"") -> 0.0003008132253 | F17: 0.0003516963884 | G17: =IF(D17<>"",D17*BRLRWT!$H$9*1000,"") -> 0.3561821423 | H17: =IF(E17<>"",E17*BRLRWT!$H$9*1000,"") -> 2.105692577 | I17: 2.461874719
B18: 0.08514391025 | C18: 0.0899104595 | D18: =IF($L$30<>"",IF(INPUT!$H$10=1,(_xlfn.NORM.DIST(C18,$L$30,$M$30,TRUE)-_xlfn.NORM.DIST(B18,$L$30,$M$30,TRUE))*BRLRWT!$H$10/100,(_xlfn.NORM.DIST(C18,$L$30,$M$30,TRUE)-_xlfn.NORM.DIST(B18,$L$30,$M$30,TRUE))),"") -> 0.000180963917 | E18: =IF($L$31<>"",IF(INPUT!$H$10=1,(_xlfn.NORM.DIST(C18,$L$31,$M$31,TRUE)-_xlfn.NORM.DIST(B18,$L$31,$M$31,TRUE))*(1-BRLRWT!$H$10/100),(_xlfn.NORM.DIST(C18,$L$31,$M$31,TRUE)-_xlfn.NORM.DIST(B18,$L$31,$M$31,TRUE))),"") -> 0.000861255274 | F18: 0.001042219191 | G18: =IF(D18<>"",D18*BRLRWT!$H$9*1000,"") -> 1.266747419 | H18: =IF(E18<>"",E18*BRLRWT!$H$9*1000,"") -> 6.028786918 | I18: 7.295534337
B19: 0.0899104595 | C19: 0.09467700875 | D19: =IF($L$30<>"",IF(INPUT!$H$10=1,(_xlfn.NORM.DIST(C19,$L$30,$M$30,TRUE)-_xlfn.NORM.DIST(B19,$L$30,$M$30,TRUE))*BRLRWT!$H$10/100,(_xlfn.NORM.DIST(C19,$L$30,$M$30,TRUE)-_xlfn.NORM.DIST(B19,$L$30,$M$30,TRUE))),"") -> 0.000569403165 | E19: =IF($L$31<>"",IF(INPUT!$H$10=1,(_xlfn.NORM.DIST(C19,$L$31,$M$31,TRUE)-_xlfn.NORM.DIST(B19,$L$31,$M$31,TRUE))*(1-BRLRWT!$H$10/100),(_xlfn.NORM.DIST(C19,$L$31,$M$31,TRUE)-_xlfn.NORM.DIST(B19,$L$31,$M$31,TRUE))),"") -> 0.002200957773 | F19: 0.002770360938 | G19: =IF(D19<>"",D19*BRLRWT!$H$9*1000,"") -> 3.985822155 | H19: =IF(E19<>"",E19*BRLRWT!$H$9*1000,"") -> 15.40670441 | I19: 19.39252657
B20: 0.09467700875 | C20: 0.099443558 | D20: =IF($L$30<>"",IF(INPUT!$H$10=1,(_xlfn.NORM.DIST(C20,$L$30,$M$30,TRUE)-_xlfn.NORM.DIST(B20,$L$30,$M$30,TRUE))*BRLRWT!$H$10/100,(_xlfn.NORM.DIST(C20,$L$30,$M$30,TRUE)-_xlfn.NORM.DIST(B20,$L$30,$M$30,TRUE))),"") -> 0.001585129762 | E20: =IF($L$31<>"",IF(INPUT!$H$10=1,(_xlfn.NORM.DIST(C20,$L$31,$M$31,TRUE)-_xlfn.NORM.DIST(B20,$L$31,$M$31,TRUE))*(1-BRLRWT!$H$10/100),(_xlfn.NORM.DIST(C20,$L$31,$M$31,TRUE)-_xlfn.NORM.DIST(B20,$L$31,$M$31,TRUE))),"") -> 0.005020432579 | F20: 0.006605562341 | G20: =IF(D20<>"",D20*BRLRWT!$H$9*1000,"") -> 11.09590833 | H20: =IF(E20<>"",E20*BRLRWT!$H$9*1000,"") -> 35.14302806 | I20: 46.23893639
B21: 0.099443558 | C21: 0.1042101073 | D21: =IF($L$30<>"",IF(INPUT!$H$10=1,(_xlfn.NORM.DIST(C21,$L$30,$M$30,TRUE)-_xlfn.NORM.DIST(B21,$L$30,$M$30,TRUE))*BRLRWT!$H$10/100,(_xlfn.NORM.DIST(C21,$L$30,$M$30,TRUE)-_xlfn.NORM.DIST(B21,$L$30,$M$30,TRUE))),"") -> 0.003904210712 | E21: =IF($L$31<>"",IF(INPUT!$H$10=1,(_xlfn.NORM.DIST(C21,$L$31,$M$31,TRUE)-_xlfn.NORM.DIST(B21,$L$31,$M$31,TRUE))*(1-BRLRWT!$H$10/100),(_xlfn.NORM.DIST(C21,$L$31,$M$31,TRUE)-_xlfn.NORM.DIST(B21,$L$31,$M$31,TRUE))),"") -> 0.01022173072 | F21: 0.01412594143 | G21: =IF(D21<>"",D21*BRLRWT!$H$9*1000,"") -> 27.32947499 | H21: =IF(E21<>"",E21*BRLRWT!$H$9*1000,"") -> 71.55211503 | I21: 98.88159002
B22: 0.1042101073 | C22: 0.1089766565 | D22: =IF($L$30<>"",IF(INPUT!$H$10=1,(_xlfn.NORM.DIST(C22,$L$30,$M$30,TRUE)-_xlfn.NORM.DIST(B22,$L$30,$M$30,TRUE))*BRLRWT!$H$10/100,(_xlfn.NORM.DIST(C22,$L$30,$M$30,TRUE)-_xlfn.NORM.DIST(B22,$L$30,$M$30,TRUE))),"") -> 0.008508067567 | E22: =IF($L$31<>"",IF(INPUT!$H$10=1,(_xlfn.NORM.DIST(C22,$L$31,$M$31,TRUE)-_xlfn.NORM.DIST(B22,$L$31,$M$31,TRUE))*(1-BRLRWT!$H$10/100),(_xlfn.NORM.DIST(C22,$L$31,$M$31,TRUE)-_xlfn.NORM.DIST(B22,$L$31,$M$31,TRUE))),"") -> 0.01857656106 | F22: 0.02708462863 | G22: =IF(D22<>"",D22*BRLRWT!$H$9*1000,"") -> 59.55647297 | H22: =IF(E22<>"",E22*BRLRWT!$H$9*1000,"") -> 130.0359274 | I22: 189.5924004
B23: 0.1089766565 | C23: 0.1137432058 | D23: =IF($L$30<>"",IF(INPUT!$H$10=1,(_xlfn.NORM.DIST(C23,$L$30,$M$30,TRUE)-_xlfn.NORM.DIST(B23,$L$30,$M$30,TRUE))*BRLRWT!$H$10/100,(_xlfn.NORM.DIST(C23,$L$30,$M$30,TRUE)-_xlfn.NORM.DIST(B23,$L$30,$M$30,TRUE))),"") -> 0.01640449745 | E23: =IF($L$31<>"",IF(INPUT!$H$10=1,(_xlfn.NORM.DIST(C23,$L$31,$M$31,TRUE)-_xlfn.NORM.DIST(B23,$L$31,$M$31,TRUE))*(1-BRLRWT!$H$10/100),(_xlfn.NORM.DIST(C23,$L$31,$M$31,TRUE)-_xlfn.NORM.DIST(B23,$L$31,$M$31,TRUE))),"") -> 0.03013470559 | F23: 0.04653920304 | G23: =IF(D23<>"",D23*BRLRWT!$H$9*1000,"") -> 114.8314822 | H23: =IF(E23<>"",E23*BRLRWT!$H$9*1000,"") -> 210.9429391 | I23: 325.7744213
B24: 0.1137432058 | C24: 0.118509755 | D24: =IF($L$30<>"",IF(INPUT!$H$10=1,(_xlfn.NORM.DIST(C24,$L$30,$M$30,TRUE)-_xlfn.NORM.DIST(B24,$L$30,$M$30,TRUE))*BRLRWT!$H$10/100,(_xlfn.NORM.DIST(C24,$L$30,$M$30,TRUE)-_xlfn.NORM.DIST(B24,$L$30,$M$30,TRUE))),"") -> 0.02798553278 | E24: =IF($L$31<>"",IF(INPUT!$H$10=1,(_xlfn.NORM.DIST(C24,$L$31,$M$31,TRUE)-_xlfn.NORM.DIST(B24,$L$31,$M$31,TRUE))*(1-BRLRWT!$H$10/100),(_xlfn.NORM.DIST(C24,$L$31,$M$31,TRUE)-_xlfn.NORM.DIST(B24,$L$31,$M$31,TRUE))),"") -> 0.04363469273 | F24: 0.0716202255 | G24: =IF(D24<>"",D24*BRLRWT!$H$9*1000,"") -> 195.8987295 | H24: =IF(E24<>"",E24*BRLRWT!$H$9*1000,"") -> 305.4428491 | I24: 501.3415785
B25: 0.118509755 | C25: 0.1232763043 | D25: =IF($L$30<>"",IF(INPUT!$H$10=1,(_xlfn.NORM.DIST(C25,$L$30,$M$30,TRUE)-_xlfn.NORM.DIST(B25,$L$30,$M$30,TRUE))*BRLRWT!$H$10/100,(_xlfn.NORM.DIST(C25,$L$30,$M$30,TRUE)-_xlfn.NORM.DIST(B25,$L$30,$M$30,TRUE))),"") -> 0.04224219145 | E25: =IF($L$31<>"",IF(INPUT!$H$10=1,(_xlfn.NORM.DIST(C25,$L$31,$M$31,TRUE)-_xlfn.NORM.DIST(B25,$L$31,$M$31,TRUE))*(1-BRLRWT!$H$10/100),(_xlfn.NORM.DIST(C25,$L$31,$M$31,TRUE)-_xlfn.NORM.DIST(B25,$L$31,$M$31,TRUE))),"") -> 0.05639780757 | F25: 0.09863999902 | G25: =IF(D25<>"",D25*BRLRWT!$H$9*1000,"") -> 295.6953401 | H25: =IF(E25<>"",E25*BRLRWT!$H$9*1000,"") -> 394.784653 | I25: 690.4799931
B26: 0.1232763043 | C26: 0.1280428535 | D26: =IF($L$30<>"",IF(INPUT!$H$10=1,(_xlfn.NORM.DIST(C26,$L$30,$M$30,TRUE)-_xlfn.NORM.DIST(B26,$L$30,$M$30,TRUE))*BRLRWT!$H$10/100,(_xlfn.NORM.DIST(C26,$L$30,$M$30,TRUE)-_xlfn.NORM.DIST(B26,$L$30,$M$30,TRUE))),"") -> 0.05641625931 | E26: =IF($L$31<>"",IF(INPUT!$H$10=1,(_xlfn.NORM.DIST(C26,$L$31,$M$31,TRUE)-_xlfn.NORM.DIST(B26,$L$31,$M$31,TRUE))*(1-BRLRWT!$H$10/100),(_xlfn.NORM.DIST(C26,$L$31,$M$31,TRUE)-_xlfn.NORM.DIST(B26,$L$31,$M$31,TRUE))),"") -> 0.06506676894 | F26: 0.1214830282 | G26: =IF(D26<>"",D26*BRLRWT!$H$9*1000,"") -> 394.9138151 | H26: =IF(E26<>"",E26*BRLRWT!$H$9*1000,"") -> 455.4673826 | I26: 850.3811977
B27: 0.1280428535 | C27: 0.1328094028 | D27: =IF($L$30<>"",IF(INPUT!$H$10=1,(_xlfn.NORM.DIST(C27,$L$30,$M$30,TRUE)-_xlfn.NORM.DIST(B27,$L$30,$M$30,TRUE))*BRLRWT!$H$10/100,(_xlfn.NORM.DIST(C27,$L$30,$M$30,TRUE)-_xlfn.NORM.DIST(B27,$L$30,$M$30,TRUE))),"") -> 0.06666671872 | E27: =IF($L$31<>"",IF(INPUT!$H$10=1,(_xlfn.NORM.DIST(C27,$L$31,$M$31,TRUE)-_xlfn.NORM.DIST(B27,$L$31,$M$31,TRUE))*(1-BRLRWT!$H$10/100),(_xlfn.NORM.DIST(C27,$L$31,$M$31,TRUE)-_xlfn.NORM.DIST(B27,$L$31,$M$31,TRUE))),"") -> 0.06700755309 | F27: 0.1336742718 | G27: =IF(D27<>"",D27*BRLRWT!$H$9*1000,"") -> 466.667031 | H27: =IF(E27<>"",E27*BRLRWT!$H$9*1000,"") -> 469.0528716 | I27: 935.7199026
B28: 0.1328094028 | C28: 0.137575952 | D28: =IF($L$30<>"",IF(INPUT!$H$10=1,(_xlfn.NORM.DIST(C28,$L$30,$M$30,TRUE)-_xlfn.NORM.DIST(B28,$L$30,$M$30,TRUE))*BRLRWT!$H$10/100,(_xlfn.NORM.DIST(C28,$L$30,$M$30,TRUE)-_xlfn.NORM.DIST(B28,$L$30,$M$30,TRUE))),"") -> 0.06970468315 | E28: =IF($L$31<>"",IF(INPUT!$H$10=1,(_xlfn.NORM.DIST(C28,$L$31,$M$31,TRUE)-_xlfn.NORM.DIST(B28,$L$31,$M$31,TRUE))*(1-BRLRWT!$H$10/100),(_xlfn.NORM.DIST(C28,$L$31,$M$31,TRUE)-_xlfn.NORM.DIST(B28,$L$31,$M$31,TRUE))),"") -> 0.06159648574 | F28: 0.1313011689 | G28: =IF(D28<>"",D28*BRLRWT!$H$9*1000,"") -> 487.932782 | H28: =IF(E28<>"",E28*BRLRWT!$H$9*1000,"") -> 431.1754002 | I28: 919.1081822 | K28: - Summary
B29: 0.137575952 | C29: 0.1423425013 | D29: =IF($L$30<>"",IF(INPUT!$H$10=1,(_xlfn.NORM.DIST(C29,$L$30,$M$30,TRUE)-_xlfn.NORM.DIST(B29,$L$30,$M$30,TRUE))*BRLRWT!$H$10/100,(_xlfn.NORM.DIST(C29,$L$30,$M$30,TRUE)-_xlfn.NORM.DIST(B29,$L$30,$M$30,TRUE))),"") -> 0.06448567098 | E29: =IF($L$31<>"",IF(INPUT!$H$10=1,(_xlfn.NORM.DIST(C29,$L$31,$M$31,TRUE)-_xlfn.NORM.DIST(B29,$L$31,$M$31,TRUE))*(1-BRLRWT!$H$10/100),(_xlfn.NORM.DIST(C29,$L$31,$M$31,TRUE)-_xlfn.NORM.DIST(B29,$L$31,$M$31,TRUE))),"") -> 0.05054233603 | F29: 0.115028007 | G29: =IF(D29<>"",D29*BRLRWT!$H$9*1000,"") -> 451.3996968 | H29: =IF(E29<>"",E29*BRLRWT!$H$9*1000,"") -> 353.7963522 | I29: 805.196049 | K29: Unit (lbs) | L29: Mean | M29: Std. Dev. | N29: C.V. (%)
B30: 0.1423425013 | C30: 0.1471090505 | D30: =IF($L$30<>"",IF(INPUT!$H$10=1,(_xlfn.NORM.DIST(C30,$L$30,$M$30,TRUE)-_xlfn.NORM.DIST(B30,$L$30,$M$30,TRUE))*BRLRWT!$H$10/100,(_xlfn.NORM.DIST(C30,$L$30,$M$30,TRUE)-_xlfn.NORM.DIST(B30,$L$30,$M$30,TRUE))),"") -> 0.05278522121 | E30: =IF($L$31<>"",IF(INPUT!$H$10=1,(_xlfn.NORM.DIST(C30,$L$31,$M$31,TRUE)-_xlfn.NORM.DIST(B30,$L$31,$M$31,TRUE))*(1-BRLRWT!$H$10/100),(_xlfn.NORM.DIST(C30,$L$31,$M$31,TRUE)-_xlfn.NORM.DIST(B30,$L$31,$M$31,TRUE))),"") -> 0.03701867006 | F30: 0.08980389127 | G30: =IF(D30<>"",D30*BRLRWT!$H$9*1000,"") -> 369.4965485 | H30: =IF(E30<>"",E30*BRLRWT!$H$9*1000,"") -> 259.1306904 | I30: 628.6272389 | K30: Male | L30: 0.1345449378 | M30: 0.01355496573 | N30: =IF(L30<>"",M30/L30*100,"") -> 10.07467538
B31: 0.1471090505 | C31: 0.1518755998 | D31: =IF($L$30<>"",IF(INPUT!$H$10=1,(_xlfn.NORM.DIST(C31,$L$30,$M$30,TRUE)-_xlfn.NORM.DIST(B31,$L$30,$M$30,TRUE))*BRLRWT!$H$10/100,(_xlfn.NORM.DIST(C31,$L$30,$M$30,TRUE)-_xlfn.NORM.DIST(B31,$L$30,$M$30,TRUE))),"") -> 0.03823032269 | E31: =IF($L$31<>"",IF(INPUT!$H$10=1,(_xlfn.NORM.DIST(C31,$L$31,$M$31,TRUE)-_xlfn.NORM.DIST(B31,$L$31,$M$31,TRUE))*(1-BRLRWT!$H$10/100),(_xlfn.NORM.DIST(C31,$L$31,$M$31,TRUE)-_xlfn.NORM.DIST(B31,$L$31,$M$31,TRUE))),"") -> 0.02420197211 | F31: 0.0624322948 | G31: =IF(D31<>"",D31*BRLRWT!$H$9*1000,"") -> 267.6122588 | H31: =IF(E31<>"",E31*BRLRWT!$H$9*1000,"") -> 169.4138048 | I31: 437.0260636 | K31: Female | L31: 0.1292761772 | M31: 0.0140751629 | N31: =IF(L31<>"",M31/L31*100,"") -> 10.88766949
B32: 0.1518755998 | C32: 0.156642149 | D32: =IF($L$30<>"",IF(INPUT!$H$10=1,(_xlfn.NORM.DIST(C32,$L$30,$M$30,TRUE)-_xlfn.NORM.DIST(B32,$L$30,$M$30,TRUE))*BRLRWT!$H$10/100,(_xlfn.NORM.DIST(C32,$L$30,$M$30,TRUE)-_xlfn.NORM.DIST(B32,$L$30,$M$30,TRUE))),"") -> 0.02449897376 | E32: =IF($L$31<>"",IF(INPUT!$H$10=1,(_xlfn.NORM.DIST(C32,$L$31,$M$31,TRUE)-_xlfn.NORM.DIST(B32,$L$31,$M$31,TRUE))*(1-BRLRWT!$H$10/100),(_xlfn.NORM.DIST(C32,$L$31,$M$31,TRUE)-_xlfn.NORM.DIST(B32,$L$31,$M$31,TRUE))),"") -> 0.01412351713 | F32: 0.03862249089 | G32: =IF(D32<>"",D32*BRLRWT!$H$9*1000,"") -> 171.4928163 | H32: =IF(E32<>"",E32*BRLRWT!$H$9*1000,"") -> 98.86461994 | I32: 270.3574363 | K32: S/Run | L32: 0.1319105575 | M32: 0.01406640014 | N32: =IF(L32<>"",M32/L32*100,"") -> 10.66358933
B33: 0.156642149 | C33: 0.1614086983 | D33: =IF($L$30<>"",IF(INPUT!$H$10=1,(_xlfn.NORM.DIST(C33,$L$30,$M$30,TRUE)-_xlfn.NORM.DIST(B33,$L$30,$M$30,TRUE))*BRLRWT!$H$10/100,(_xlfn.NORM.DIST(C33,$L$30,$M$30,TRUE)-_xlfn.NORM.DIST(B33,$L$30,$M$30,TRUE))),"") -> 0.01389086026 | E33: =IF($L$31<>"",IF(INPUT!$H$10=1,(_xlfn.NORM.DIST(C33,$L$31,$M$31,TRUE)-_xlfn.NORM.DIST(B33,$L$31,$M$31,TRUE))*(1-BRLRWT!$H$10/100),(_xlfn.NORM.DIST(C33,$L$31,$M$31,TRUE)-_xlfn.NORM.DIST(B33,$L$31,$M$31,TRUE))),"") -> 0.00735688997 | F33: 0.02124775023 | G33: =IF(D33<>"",D33*BRLRWT!$H$9*1000,"") -> 97.23602183 | H33: =IF(E33<>"",E33*BRLRWT!$H$9*1000,"") -> 51.49822979 | I33: 148.7342516
B34: 0.1614086983 | C34: 0.1661752475 | D34: =IF($L$30<>"",IF(INPUT!$H$10=1,(_xlfn.NORM.DIST(C34,$L$30,$M$30,TRUE)-_xlfn.NORM.DIST(B34,$L$30,$M$30,TRUE))*BRLRWT!$H$10/100,(_xlfn.NORM.DIST(C34,$L$30,$M$30,TRUE)-_xlfn.NORM.DIST(B34,$L$30,$M$30,TRUE))),"") -> 0.006968638546 | E34: =IF($L$31<>"",IF(INPUT!$H$10=1,(_xlfn.NORM.DIST(C34,$L$31,$M$31,TRUE)-_xlfn.NORM.DIST(B34,$L$31,$M$31,TRUE))*(1-BRLRWT!$H$10/100),(_xlfn.NORM.DIST(C34,$L$31,$M$31,TRUE)-_xlfn.NORM.DIST(B34,$L$31,$M$31,TRUE))),"") -> 0.003420593933 | F34: 0.01038923248 | G34: =IF(D34<>"",D34*BRLRWT!$H$9*1000,"") -> 48.78046982 | H34: =IF(E34<>"",E34*BRLRWT!$H$9*1000,"") -> 23.94415753 | I34: 72.72462735
B35: 0.1661752475 | C35: 0.1709417968 | D35: =IF($L$30<>"",IF(INPUT!$H$10=1,(_xlfn.NORM.DIST(C35,$L$30,$M$30,TRUE)-_xlfn.NORM.DIST(B35,$L$30,$M$30,TRUE))*BRLRWT!$H$10/100,(_xlfn.NORM.DIST(C35,$L$30,$M$30,TRUE)-_xlfn.NORM.DIST(B35,$L$30,$M$30,TRUE))),"") -> 0.00309314122 | E35: =IF($L$31<>"",IF(INPUT!$H$10=1,(_xlfn.NORM.DIST(C35,$L$31,$M$31,TRUE)-_xlfn.NORM.DIST(B35,$L$31,$M$31,TRUE))*(1-BRLRWT!$H$10/100),(_xlfn.NORM.DIST(C35,$L$31,$M$31,TRUE)-_xlfn.NORM.DIST(B35,$L$31,$M$31,TRUE))),"") -> 0.00141958258 | F35: 0.004512723801 | G35: =IF(D35<>"",D35*BRLRWT!$H$9*1000,"") -> 21.65198854 | H35: =IF(E35<>"",E35*BRLRWT!$H$9*1000,"") -> 9.937078062 | I35: 31.5890666
B36: 0.1709417968 | C36: 0.175708346 | D36: =IF($L$30<>"",IF(INPUT!$H$10=1,(_xlfn.NORM.DIST(C36,$L$30,$M$30,TRUE)-_xlfn.NORM.DIST(B36,$L$30,$M$30,TRUE))*BRLRWT!$H$10/100,(_xlfn.NORM.DIST(C36,$L$30,$M$30,TRUE)-_xlfn.NORM.DIST(B36,$L$30,$M$30,TRUE))),"") -> 0.001214728753 | E36: =IF($L$31<>"",IF(INPUT!$H$10=1,(_xlfn.NORM.DIST(C36,$L$31,$M$31,TRUE)-_xlfn.NORM.DIST(B36,$L$31,$M$31,TRUE))*(1-BRLRWT!$H$10/100),(_xlfn.NORM.DIST(C36,$L$31,$M$31,TRUE)-_xlfn.NORM.DIST(B36,$L$31,$M$31,TRUE))),"") -> 0.0005258564166 | F36: 0.00174058517 | G36: =IF(D36<>"",D36*BRLRWT!$H$9*1000,"") -> 8.503101273 | H36: =IF(E36<>"",E36*BRLRWT!$H$9*1000,"") -> 3.680994916 | I36: 12.18409619
B37: 0.175708346 | C37: 0.1804748953 | D37: =IF($L$30<>"",IF(INPUT!$H$10=1,(_xlfn.NORM.DIST(C37,$L$30,$M$30,TRUE)-_xlfn.NORM.DIST(B37,$L$30,$M$30,TRUE))*BRLRWT!$H$10/100,(_xlfn.NORM.DIST(C37,$L$30,$M$30,TRUE)-_xlfn.NORM.DIST(B37,$L$30,$M$30,TRUE))),"") -> 0.0004220662989 | E37: =IF($L$31<>"",IF(INPUT!$H$10=1,(_xlfn.NORM.DIST(C37,$L$31,$M$31,TRUE)-_xlfn.NORM.DIST(B37,$L$31,$M$31,TRUE))*(1-BRLRWT!$H$10/100),(_xlfn.NORM.DIST(C37,$L$31,$M$31,TRUE)-_xlfn.NORM.DIST(B37,$L$31,$M$31,TRUE))),"") -> 0.0001738665624 | F37: 0.0005959328613 | G37: =IF(D37<>"",D37*BRLRWT!$H$9*1000,"") -> 2.954464092 | H37: =IF(E37<>"",E37*BRLRWT!$H$9*1000,"") -> 1.217065937 | I37: 4.171530029
B38: 0.1804748953 | C38: 0.1852414445 | D38: =IF($L$30<>"",IF(INPUT!$H$10=1,(_xlfn.NORM.DIST(C38,$L$30,$M$30,TRUE)-_xlfn.NORM.DIST(B38,$L$30,$M$30,TRUE))*BRLRWT!$H$10/100,(_xlfn.NORM.DIST(C38,$L$30,$M$30,TRUE)-_xlfn.NORM.DIST(B38,$L$30,$M$30,TRUE))),"") -> 0.000129746974 | E38: =IF($L$31<>"",IF(INPUT!$H$10=1,(_xlfn.NORM.DIST(C38,$L$31,$M$31,TRUE)-_xlfn.NORM.DIST(B38,$L$31,$M$31,TRUE))*(1-BRLRWT!$H$10/100),(_xlfn.NORM.DIST(C38,$L$31,$M$31,TRUE)-_xlfn.NORM.DIST(B38,$L$31,$M$31,TRUE))),"") -> 5.130998171e-05 | F38: 0.0001810569557 | G38: =IF(D38<>"",D38*BRLRWT!$H$9*1000,"") -> 0.9082288181 | H38: =IF(E38<>"",E38*BRLRWT!$H$9*1000,"") -> 0.359169872 | I38: 1.26739869
B39: 0.1852414445 | C39: 0.1900079938 | D39: =IF($L$30<>"",IF(INPUT!$H$10=1,(_xlfn.NORM.DIST(C39,$L$30,$M$30,TRUE)-_xlfn.NORM.DIST(B39,$L$30,$M$30,TRUE))*BRLRWT!$H$10/100,(_xlfn.NORM.DIST(C39,$L$30,$M$30,TRUE)-_xlfn.NORM.DIST(B39,$L$30,$M$30,TRUE))),"") -> 3.528757256e-05 | E39: =IF($L$31<>"",IF(INPUT!$H$10=1,(_xlfn.NORM.DIST(C39,$L$31,$M$31,TRUE)-_xlfn.NORM.DIST(B39,$L$31,$M$31,TRUE))*(1-BRLRWT!$H$10/100),(_xlfn.NORM.DIST(C39,$L$31,$M$31,TRUE)-_xlfn.NORM.DIST(B39,$L$31,$M$31,TRUE))),"") -> 1.351508073e-05 | F39: 4.880265328e-05 | G39: =IF(D39<>"",D39*BRLRWT!$H$9*1000,"") -> 0.2470130079 | H39: =IF(E39<>"",E39*BRLRWT!$H$9*1000,"") -> 0.09460556508 | I39: 0.341618573
B40: 0.1900079938 | C40: 0.194774543 | D40: =IF($L$30<>"",IF(INPUT!$H$10=1,(_xlfn.NORM.DIST(C40,$L$30,$M$30,TRUE)-_xlfn.NORM.DIST(B40,$L$30,$M$30,TRUE))*BRLRWT!$H$10/100,(_xlfn.NORM.DIST(C40,$L$30,$M$30,TRUE)-_xlfn.NORM.DIST(B40,$L$30,$M$30,TRUE))),"") -> 8.490759454e-06 | E40: =IF($L$31<>"",IF(INPUT!$H$10=1,(_xlfn.NORM.DIST(C40,$L$31,$M$31,TRUE)-_xlfn.NORM.DIST(B40,$L$31,$M$31,TRUE))*(1-BRLRWT!$H$10/100),(_xlfn.NORM.DIST(C40,$L$31,$M$31,TRUE)-_xlfn.NORM.DIST(B40,$L$31,$M$31,TRUE))),"") -> 3.17731375e-06 | F40: 1.16680732e-05 | G40: =IF(D40<>"",D40*BRLRWT!$H$9*1000,"") -> 0.05943531618 | H40: =IF(E40<>"",E40*BRLRWT!$H$9*1000,"") -> 0.02224119625 | I40: 0.08167651242
B41: 0.194774543 | C41: 0.1995410923 | D41: =IF($L$30<>"",IF(INPUT!$H$10=1,(_xlfn.NORM.DIST(C41,$L$30,$M$30,TRUE)-_xlfn.NORM.DIST(B41,$L$30,$M$30,TRUE))*BRLRWT!$H$10/100,(_xlfn.NORM.DIST(C41,$L$30,$M$30,TRUE)-_xlfn.NORM.DIST(B41,$L$30,$M$30,TRUE))),"") -> 1.807437148e-06 | E41: =IF($L$31<>"",IF(INPUT!$H$10=1,(_xlfn.NORM.DIST(C41,$L$31,$M$31,TRUE)-_xlfn.NORM.DIST(B41,$L$31,$M$31,TRUE))*(1-BRLRWT!$H$10/100),(_xlfn.NORM.DIST(C41,$L$31,$M$31,TRUE)-_xlfn.NORM.DIST(B41,$L$31,$M$31,TRUE))),"") -> 6.666832463e-07 | F41: 2.474120394e-06 | G41: =IF(D41<>"",D41*BRLRWT!$H$9*1000,"") -> 0.01265206003 | H41: =IF(E41<>"",E41*BRLRWT!$H$9*1000,"") -> 0.004666782724 | I41: 0.01731884276
B42: 0.1995410923 | C42: 0.2043076415 | D42: =IF($L$30<>"",IF(INPUT!$H$10=1,(_xlfn.NORM.DIST(C42,$L$30,$M$30,TRUE)-_xlfn.NORM.DIST(B42,$L$30,$M$30,TRUE))*BRLRWT!$H$10/100,(_xlfn.NORM.DIST(C42,$L$30,$M$30,TRUE)-_xlfn.NORM.DIST(B42,$L$30,$M$30,TRUE))),"") -> 3.403792078e-07 | E42: =IF($L$31<>"",IF(INPUT!$H$10=1,(_xlfn.NORM.DIST(C42,$L$31,$M$31,TRUE)-_xlfn.NORM.DIST(B42,$L$31,$M$31,TRUE))*(1-BRLRWT!$H$10/100),(_xlfn.NORM.DIST(C42,$L$31,$M$31,TRUE)-_xlfn.NORM.DIST(B42,$L$31,$M$31,TRUE))),"") -> 1.248503974e-07 | F42: 4.652296052e-07 | G42: =IF(D42<>"",D42*BRLRWT!$H$9*1000,"") -> 0.002382654455 | H42: =IF(E42<>"",E42*BRLRWT!$H$9*1000,"") -> 0.0008739527815 | I42: 0.003256607236
B43: 0.2043076415 | C43: 0.2090741908 | D43: =IF($L$30<>"",IF(INPUT!$H$10=1,(_xlfn.NORM.DIST(C43,$L$30,$M$30,TRUE)-_xlfn.NORM.DIST(B43,$L$30,$M$30,TRUE))*BRLRWT!$H$10/100,(_xlfn.NORM.DIST(C43,$L$30,$M$30,TRUE)-_xlfn.NORM.DIST(B43,$L$30,$M$30,TRUE))),"") -> 5.670701886e-08 | E43: =IF($L$31<>"",IF(INPUT!$H$10=1,(_xlfn.NORM.DIST(C43,$L$31,$M$31,TRUE)-_xlfn.NORM.DIST(B43,$L$31,$M$31,TRUE))*(1-BRLRWT!$H$10/100),(_xlfn.NORM.DIST(C43,$L$31,$M$31,TRUE)-_xlfn.NORM.DIST(B43,$L$31,$M$31,TRUE))),"") -> 2.086718787e-08 | F43: 7.757420672e-08 | G43: =IF(D43<>"",D43*BRLRWT!$H$9*1000,"") -> 0.000396949132 | H43: =IF(E43<>"",E43*BRLRWT!$H$9*1000,"") -> 0.0001460703151 | I43: 0.0005430194471
B44: 0.2090741908 | C44: 0.21384074 | D44: =IF($L$30<>"",IF(INPUT!$H$10=1,(_xlfn.NORM.DIST(C44,$L$30,$M$30,TRUE)-_xlfn.NORM.DIST(B44,$L$30,$M$30,TRUE))*BRLRWT!$H$10/100,(_xlfn.NORM.DIST(C44,$L$30,$M$30,TRUE)-_xlfn.NORM.DIST(B44,$L$30,$M$30,TRUE))),"") -> 8.357474102e-09 | E44: =IF($L$31<>"",IF(INPUT!$H$10=1,(_xlfn.NORM.DIST(C44,$L$31,$M$31,TRUE)-_xlfn.NORM.DIST(B44,$L$31,$M$31,TRUE))*(1-BRLRWT!$H$10/100),(_xlfn.NORM.DIST(C44,$L$31,$M$31,TRUE)-_xlfn.NORM.DIST(B44,$L$31,$M$31,TRUE))),"") -> 3.112676006e-09 | F44: 1.147015011e-08 | G44: =IF(D44<>"",D44*BRLRWT!$H$9*1000,"") -> 5.850231871e-05 | H44: =IF(E44<>"",E44*BRLRWT!$H$9*1000,"") -> 2.178873204e-05 | I44: 8.029105075e-05
B45: 0.21384074 | C45: ="inf." -> inf. | D45: =IF($L$30<>"",IF(INPUT!$H$10=1,(1-_xlfn.NORM.DIST(B45,$L$30,$M$30,TRUE))*BRLRWT!$H$10/100,(1-_xlfn.NORM.DIST(B45,$L$30,$M$30,TRUE))),"") -> 1.229339963e-09 | E45: =IF($L$31<>"",IF(INPUT!$H$10=1,(1-_xlfn.NORM.DIST(B44,$L$31,$M$31,TRUE))*(1-BRLRWT!$H$10/100),(1-_xlfn.NORM.DIST(B44,$L$31,$M$31,TRUE))),"") -> 3.582038222e-09 | F45: 4.811378185e-09 | G45: =IF(D45<>"",D45*BRLRWT!$H$9*1000,"") -> 8.605379742e-06 | H45: =IF(E45<>"",E45*BRLRWT!$H$9*1000,"") -> 2.507426755e-05 | I45: 3.367964729e-05
B46: Total | D46: =SUM(D12:D45) -> 0.5 | E46: 0.5000000031 | F46: 1.000000003 | G46: 3500 | H46: 3500.000022 | I46: 7000.000022

Sheet ThighWT
A8: 3-5. Results - Thigh Weight Distribution | K8: Breed
B10: Weight (lbs) | D10: Percentage | G10: Numbers
B11: Min. (>) | C11: Max. (≤) | D11: Male | E11: Female | F11: S/Run | G11: Male | H11: Female | I11: S/Run
B12: ="-inf." -> -inf. | C12: =$M$13 -> 0.269565008 | D12: =IF($L$30<>"",IF(INPUT!$H$10=1,_xlfn.NORM.DIST(C12,$L$30,$M$30,TRUE)*BRLRWT!$H$10/100,_xlfn.NORM.DIST(C12,$L$30,$M$30,TRUE)),"") -> 1.640886614e-08 | E12: =IF($L$31<>"",IF(INPUT!$H$10=1,_xlfn.NORM.DIST(C12,$L$31,$M$31,TRUE)*(1-BRLRWT!$H$10/100),_xlfn.NORM.DIST(C12,$L$31,$M$31,TRUE)),"") -> 2.412408612e-07 | F12: =IF(D12<>"",IF(E12<>"",D12+E12,""),"") -> 2.576497274e-07 | G12: =IF(D12<>"",D12*BRLRWT!$H$9*1000,"") -> 0.000114862063 | H12: =IF(E12<>"",E12*BRLRWT!$H$9*1000,"") -> 0.001688686029 | I12: =IF(G12<>"",IF(H12<>"",G12+H12,""),"") -> 0.001803548092 | L12: Range
B13: =C12 -> 0.269565008 | C13: =C12+$M$14 -> 0.2818218921 | D13: =IF($L$30<>"",IF(INPUT!$H$10=1,(_xlfn.NORM.DIST(C13,$L$30,$M$30,TRUE)-_xlfn.NORM.DIST(B13,$L$30,$M$30,TRUE))*BRLRWT!$H$10/100,(_xlfn.NORM.DIST(C13,$L$30,$M$30,TRUE)-_xlfn.NORM.DIST(B13,$L$30,$M$30,TRUE))),"") -> 6.350784942e-08 | E13: =IF($L$31<>"",IF(INPUT!$H$10=1,(_xlfn.NORM.DIST(C13,$L$31,$M$31,TRUE)-_xlfn.NORM.DIST(B13,$L$31,$M$31,TRUE))*(1-BRLRWT!$H$10/100),(_xlfn.NORM.DIST(C13,$L$31,$M$31,TRUE)-_xlfn.NORM.DIST(B13,$L$31,$M$31,TRUE))),"") -> 1.050960191e-06 | F13: =IF(D13<>"",IF(E13<>"",D13+E13,""),"") -> 1.11446804e-06 | G13: =IF(D13<>"",D13*BRLRWT!$H$9*1000,"") -> 0.0004445549459 | H13: =IF(E13<>"",E13*BRLRWT!$H$9*1000,"") -> 0.007356721335 | I13: =IF(G13<>"",IF(H13<>"",G13+H13,""),"") -> 0.007801276281 | L13: min | M13: 0.269565008
B14: =C13 -> 0.2818218921 | C14: =C13+$M$14 -> 0.2940787763 | D14: =IF($L$30<>"",IF(INPUT!$H$10=1,(_xlfn.NORM.DIST(C14,$L$30,$M$30,TRUE)-_xlfn.NORM.DIST(B14,$L$30,$M$30,TRUE))*BRLRWT!$H$10/100,(_xlfn.NORM.DIST(C14,$L$30,$M$30,TRUE)-_xlfn.NORM.DIST(B14,$L$30,$M$30,TRUE))),"") -> 2.786063071e-07 | E14: =IF($L$31<>"",IF(INPUT!$H$10=1,(_xlfn.NORM.DIST(C14,$L$31,$M$31,TRUE)-_xlfn.NORM.DIST(B14,$L$31,$M$31,TRUE))*(1-BRLRWT!$H$10/100),(_xlfn.NORM.DIST(C14,$L$31,$M$31,TRUE)-_xlfn.NORM.DIST(B14,$L$31,$M$31,TRUE))),"") -> 4.897643871e-06 | F14: =IF(D14<>"",IF(E14<>"",D14+E14,""),"") -> 5.176250178e-06 | G14: =IF(D14<>"",D14*BRLRWT!$H$9*1000,"") -> 0.00195024415 | H14: =IF(E14<>"",E14*BRLRWT!$H$9*1000,"") -> 0.0342835071 | I14: =IF(G14<>"",IF(H14<>"",G14+H14,""),"") -> 0.03623375125 | L14: step size | M14: 0.01225688413
B15: =C14 -> 0.2940787763 | C15: =C14+$M$14 -> 0.3063356604 | D15: =IF($L$30<>"",IF(INPUT!$H$10=1,(_xlfn.NORM.DIST(C15,$L$30,$M$30,TRUE)-_xlfn.NORM.DIST(B15,$L$30,$M$30,TRUE))*BRLRWT!$H$10/100,(_xlfn.NORM.DIST(C15,$L$30,$M$30,TRUE)-_xlfn.NORM.DIST(B15,$L$30,$M$30,TRUE))),"") -> 1.123432752e-06 | E15: =IF($L$31<>"",IF(INPUT!$H$10=1,(_xlfn.NORM.DIST(C15,$L$31,$M$31,TRUE)-_xlfn.NORM.DIST(B15,$L$31,$M$31,TRUE))*(1-BRLRWT!$H$10/100),(_xlfn.NORM.DIST(C15,$L$31,$M$31,TRUE)-_xlfn.NORM.DIST(B15,$L$31,$M$31,TRUE))),"") -> 2.034106464e-05 | F15: 2.146449739e-05 | G15: =IF(D15<>"",D15*BRLRWT!$H$9*1000,"") -> 0.007864029266 | H15: =IF(E15<>"",E15*BRLRWT!$H$9*1000,"") -> 0.1423874525 | I15: 0.1502514818
B16: 0.3063356604 | C16: 0.3185925445 | D16: =IF($L$30<>"",IF(INPUT!$H$10=1,(_xlfn.NORM.DIST(C16,$L$30,$M$30,TRUE)-_xlfn.NORM.DIST(B16,$L$30,$M$30,TRUE))*BRLRWT!$H$10/100,(_xlfn.NORM.DIST(C16,$L$30,$M$30,TRUE)-_xlfn.NORM.DIST(B16,$L$30,$M$30,TRUE))),"") -> 4.16388245e-06 | E16: =IF($L$31<>"",IF(INPUT!$H$10=1,(_xlfn.NORM.DIST(C16,$L$31,$M$31,TRUE)-_xlfn.NORM.DIST(B16,$L$31,$M$31,TRUE))*(1-BRLRWT!$H$10/100),(_xlfn.NORM.DIST(C16,$L$31,$M$31,TRUE)-_xlfn.NORM.DIST(B16,$L$31,$M$31,TRUE))),"") -> 7.529264858e-05 | F16: 7.945653103e-05 | G16: =IF(D16<>"",D16*BRLRWT!$H$9*1000,"") -> 0.02914717715 | H16: =IF(E16<>"",E16*BRLRWT!$H$9*1000,"") -> 0.5270485401 | I16: 0.5561957172
B17: 0.3185925445 | C17: 0.3308494286 | D17: =IF($L$30<>"",IF(INPUT!$H$10=1,(_xlfn.NORM.DIST(C17,$L$30,$M$30,TRUE)-_xlfn.NORM.DIST(B17,$L$30,$M$30,TRUE))*BRLRWT!$H$10/100,(_xlfn.NORM.DIST(C17,$L$30,$M$30,TRUE)-_xlfn.NORM.DIST(B17,$L$30,$M$30,TRUE))),"") -> 1.418559669e-05 | E17: =IF($L$31<>"",IF(INPUT!$H$10=1,(_xlfn.NORM.DIST(C17,$L$31,$M$31,TRUE)-_xlfn.NORM.DIST(B17,$L$31,$M$31,TRUE))*(1-BRLRWT!$H$10/100),(_xlfn.NORM.DIST(C17,$L$31,$M$31,TRUE)-_xlfn.NORM.DIST(B17,$L$31,$M$31,TRUE))),"") -> 0.0002483878575 | F17: 0.0002625734542 | G17: =IF(D17<>"",D17*BRLRWT!$H$9*1000,"") -> 0.09929917686 | H17: =IF(E17<>"",E17*BRLRWT!$H$9*1000,"") -> 1.738715003 | I17: 1.83801418
B18: 0.3308494286 | C18: 0.3431063128 | D18: =IF($L$30<>"",IF(INPUT!$H$10=1,(_xlfn.NORM.DIST(C18,$L$30,$M$30,TRUE)-_xlfn.NORM.DIST(B18,$L$30,$M$30,TRUE))*BRLRWT!$H$10/100,(_xlfn.NORM.DIST(C18,$L$30,$M$30,TRUE)-_xlfn.NORM.DIST(B18,$L$30,$M$30,TRUE))),"") -> 4.442187932e-05 | E18: =IF($L$31<>"",IF(INPUT!$H$10=1,(_xlfn.NORM.DIST(C18,$L$31,$M$31,TRUE)-_xlfn.NORM.DIST(B18,$L$31,$M$31,TRUE))*(1-BRLRWT!$H$10/100),(_xlfn.NORM.DIST(C18,$L$31,$M$31,TRUE)-_xlfn.NORM.DIST(B18,$L$31,$M$31,TRUE))),"") -> 0.0007303198057 | F18: 0.000774741685 | G18: =IF(D18<>"",D18*BRLRWT!$H$9*1000,"") -> 0.3109531552 | H18: =IF(E18<>"",E18*BRLRWT!$H$9*1000,"") -> 5.11223864 | I18: 5.423191795
B19: 0.3431063128 | C19: 0.3553631969 | D19: =IF($L$30<>"",IF(INPUT!$H$10=1,(_xlfn.NORM.DIST(C19,$L$30,$M$30,TRUE)-_xlfn.NORM.DIST(B19,$L$30,$M$30,TRUE))*BRLRWT!$H$10/100,(_xlfn.NORM.DIST(C19,$L$30,$M$30,TRUE)-_xlfn.NORM.DIST(B19,$L$30,$M$30,TRUE))),"") -> 0.0001278641192 | E19: =IF($L$31<>"",IF(INPUT!$H$10=1,(_xlfn.NORM.DIST(C19,$L$31,$M$31,TRUE)-_xlfn.NORM.DIST(B19,$L$31,$M$31,TRUE))*(1-BRLRWT!$H$10/100),(_xlfn.NORM.DIST(C19,$L$31,$M$31,TRUE)-_xlfn.NORM.DIST(B19,$L$31,$M$31,TRUE))),"") -> 0.001913842937 | F19: 0.002041707056 | G19: =IF(D19<>"",D19*BRLRWT!$H$9*1000,"") -> 0.8950488346 | H19: =IF(E19<>"",E19*BRLRWT!$H$9*1000,"") -> 13.39690056 | I19: 14.29194939
B20: 0.3553631969 | C20: 0.367620081 | D20: =IF($L$30<>"",IF(INPUT!$H$10=1,(_xlfn.NORM.DIST(C20,$L$30,$M$30,TRUE)-_xlfn.NORM.DIST(B20,$L$30,$M$30,TRUE))*BRLRWT!$H$10/100,(_xlfn.NORM.DIST(C20,$L$30,$M$30,TRUE)-_xlfn.NORM.DIST(B20,$L$30,$M$30,TRUE))),"") -> 0.0003383023654 | E20: =IF($L$31<>"",IF(INPUT!$H$10=1,(_xlfn.NORM.DIST(C20,$L$31,$M$31,TRUE)-_xlfn.NORM.DIST(B20,$L$31,$M$31,TRUE))*(1-BRLRWT!$H$10/100),(_xlfn.NORM.DIST(C20,$L$31,$M$31,TRUE)-_xlfn.NORM.DIST(B20,$L$31,$M$31,TRUE))),"") -> 0.004470077709 | F20: 0.004808380075 | G20: =IF(D20<>"",D20*BRLRWT!$H$9*1000,"") -> 2.368116558 | H20: =IF(E20<>"",E20*BRLRWT!$H$9*1000,"") -> 31.29054396 | I20: 33.65866052
B21: 0.367620081 | C21: 0.3798769651 | D21: =IF($L$30<>"",IF(INPUT!$H$10=1,(_xlfn.NORM.DIST(C21,$L$30,$M$30,TRUE)-_xlfn.NORM.DIST(B21,$L$30,$M$30,TRUE))*BRLRWT!$H$10/100,(_xlfn.NORM.DIST(C21,$L$30,$M$30,TRUE)-_xlfn.NORM.DIST(B21,$L$30,$M$30,TRUE))),"") -> 0.0008227501085 | E21: =IF($L$31<>"",IF(INPUT!$H$10=1,(_xlfn.NORM.DIST(C21,$L$31,$M$31,TRUE)-_xlfn.NORM.DIST(B21,$L$31,$M$31,TRUE))*(1-BRLRWT!$H$10/100),(_xlfn.NORM.DIST(C21,$L$31,$M$31,TRUE)-_xlfn.NORM.DIST(B21,$L$31,$M$31,TRUE))),"") -> 0.009305590806 | F21: 0.01012834091 | G21: =IF(D21<>"",D21*BRLRWT!$H$9*1000,"") -> 5.759250759 | H21: =IF(E21<>"",E21*BRLRWT!$H$9*1000,"") -> 65.13913564 | I21: 70.8983864
B22: 0.3798769651 | C22: 0.3921338493 | D22: =IF($L$30<>"",IF(INPUT!$H$10=1,(_xlfn.NORM.DIST(C22,$L$30,$M$30,TRUE)-_xlfn.NORM.DIST(B22,$L$30,$M$30,TRUE))*BRLRWT!$H$10/100,(_xlfn.NORM.DIST(C22,$L$30,$M$30,TRUE)-_xlfn.NORM.DIST(B22,$L$30,$M$30,TRUE))),"") -> 0.00183924369 | E22: =IF($L$31<>"",IF(INPUT!$H$10=1,(_xlfn.NORM.DIST(C22,$L$31,$M$31,TRUE)-_xlfn.NORM.DIST(B22,$L$31,$M$31,TRUE))*(1-BRLRWT!$H$10/100),(_xlfn.NORM.DIST(C22,$L$31,$M$31,TRUE)-_xlfn.NORM.DIST(B22,$L$31,$M$31,TRUE))),"") -> 0.01726620548 | F22: 0.01910544917 | G22: =IF(D22<>"",D22*BRLRWT!$H$9*1000,"") -> 12.87470583 | H22: =IF(E22<>"",E22*BRLRWT!$H$9*1000,"") -> 120.8634384 | I22: 133.7381442
B23: 0.3921338493 | C23: 0.4043907334 | D23: =IF($L$30<>"",IF(INPUT!$H$10=1,(_xlfn.NORM.DIST(C23,$L$30,$M$30,TRUE)-_xlfn.NORM.DIST(B23,$L$30,$M$30,TRUE))*BRLRWT!$H$10/100,(_xlfn.NORM.DIST(C23,$L$30,$M$30,TRUE)-_xlfn.NORM.DIST(B23,$L$30,$M$30,TRUE))),"") -> 0.00377938121 | E23: =IF($L$31<>"",IF(INPUT!$H$10=1,(_xlfn.NORM.DIST(C23,$L$31,$M$31,TRUE)-_xlfn.NORM.DIST(B23,$L$31,$M$31,TRUE))*(1-BRLRWT!$H$10/100),(_xlfn.NORM.DIST(C23,$L$31,$M$31,TRUE)-_xlfn.NORM.DIST(B23,$L$31,$M$31,TRUE))),"") -> 0.028554682 | F23: 0.03233406321 | G23: =IF(D23<>"",D23*BRLRWT!$H$9*1000,"") -> 26.45566847 | H23: =IF(E23<>"",E23*BRLRWT!$H$9*1000,"") -> 199.882774 | I23: 226.3384425
B24: 0.4043907334 | C24: 0.4166476175 | D24: =IF($L$30<>"",IF(INPUT!$H$10=1,(_xlfn.NORM.DIST(C24,$L$30,$M$30,TRUE)-_xlfn.NORM.DIST(B24,$L$30,$M$30,TRUE))*BRLRWT!$H$10/100,(_xlfn.NORM.DIST(C24,$L$30,$M$30,TRUE)-_xlfn.NORM.DIST(B24,$L$30,$M$30,TRUE))),"") -> 0.007138611502 | E24: =IF($L$31<>"",IF(INPUT!$H$10=1,(_xlfn.NORM.DIST(C24,$L$31,$M$31,TRUE)-_xlfn.NORM.DIST(B24,$L$31,$M$31,TRUE))*(1-BRLRWT!$H$10/100),(_xlfn.NORM.DIST(C24,$L$31,$M$31,TRUE)-_xlfn.NORM.DIST(B24,$L$31,$M$31,TRUE))),"") -> 0.04209088052 | F24: 0.04922949202 | G24: =IF(D24<>"",D24*BRLRWT!$H$9*1000,"") -> 49.97028051 | H24: =IF(E24<>"",E24*BRLRWT!$H$9*1000,"") -> 294.6361636 | I24: 344.6064442
B25: 0.4166476175 | C25: 0.4289045016 | D25: =IF($L$30<>"",IF(INPUT!$H$10=1,(_xlfn.NORM.DIST(C25,$L$30,$M$30,TRUE)-_xlfn.NORM.DIST(B25,$L$30,$M$30,TRUE))*BRLRWT!$H$10/100,(_xlfn.NORM.DIST(C25,$L$30,$M$30,TRUE)-_xlfn.NORM.DIST(B25,$L$30,$M$30,TRUE))),"") -> 0.01239423644 | E25: =IF($L$31<>"",IF(INPUT!$H$10=1,(_xlfn.NORM.DIST(C25,$L$31,$M$31,TRUE)-_xlfn.NORM.DIST(B25,$L$31,$M$31,TRUE))*(1-BRLRWT!$H$10/100),(_xlfn.NORM.DIST(C25,$L$31,$M$31,TRUE)-_xlfn.NORM.DIST(B25,$L$31,$M$31,TRUE))),"") -> 0.05530076314 | F25: 0.06769499959 | G25: =IF(D25<>"",D25*BRLRWT!$H$9*1000,"") -> 86.7596551 | H25: =IF(E25<>"",E25*BRLRWT!$H$9*1000,"") -> 387.105342 | I25: 473.8649971
B26: 0.4289045016 | C26: 0.4411613858 | D26: =IF($L$30<>"",IF(INPUT!$H$10=1,(_xlfn.NORM.DIST(C26,$L$30,$M$30,TRUE)-_xlfn.NORM.DIST(B26,$L$30,$M$30,TRUE))*BRLRWT!$H$10/100,(_xlfn.NORM.DIST(C26,$L$30,$M$30,TRUE)-_xlfn.NORM.DIST(B26,$L$30,$M$30,TRUE))),"") -> 0.01978062346 | E26: =IF($L$31<>"",IF(INPUT!$H$10=1,(_xlfn.NORM.DIST(C26,$L$31,$M$31,TRUE)-_xlfn.NORM.DIST(B26,$L$31,$M$31,TRUE))*(1-BRLRWT!$H$10/100),(_xlfn.NORM.DIST(C26,$L$31,$M$31,TRUE)-_xlfn.NORM.DIST(B26,$L$31,$M$31,TRUE))),"") -> 0.06476020345 | F26: 0.08454082692 | G26: =IF(D26<>"",D26*BRLRWT!$H$9*1000,"") -> 138.4643642 | H26: =IF(E26<>"",E26*BRLRWT!$H$9*1000,"") -> 453.3214242 | I26: 591.7857884
B27: 0.4411613858 | C27: 0.4534182699 | D27: =IF($L$30<>"",IF(INPUT!$H$10=1,(_xlfn.NORM.DIST(C27,$L$30,$M$30,TRUE)-_xlfn.NORM.DIST(B27,$L$30,$M$30,TRUE))*BRLRWT!$H$10/100,(_xlfn.NORM.DIST(C27,$L$30,$M$30,TRUE)-_xlfn.NORM.DIST(B27,$L$30,$M$30,TRUE))),"") -> 0.02901852663 | E27: =IF($L$31<>"",IF(INPUT!$H$10=1,(_xlfn.NORM.DIST(C27,$L$31,$M$31,TRUE)-_xlfn.NORM.DIST(B27,$L$31,$M$31,TRUE))*(1-BRLRWT!$H$10/100),(_xlfn.NORM.DIST(C27,$L$31,$M$31,TRUE)-_xlfn.NORM.DIST(B27,$L$31,$M$31,TRUE))),"") -> 0.06759586704 | F27: 0.09661439367 | G27: =IF(D27<>"",D27*BRLRWT!$H$9*1000,"") -> 203.1296864 | H27: =IF(E27<>"",E27*BRLRWT!$H$9*1000,"") -> 473.1710693 | I27: 676.3007557
B28: 0.4534182699 | C28: 0.465675154 | D28: =IF($L$30<>"",IF(INPUT!$H$10=1,(_xlfn.NORM.DIST(C28,$L$30,$M$30,TRUE)-_xlfn.NORM.DIST(B28,$L$30,$M$30,TRUE))*BRLRWT!$H$10/100,(_xlfn.NORM.DIST(C28,$L$30,$M$30,TRUE)-_xlfn.NORM.DIST(B28,$L$30,$M$30,TRUE))),"") -> 0.03913152372 | E28: =IF($L$31<>"",IF(INPUT!$H$10=1,(_xlfn.NORM.DIST(C28,$L$31,$M$31,TRUE)-_xlfn.NORM.DIST(B28,$L$31,$M$31,TRUE))*(1-BRLRWT!$H$10/100),(_xlfn.NORM.DIST(C28,$L$31,$M$31,TRUE)-_xlfn.NORM.DIST(B28,$L$31,$M$31,TRUE))),"") -> 0.06288791305 | F28: 0.1020194368 | G28: =IF(D28<>"",D28*BRLRWT!$H$9*1000,"") -> 273.9206661 | H28: =IF(E28<>"",E28*BRLRWT!$H$9*1000,"") -> 440.2153914 | I28: 714.1360574 | K28: - Summary
B29: 0.465675154 | C29: 0.4779320381 | D29: =IF($L$30<>"",IF(INPUT!$H$10=1,(_xlfn.NORM.DIST(C29,$L$30,$M$30,TRUE)-_xlfn.NORM.DIST(B29,$L$30,$M$30,TRUE))*BRLRWT!$H$10/100,(_xlfn.NORM.DIST(C29,$L$30,$M$30,TRUE)-_xlfn.NORM.DIST(B29,$L$30,$M$30,TRUE))),"") -> 0.04850592977 | E29: =IF($L$31<>"",IF(INPUT!$H$10=1,(_xlfn.NORM.DIST(C29,$L$31,$M$31,TRUE)-_xlfn.NORM.DIST(B29,$L$31,$M$31,TRUE))*(1-BRLRWT!$H$10/100),(_xlfn.NORM.DIST(C29,$L$31,$M$31,TRUE)-_xlfn.NORM.DIST(B29,$L$31,$M$31,TRUE))),"") -> 0.05214935187 | F29: 0.1006552816 | G29: =IF(D29<>"",D29*BRLRWT!$H$9*1000,"") -> 339.5415084 | H29: =IF(E29<>"",E29*BRLRWT!$H$9*1000,"") -> 365.0454631 | I29: 704.5869715 | K29: Unit (lbs) | L29: Mean | M29: Std. Dev. | N29: C.V. (%)
B30: 0.4779320381 | C30: 0.4901889223 | D30: =IF($L$30<>"",IF(INPUT!$H$10=1,(_xlfn.NORM.DIST(C30,$L$30,$M$30,TRUE)-_xlfn.NORM.DIST(B30,$L$30,$M$30,TRUE))*BRLRWT!$H$10/100,(_xlfn.NORM.DIST(C30,$L$30,$M$30,TRUE)-_xlfn.NORM.DIST(B30,$L$30,$M$30,TRUE))),"") -> 0.05526880238 | E30: =IF($L$31<>"",IF(INPUT!$H$10=1,(_xlfn.NORM.DIST(C30,$L$31,$M$31,TRUE)-_xlfn.NORM.DIST(B30,$L$31,$M$31,TRUE))*(1-BRLRWT!$H$10/100),(_xlfn.NORM.DIST(C30,$L$31,$M$31,TRUE)-_xlfn.NORM.DIST(B30,$L$31,$M$31,TRUE))),"") -> 0.03854466569 | F30: 0.09381346807 | G30: =IF(D30<>"",D30*BRLRWT!$H$9*1000,"") -> 386.8816167 | H30: =IF(E30<>"",E30*BRLRWT!$H$9*1000,"") -> 269.8126598 | I30: 656.6942765 | K30: Male | L30: 0.4969242773 | M30: 0.04208232 | N30: =IF(L30<>"",M30/L30*100,"") -> 8.468557871
B31: 0.4901889223 | C31: 0.5024458064 | D31: =IF($L$30<>"",IF(INPUT!$H$10=1,(_xlfn.NORM.DIST(C31,$L$30,$M$30,TRUE)-_xlfn.NORM.DIST(B31,$L$30,$M$30,TRUE))*BRLRWT!$H$10/100,(_xlfn.NORM.DIST(C31,$L$30,$M$30,TRUE)-_xlfn.NORM.DIST(B31,$L$30,$M$30,TRUE))),"") -> 0.05788722191 | E31: =IF($L$31<>"",IF(INPUT!$H$10=1,(_xlfn.NORM.DIST(C31,$L$31,$M$31,TRUE)-_xlfn.NORM.DIST(B31,$L$31,$M$31,TRUE))*(1-BRLRWT!$H$10/100),(_xlfn.NORM.DIST(C31,$L$31,$M$31,TRUE)-_xlfn.NORM.DIST(B31,$L$31,$M$31,TRUE))),"") -> 0.02539285823 | F31: 0.08328008014 | G31: =IF(D31<>"",D31*BRLRWT!$H$9*1000,"") -> 405.2105534 | H31: =IF(E31<>"",E31*BRLRWT!$H$9*1000,"") -> 177.7500076 | I31: 582.960561 | K31: Female | L31: 0.44572708 | M31: 0.03596133585 | N31: =IF(L31<>"",M31/L31*100,"") -> 8.068016834
B32: 0.5024458064 | C32: 0.5147026905 | D32: =IF($L$30<>"",IF(INPUT!$H$10=1,(_xlfn.NORM.DIST(C32,$L$30,$M$30,TRUE)-_xlfn.NORM.DIST(B32,$L$30,$M$30,TRUE))*BRLRWT!$H$10/100,(_xlfn.NORM.DIST(C32,$L$30,$M$30,TRUE)-_xlfn.NORM.DIST(B32,$L$30,$M$30,TRUE))),"") -> 0.05573177778 | E32: =IF($L$31<>"",IF(INPUT!$H$10=1,(_xlfn.NORM.DIST(C32,$L$31,$M$31,TRUE)-_xlfn.NORM.DIST(B32,$L$31,$M$31,TRUE))*(1-BRLRWT!$H$10/100),(_xlfn.NORM.DIST(C32,$L$31,$M$31,TRUE)-_xlfn.NORM.DIST(B32,$L$31,$M$31,TRUE))),"") -> 0.01491037271 | F32: 0.0706421505 | G32: =IF(D32<>"",D32*BRLRWT!$H$9*1000,"") -> 390.1224445 | H32: =IF(E32<>"",E32*BRLRWT!$H$9*1000,"") -> 104.372609 | I32: 494.4950535 | K32: S/Run | L32: 0.4713256787 | M32: 0.04676919839 | N32: =IF(L32<>"",M32/L32*100,"") -> 9.922904799
B33: 0.5147026905 | C33: 0.5269595746 | D33: =IF($L$30<>"",IF(INPUT!$H$10=1,(_xlfn.NORM.DIST(C33,$L$30,$M$30,TRUE)-_xlfn.NORM.DIST(B33,$L$30,$M$30,TRUE))*BRLRWT!$H$10/100,(_xlfn.NORM.DIST(C33,$L$30,$M$30,TRUE)-_xlfn.NORM.DIST(B33,$L$30,$M$30,TRUE))),"") -> 0.04932198397 | E33: =IF($L$31<>"",IF(INPUT!$H$10=1,(_xlfn.NORM.DIST(C33,$L$31,$M$31,TRUE)-_xlfn.NORM.DIST(B33,$L$31,$M$31,TRUE))*(1-BRLRWT!$H$10/100),(_xlfn.NORM.DIST(C33,$L$31,$M$31,TRUE)-_xlfn.NORM.DIST(B33,$L$31,$M$31,TRUE))),"") -> 0.007803547381 | F33: 0.05712553135 | G33: =IF(D33<>"",D33*BRLRWT!$H$9*1000,"") -> 345.2538878 | H33: =IF(E33<>"",E33*BRLRWT!$H$9*1000,"") -> 54.62483166 | I33: 399.8787194
B34: 0.5269595746 | C34: 0.5392164588 | D34: =IF($L$30<>"",IF(INPUT!$H$10=1,(_xlfn.NORM.DIST(C34,$L$30,$M$30,TRUE)-_xlfn.NORM.DIST(B34,$L$30,$M$30,TRUE))*BRLRWT!$H$10/100,(_xlfn.NORM.DIST(C34,$L$30,$M$30,TRUE)-_xlfn.NORM.DIST(B34,$L$30,$M$30,TRUE))),"") -> 0.04012318138 | E34: =IF($L$31<>"",IF(INPUT!$H$10=1,(_xlfn.NORM.DIST(C34,$L$31,$M$31,TRUE)-_xlfn.NORM.DIST(B34,$L$31,$M$31,TRUE))*(1-BRLRWT!$H$10/100),(_xlfn.NORM.DIST(C34,$L$31,$M$31,TRUE)-_xlfn.NORM.DIST(B34,$L$31,$M$31,TRUE))),"") -> 0.003640145636 | F34: 0.04376332701 | G34: =IF(D34<>"",D34*BRLRWT!$H$9*1000,"") -> 280.8622697 | H34: =IF(E34<>"",E34*BRLRWT!$H$9*1000,"") -> 25.48101945 | I34: 306.3432891
B35: 0.5392164588 | C35: 0.5514733429 | D35: =IF($L$30<>"",IF(INPUT!$H$10=1,(_xlfn.NORM.DIST(C35,$L$30,$M$30,TRUE)-_xlfn.NORM.DIST(B35,$L$30,$M$30,TRUE))*BRLRWT!$H$10/100,(_xlfn.NORM.DIST(C35,$L$30,$M$30,TRUE)-_xlfn.NORM.DIST(B35,$L$30,$M$30,TRUE))),"") -> 0.03000315413 | E35: =IF($L$31<>"",IF(INPUT!$H$10=1,(_xlfn.NORM.DIST(C35,$L$31,$M$31,TRUE)-_xlfn.NORM.DIST(B35,$L$31,$M$31,TRUE))*(1-BRLRWT!$H$10/100),(_xlfn.NORM.DIST(C35,$L$31,$M$31,TRUE)-_xlfn.NORM.DIST(B35,$L$31,$M$31,TRUE))),"") -> 0.001513437329 | F35: 0.03151659146 | G35: =IF(D35<>"",D35*BRLRWT!$H$9*1000,"") -> 210.0220789 | H35: =IF(E35<>"",E35*BRLRWT!$H$9*1000,"") -> 10.5940613 | I35: 220.6161402
B36: 0.5514733429 | C36: 0.563730227 | D36: =IF($L$30<>"",IF(INPUT!$H$10=1,(_xlfn.NORM.DIST(C36,$L$30,$M$30,TRUE)-_xlfn.NORM.DIST(B36,$L$30,$M$30,TRUE))*BRLRWT!$H$10/100,(_xlfn.NORM.DIST(C36,$L$30,$M$30,TRUE)-_xlfn.NORM.DIST(B36,$L$30,$M$30,TRUE))),"") -> 0.02062312892 | E36: =IF($L$31<>"",IF(INPUT!$H$10=1,(_xlfn.NORM.DIST(C36,$L$31,$M$31,TRUE)-_xlfn.NORM.DIST(B36,$L$31,$M$31,TRUE))*(1-BRLRWT!$H$10/100),(_xlfn.NORM.DIST(C36,$L$31,$M$31,TRUE)-_xlfn.NORM.DIST(B36,$L$31,$M$31,TRUE))),"") -> 0.0005608212301 | F36: 0.02118395015 | G36: =IF(D36<>"",D36*BRLRWT!$H$9*1000,"") -> 144.3619025 | H36: =IF(E36<>"",E36*BRLRWT!$H$9*1000,"") -> 3.92574861 | I36: 148.2876511
B37: 0.563730227 | C37: 0.5759871111 | D37: =IF($L$30<>"",IF(INPUT!$H$10=1,(_xlfn.NORM.DIST(C37,$L$30,$M$30,TRUE)-_xlfn.NORM.DIST(B37,$L$30,$M$30,TRUE))*BRLRWT!$H$10/100,(_xlfn.NORM.DIST(C37,$L$30,$M$30,TRUE)-_xlfn.NORM.DIST(B37,$L$30,$M$30,TRUE))),"") -> 0.0130303918 | E37: =IF($L$31<>"",IF(INPUT!$H$10=1,(_xlfn.NORM.DIST(C37,$L$31,$M$31,TRUE)-_xlfn.NORM.DIST(B37,$L$31,$M$31,TRUE))*(1-BRLRWT!$H$10/100),(_xlfn.NORM.DIST(C37,$L$31,$M$31,TRUE)-_xlfn.NORM.DIST(B37,$L$31,$M$31,TRUE))),"") -> 0.0001852224287 | F37: 0.01321561423 | G37: =IF(D37<>"",D37*BRLRWT!$H$9*1000,"") -> 91.21274259 | H37: =IF(E37<>"",E37*BRLRWT!$H$9*1000,"") -> 1.296557001 | I37: 92.50929959
B38: 0.5759871111 | C38: 0.5882439953 | D38: =IF($L$30<>"",IF(INPUT!$H$10=1,(_xlfn.NORM.DIST(C38,$L$30,$M$30,TRUE)-_xlfn.NORM.DIST(B38,$L$30,$M$30,TRUE))*BRLRWT!$H$10/100,(_xlfn.NORM.DIST(C38,$L$30,$M$30,TRUE)-_xlfn.NORM.DIST(B38,$L$30,$M$30,TRUE))),"") -> 0.007567887538 | E38: =IF($L$31<>"",IF(INPUT!$H$10=1,(_xlfn.NORM.DIST(C38,$L$31,$M$31,TRUE)-_xlfn.NORM.DIST(B38,$L$31,$M$31,TRUE))*(1-BRLRWT!$H$10/100),(_xlfn.NORM.DIST(C38,$L$31,$M$31,TRUE)-_xlfn.NORM.DIST(B38,$L$31,$M$31,TRUE))),"") -> 5.452129178e-05 | F38: 0.00762240883 | G38: =IF(D38<>"",D38*BRLRWT!$H$9*1000,"") -> 52.97521277 | H38: =IF(E38<>"",E38*BRLRWT!$H$9*1000,"") -> 0.3816490424 | I38: 53.35686181
B39: 0.5882439953 | C39: 0.6005008794 | D39: =IF($L$30<>"",IF(INPUT!$H$10=1,(_xlfn.NORM.DIST(C39,$L$30,$M$30,TRUE)-_xlfn.NORM.DIST(B39,$L$30,$M$30,TRUE))*BRLRWT!$H$10/100,(_xlfn.NORM.DIST(C39,$L$30,$M$30,TRUE)-_xlfn.NORM.DIST(B39,$L$30,$M$30,TRUE))),"") -> 0.004040219607 | E39: =IF($L$31<>"",IF(INPUT!$H$10=1,(_xlfn.NORM.DIST(C39,$L$31,$M$31,TRUE)-_xlfn.NORM.DIST(B39,$L$31,$M$31,TRUE))*(1-BRLRWT!$H$10/100),(_xlfn.NORM.DIST(C39,$L$31,$M$31,TRUE)-_xlfn.NORM.DIST(B39,$L$31,$M$31,TRUE))),"") -> 1.430329121e-05 | F39: 0.004054522898 | G39: =IF(D39<>"",D39*BRLRWT!$H$9*1000,"") -> 28.28153725 | H39: =IF(E39<>"",E39*BRLRWT!$H$9*1000,"") -> 0.1001230385 | I39: 28.38166029
B40: 0.6005008794 | C40: 0.6127577635 | D40: =IF($L$30<>"",IF(INPUT!$H$10=1,(_xlfn.NORM.DIST(C40,$L$30,$M$30,TRUE)-_xlfn.NORM.DIST(B40,$L$30,$M$30,TRUE))*BRLRWT!$H$10/100,(_xlfn.NORM.DIST(C40,$L$30,$M$30,TRUE)-_xlfn.NORM.DIST(B40,$L$30,$M$30,TRUE))),"") -> 0.001982654496 | E40: =IF($L$31<>"",IF(INPUT!$H$10=1,(_xlfn.NORM.DIST(C40,$L$31,$M$31,TRUE)-_xlfn.NORM.DIST(B40,$L$31,$M$31,TRUE))*(1-BRLRWT!$H$10/100),(_xlfn.NORM.DIST(C40,$L$31,$M$31,TRUE)-_xlfn.NORM.DIST(B40,$L$31,$M$31,TRUE))),"") -> 3.344232977e-06 | F40: 0.001985998729 | G40: =IF(D40<>"",D40*BRLRWT!$H$9*1000,"") -> 13.87858148 | H40: =IF(E40<>"",E40*BRLRWT!$H$9*1000,"") -> 0.02340963084 | I40: 13.90199111
B41: 0.6127577635 | C41: 0.6250146476 | D41: =IF($L$30<>"",IF(INPUT!$H$10=1,(_xlfn.NORM.DIST(C41,$L$30,$M$30,TRUE)-_xlfn.NORM.DIST(B41,$L$30,$M$30,TRUE))*BRLRWT!$H$10/100,(_xlfn.NORM.DIST(C41,$L$30,$M$30,TRUE)-_xlfn.NORM.DIST(B41,$L$30,$M$30,TRUE))),"") -> 0.0008943332208 | E41: =IF($L$31<>"",IF(INPUT!$H$10=1,(_xlfn.NORM.DIST(C41,$L$31,$M$31,TRUE)-_xlfn.NORM.DIST(B41,$L$31,$M$31,TRUE))*(1-BRLRWT!$H$10/100),(_xlfn.NORM.DIST(C41,$L$31,$M$31,TRUE)-_xlfn.NORM.DIST(B41,$L$31,$M$31,TRUE))),"") -> 6.968523943e-07 | F41: 0.0008950300732 | G41: =IF(D41<>"",D41*BRLRWT!$H$9*1000,"") -> 6.260332546 | H41: =IF(E41<>"",E41*BRLRWT!$H$9*1000,"") -> 0.00487796676 | I41: 6.265210512
B42: 0.6250146476 | C42: 0.6372715318 | D42: =IF($L$30<>"",IF(INPUT!$H$10=1,(_xlfn.NORM.DIST(C42,$L$30,$M$30,TRUE)-_xlfn.NORM.DIST(B42,$L$30,$M$30,TRUE))*BRLRWT!$H$10/100,(_xlfn.NORM.DIST(C42,$L$30,$M$30,TRUE)-_xlfn.NORM.DIST(B42,$L$30,$M$30,TRUE))),"") -> 0.0003708175446 | E42: =IF($L$31<>"",IF(INPUT!$H$10=1,(_xlfn.NORM.DIST(C42,$L$31,$M$31,TRUE)-_xlfn.NORM.DIST(B42,$L$31,$M$31,TRUE))*(1-BRLRWT!$H$10/100),(_xlfn.NORM.DIST(C42,$L$31,$M$31,TRUE)-_xlfn.NORM.DIST(B42,$L$31,$M$31,TRUE))),"") -> 1.294081013e-07 | F42: 0.0003709469527 | G42: =IF(D42<>"",D42*BRLRWT!$H$9*1000,"") -> 2.595722812 | H42: =IF(E42<>"",E42*BRLRWT!$H$9*1000,"") -> 0.0009058567094 | I42: 2.596628669
B43: 0.6372715318 | C43: 0.6495284159 | D43: =IF($L$30<>"",IF(INPUT!$H$10=1,(_xlfn.NORM.DIST(C43,$L$30,$M$30,TRUE)-_xlfn.NORM.DIST(B43,$L$30,$M$30,TRUE))*BRLRWT!$H$10/100,(_xlfn.NORM.DIST(C43,$L$30,$M$30,TRUE)-_xlfn.NORM.DIST(B43,$L$30,$M$30,TRUE))),"") -> 0.0001413279126 | E43: =IF($L$31<>"",IF(INPUT!$H$10=1,(_xlfn.NORM.DIST(C43,$L$31,$M$31,TRUE)-_xlfn.NORM.DIST(B43,$L$31,$M$31,TRUE))*(1-BRLRWT!$H$10/100),(_xlfn.NORM.DIST(C43,$L$31,$M$31,TRUE)-_xlfn.NORM.DIST(B43,$L$31,$M$31,TRUE))),"") -> 2.141661759e-08 | F43: 0.0001413493292 | G43: =IF(D43<>"",D43*BRLRWT!$H$9*1000,"") -> 0.9892953883 | H43: =IF(E43<>"",E43*BRLRWT!$H$9*1000,"") -> 0.0001499163231 | I43: 0.9894453046
B44: 0.6495284159 | C44: 0.6617853 | D44: =IF($L$30<>"",IF(INPUT!$H$10=1,(_xlfn.NORM.DIST(C44,$L$30,$M$30,TRUE)-_xlfn.NORM.DIST(B44,$L$30,$M$30,TRUE))*BRLRWT!$H$10/100,(_xlfn.NORM.DIST(C44,$L$30,$M$30,TRUE)-_xlfn.NORM.DIST(B44,$L$30,$M$30,TRUE))),"") -> 4.951085183e-05 | E44: =IF($L$31<>"",IF(INPUT!$H$10=1,(_xlfn.NORM.DIST(C44,$L$31,$M$31,TRUE)-_xlfn.NORM.DIST(B44,$L$31,$M$31,TRUE))*(1-BRLRWT!$H$10/100),(_xlfn.NORM.DIST(C44,$L$31,$M$31,TRUE)-_xlfn.NORM.DIST(B44,$L$31,$M$31,TRUE))),"") -> 3.158647122e-09 | F44: 4.951401047e-05 | G44: =IF(D44<>"",D44*BRLRWT!$H$9*1000,"") -> 0.3465759628 | H44: =IF(E44<>"",E44*BRLRWT!$H$9*1000,"") -> 2.211052985e-05 | I44: 0.3465980733
B45: 0.6617853 | C45: ="inf." -> inf. | D45: =IF($L$30<>"",IF(INPUT!$H$10=1,(1-_xlfn.NORM.DIST(B45,$L$30,$M$30,TRUE))*BRLRWT!$H$10/100,(1-_xlfn.NORM.DIST(B45,$L$30,$M$30,TRUE))),"") -> 2.236022265e-05 | E45: =IF($L$31<>"",IF(INPUT!$H$10=1,(1-_xlfn.NORM.DIST(B44,$L$31,$M$31,TRUE))*(1-BRLRWT!$H$10/100),(1-_xlfn.NORM.DIST(B44,$L$31,$M$31,TRUE))),"") -> 3.628009337e-09 | F45: 2.236385066e-05 | G45: =IF(D45<>"",D45*BRLRWT!$H$9*1000,"") -> 0.1565215586 | H45: =IF(E45<>"",E45*BRLRWT!$H$9*1000,"") -> 2.539606536e-05 | I45: 0.1565469546
B46: Total | D46: =SUM(D12:D45) -> 0.5 | E46: 0.5000000032 | F46: 1.000000003 | G46: 3500 | H46: 3500.000022 | I46: 7000.000022

Sheet DrumWT
A8: 3-6. Results - Drum Weight Distribution | K8: Breed
B10: Weight (lbs) | D10: Percentage | G10: Numbers
B11: Min. (>) | C11: Max. (≤) | D11: Male | E11: Female | F11: S/Run | G11: Male | H11: Female | I11: S/Run
B12: ="-inf." -> -inf. | C12: =$M$13 -> 0.2334983734 | D12: =IF($L$30<>"",IF(INPUT!$H$10=1,_xlfn.NORM.DIST(C12,$L$30,$M$30,TRUE)*BRLRWT!$H$10/100,_xlfn.NORM.DIST(C12,$L$30,$M$30,TRUE)),"") -> 1.640886614e-08 | E12: =IF($L$31<>"",IF(INPUT!$H$10=1,_xlfn.NORM.DIST(C12,$L$31,$M$31,TRUE)*(1-BRLRWT!$H$10/100),_xlfn.NORM.DIST(C12,$L$31,$M$31,TRUE)),"") -> 5.534400999e-06 | F12: =IF(D12<>"",IF(E12<>"",D12+E12,""),"") -> 5.550809865e-06 | G12: =IF(D12<>"",D12*BRLRWT!$H$9*1000,"") -> 0.000114862063 | H12: =IF(E12<>"",E12*BRLRWT!$H$9*1000,"") -> 0.03874080699 | I12: =IF(G12<>"",IF(H12<>"",G12+H12,""),"") -> 0.03885566906 | L12: Range
B13: =C12 -> 0.2334983734 | C13: =C12+$M$14 -> 0.2404716865 | D13: =IF($L$30<>"",IF(INPUT!$H$10=1,(_xlfn.NORM.DIST(C13,$L$30,$M$30,TRUE)-_xlfn.NORM.DIST(B13,$L$30,$M$30,TRUE))*BRLRWT!$H$10/100,(_xlfn.NORM.DIST(C13,$L$30,$M$30,TRUE)-_xlfn.NORM.DIST(B13,$L$30,$M$30,TRUE))),"") -> 5.256282781e-08 | E13: =IF($L$31<>"",IF(INPUT!$H$10=1,(_xlfn.NORM.DIST(C13,$L$31,$M$31,TRUE)-_xlfn.NORM.DIST(B13,$L$31,$M$31,TRUE))*(1-BRLRWT!$H$10/100),(_xlfn.NORM.DIST(C13,$L$31,$M$31,TRUE)-_xlfn.NORM.DIST(B13,$L$31,$M$31,TRUE))),"") -> 1.643416063e-05 | F13: =IF(D13<>"",IF(E13<>"",D13+E13,""),"") -> 1.648672346e-05 | G13: =IF(D13<>"",D13*BRLRWT!$H$9*1000,"") -> 0.0003679397947 | H13: =IF(E13<>"",E13*BRLRWT!$H$9*1000,"") -> 0.1150391244 | I13: =IF(G13<>"",IF(H13<>"",G13+H13,""),"") -> 0.1154070642 | L13: min | M13: 0.2334983734
B14: =C13 -> 0.2404716865 | C14: =C13+$M$14 -> 0.2474449997 | D14: =IF($L$30<>"",IF(INPUT!$H$10=1,(_xlfn.NORM.DIST(C14,$L$30,$M$30,TRUE)-_xlfn.NORM.DIST(B14,$L$30,$M$30,TRUE))*BRLRWT!$H$10/100,(_xlfn.NORM.DIST(C14,$L$30,$M$30,TRUE)-_xlfn.NORM.DIST(B14,$L$30,$M$30,TRUE))),"") -> 2.020784377e-07 | E14: =IF($L$31<>"",IF(INPUT!$H$10=1,(_xlfn.NORM.DIST(C14,$L$31,$M$31,TRUE)-_xlfn.NORM.DIST(B14,$L$31,$M$31,TRUE))*(1-BRLRWT!$H$10/100),(_xlfn.NORM.DIST(C14,$L$31,$M$31,TRUE)-_xlfn.NORM.DIST(B14,$L$31,$M$31,TRUE))),"") -> 5.712097706e-05 | F14: =IF(D14<>"",IF(E14<>"",D14+E14,""),"") -> 5.73230555e-05 | G14: =IF(D14<>"",D14*BRLRWT!$H$9*1000,"") -> 0.001414549064 | H14: =IF(E14<>"",E14*BRLRWT!$H$9*1000,"") -> 0.3998468394 | I14: =IF(G14<>"",IF(H14<>"",G14+H14,""),"") -> 0.4012613885 | L14: step size | M14: 0.006973313144
B15: =C14 -> 0.2474449997 | C15: =C14+$M$14 -> 0.2544183128 | D15: =IF($L$30<>"",IF(INPUT!$H$10=1,(_xlfn.NORM.DIST(C15,$L$30,$M$30,TRUE)-_xlfn.NORM.DIST(B15,$L$30,$M$30,TRUE))*BRLRWT!$H$10/100,(_xlfn.NORM.DIST(C15,$L$30,$M$30,TRUE)-_xlfn.NORM.DIST(B15,$L$30,$M$30,TRUE))),"") -> 7.250447213e-07 | E15: =IF($L$31<>"",IF(INPUT!$H$10=1,(_xlfn.NORM.DIST(C15,$L$31,$M$31,TRUE)-_xlfn.NORM.DIST(B15,$L$31,$M$31,TRUE))*(1-BRLRWT!$H$10/100),(_xlfn.NORM.DIST(C15,$L$31,$M$31,TRUE)-_xlfn.NORM.DIST(B15,$L$31,$M$31,TRUE))),"") -> 0.000179323348 | F15: 0.0001800483927 | G15: =IF(D15<>"",D15*BRLRWT!$H$9*1000,"") -> 0.005075313049 | H15: =IF(E15<>"",E15*BRLRWT!$H$9*1000,"") -> 1.255263436 | I15: 1.260338749
B16: 0.2544183128 | C16: 0.261391626 | D16: =IF($L$30<>"",IF(INPUT!$H$10=1,(_xlfn.NORM.DIST(C16,$L$30,$M$30,TRUE)-_xlfn.NORM.DIST(B16,$L$30,$M$30,TRUE))*BRLRWT!$H$10/100,(_xlfn.NORM.DIST(C16,$L$30,$M$30,TRUE)-_xlfn.NORM.DIST(B16,$L$30,$M$30,TRUE))),"") -> 2.427809132e-06 | E16: =IF($L$31<>"",IF(INPUT!$H$10=1,(_xlfn.NORM.DIST(C16,$L$31,$M$31,TRUE)-_xlfn.NORM.DIST(B16,$L$31,$M$31,TRUE))*(1-BRLRWT!$H$10/100),(_xlfn.NORM.DIST(C16,$L$31,$M$31,TRUE)-_xlfn.NORM.DIST(B16,$L$31,$M$31,TRUE))),"") -> 0.0005084815346 | F16: 0.0005109093438 | G16: =IF(D16<>"",D16*BRLRWT!$H$9*1000,"") -> 0.01699466392 | H16: =IF(E16<>"",E16*BRLRWT!$H$9*1000,"") -> 3.559370742 | I16: 3.576365406
B17: 0.261391626 | C17: 0.2683649391 | D17: =IF($L$30<>"",IF(INPUT!$H$10=1,(_xlfn.NORM.DIST(C17,$L$30,$M$30,TRUE)-_xlfn.NORM.DIST(B17,$L$30,$M$30,TRUE))*BRLRWT!$H$10/100,(_xlfn.NORM.DIST(C17,$L$30,$M$30,TRUE)-_xlfn.NORM.DIST(B17,$L$30,$M$30,TRUE))),"") -> 7.587007556e-06 | E17: =IF($L$31<>"",IF(INPUT!$H$10=1,(_xlfn.NORM.DIST(C17,$L$31,$M$31,TRUE)-_xlfn.NORM.DIST(B17,$L$31,$M$31,TRUE))*(1-BRLRWT!$H$10/100),(_xlfn.NORM.DIST(C17,$L$31,$M$31,TRUE)-_xlfn.NORM.DIST(B17,$L$31,$M$31,TRUE))),"") -> 0.001302310081 | F17: 0.001309897088 | G17: =IF(D17<>"",D17*BRLRWT!$H$9*1000,"") -> 0.05310905289 | H17: =IF(E17<>"",E17*BRLRWT!$H$9*1000,"") -> 9.116170564 | I17: 9.169279617
B18: 0.2683649391 | C18: 0.2753382523 | D18: =IF($L$30<>"",IF(INPUT!$H$10=1,(_xlfn.NORM.DIST(C18,$L$30,$M$30,TRUE)-_xlfn.NORM.DIST(B18,$L$30,$M$30,TRUE))*BRLRWT!$H$10/100,(_xlfn.NORM.DIST(C18,$L$30,$M$30,TRUE)-_xlfn.NORM.DIST(B18,$L$30,$M$30,TRUE))),"") -> 2.212758247e-05 | E18: =IF($L$31<>"",IF(INPUT!$H$10=1,(_xlfn.NORM.DIST(C18,$L$31,$M$31,TRUE)-_xlfn.NORM.DIST(B18,$L$31,$M$31,TRUE))*(1-BRLRWT!$H$10/100),(_xlfn.NORM.DIST(C18,$L$31,$M$31,TRUE)-_xlfn.NORM.DIST(B18,$L$31,$M$31,TRUE))),"") -> 0.003012714012 | F18: 0.003034841595 | G18: =IF(D18<>"",D18*BRLRWT!$H$9*1000,"") -> 0.1548930773 | H18: =IF(E18<>"",E18*BRLRWT!$H$9*1000,"") -> 21.08899809 | I18: 21.24389116
B19: 0.2753382523 | C19: 0.2823115654 | D19: =IF($L$30<>"",IF(INPUT!$H$10=1,(_xlfn.NORM.DIST(C19,$L$30,$M$30,TRUE)-_xlfn.NORM.DIST(B19,$L$30,$M$30,TRUE))*BRLRWT!$H$10/100,(_xlfn.NORM.DIST(C19,$L$30,$M$30,TRUE)-_xlfn.NORM.DIST(B19,$L$30,$M$30,TRUE))),"") -> 6.022905907e-05 | E19: =IF($L$31<>"",IF(INPUT!$H$10=1,(_xlfn.NORM.DIST(C19,$L$31,$M$31,TRUE)-_xlfn.NORM.DIST(B19,$L$31,$M$31,TRUE))*(1-BRLRWT!$H$10/100),(_xlfn.NORM.DIST(C19,$L$31,$M$31,TRUE)-_xlfn.NORM.DIST(B19,$L$31,$M$31,TRUE))),"") -> 0.006295189329 | F19: 0.006355418388 | G19: =IF(D19<>"",D19*BRLRWT!$H$9*1000,"") -> 0.4216034135 | H19: =IF(E19<>"",E19*BRLRWT!$H$9*1000,"") -> 44.0663253 | I19: 44.48792872
B20: 0.2823115654 | C20: 0.2892848786 | D20: =IF($L$30<>"",IF(INPUT!$H$10=1,(_xlfn.NORM.DIST(C20,$L$30,$M$30,TRUE)-_xlfn.NORM.DIST(B20,$L$30,$M$30,TRUE))*BRLRWT!$H$10/100,(_xlfn.NORM.DIST(C20,$L$30,$M$30,TRUE)-_xlfn.NORM.DIST(B20,$L$30,$M$30,TRUE))),"") -> 0.0001529987799 | E20: =IF($L$31<>"",IF(INPUT!$H$10=1,(_xlfn.NORM.DIST(C20,$L$31,$M$31,TRUE)-_xlfn.NORM.DIST(B20,$L$31,$M$31,TRUE))*(1-BRLRWT!$H$10/100),(_xlfn.NORM.DIST(C20,$L$31,$M$31,TRUE)-_xlfn.NORM.DIST(B20,$L$31,$M$31,TRUE))),"") -> 0.01188146033 | F20: 0.01203445911 | G20: =IF(D20<>"",D20*BRLRWT!$H$9*1000,"") -> 1.070991459 | H20: =IF(E20<>"",E20*BRLRWT!$H$9*1000,"") -> 83.17022228 | I20: 84.24121374
B21: 0.2892848786 | C21: 0.2962581917 | D21: =IF($L$30<>"",IF(INPUT!$H$10=1,(_xlfn.NORM.DIST(C21,$L$30,$M$30,TRUE)-_xlfn.NORM.DIST(B21,$L$30,$M$30,TRUE))*BRLRWT!$H$10/100,(_xlfn.NORM.DIST(C21,$L$30,$M$30,TRUE)-_xlfn.NORM.DIST(B21,$L$30,$M$30,TRUE))),"") -> 0.0003627276721 | E21: =IF($L$31<>"",IF(INPUT!$H$10=1,(_xlfn.NORM.DIST(C21,$L$31,$M$31,TRUE)-_xlfn.NORM.DIST(B21,$L$31,$M$31,TRUE))*(1-BRLRWT!$H$10/100),(_xlfn.NORM.DIST(C21,$L$31,$M$31,TRUE)-_xlfn.NORM.DIST(B21,$L$31,$M$31,TRUE))),"") -> 0.02025551947 | F21: 0.02061824714 | G21: =IF(D21<>"",D21*BRLRWT!$H$9*1000,"") -> 2.539093704 | H21: =IF(E21<>"",E21*BRLRWT!$H$9*1000,"") -> 141.7886363 | I21: 144.32773
B22: 0.2962581917 | C22: 0.3032315048 | D22: =IF($L$30<>"",IF(INPUT!$H$10=1,(_xlfn.NORM.DIST(C22,$L$30,$M$30,TRUE)-_xlfn.NORM.DIST(B22,$L$30,$M$30,TRUE))*BRLRWT!$H$10/100,(_xlfn.NORM.DIST(C22,$L$30,$M$30,TRUE)-_xlfn.NORM.DIST(B22,$L$30,$M$30,TRUE))),"") -> 0.0008025742593 | E22: =IF($L$31<>"",IF(INPUT!$H$10=1,(_xlfn.NORM.DIST(C22,$L$31,$M$31,TRUE)-_xlfn.NORM.DIST(B22,$L$31,$M$31,TRUE))*(1-BRLRWT!$H$10/100),(_xlfn.NORM.DIST(C22,$L$31,$M$31,TRUE)-_xlfn.NORM.DIST(B22,$L$31,$M$31,TRUE))),"") -> 0.03119115959 | F22: 0.03199373385 | G22: =IF(D22<>"",D22*BRLRWT!$H$9*1000,"") -> 5.618019815 | H22: =IF(E22<>"",E22*BRLRWT!$H$9*1000,"") -> 218.3381171 | I22: 223.9561369
B23: 0.3032315048 | C23: 0.310204818 | D23: =IF($L$30<>"",IF(INPUT!$H$10=1,(_xlfn.NORM.DIST(C23,$L$30,$M$30,TRUE)-_xlfn.NORM.DIST(B23,$L$30,$M$30,TRUE))*BRLRWT!$H$10/100,(_xlfn.NORM.DIST(C23,$L$30,$M$30,TRUE)-_xlfn.NORM.DIST(B23,$L$30,$M$30,TRUE))),"") -> 0.00165730521 | E23: =IF($L$31<>"",IF(INPUT!$H$10=1,(_xlfn.NORM.DIST(C23,$L$31,$M$31,TRUE)-_xlfn.NORM.DIST(B23,$L$31,$M$31,TRUE))*(1-BRLRWT!$H$10/100),(_xlfn.NORM.DIST(C23,$L$31,$M$31,TRUE)-_xlfn.NORM.DIST(B23,$L$31,$M$31,TRUE))),"") -> 0.04338462895 | F23: 0.04504193416 | G23: =IF(D23<>"",D23*BRLRWT!$H$9*1000,"") -> 11.60113647 | H23: =IF(E23<>"",E23*BRLRWT!$H$9*1000,"") -> 303.6924027 | I23: 315.2935391
B24: 0.310204818 | C24: 0.3171781311 | D24: =IF($L$30<>"",IF(INPUT!$H$10=1,(_xlfn.NORM.DIST(C24,$L$30,$M$30,TRUE)-_xlfn.NORM.DIST(B24,$L$30,$M$30,TRUE))*BRLRWT!$H$10/100,(_xlfn.NORM.DIST(C24,$L$30,$M$30,TRUE)-_xlfn.NORM.DIST(B24,$L$30,$M$30,TRUE))),"") -> 0.003193988423 | E24: =IF($L$31<>"",IF(INPUT!$H$10=1,(_xlfn.NORM.DIST(C24,$L$31,$M$31,TRUE)-_xlfn.NORM.DIST(B24,$L$31,$M$31,TRUE))*(1-BRLRWT!$H$10/100),(_xlfn.NORM.DIST(C24,$L$31,$M$31,TRUE)-_xlfn.NORM.DIST(B24,$L$31,$M$31,TRUE))),"") -> 0.05450768811 | F24: 0.05770167653 | G24: =IF(D24<>"",D24*BRLRWT!$H$9*1000,"") -> 22.35791896 | H24: =IF(E24<>"",E24*BRLRWT!$H$9*1000,"") -> 381.5538168 | I24: 403.9117357
B25: 0.3171781311 | C25: 0.3241514443 | D25: =IF($L$30<>"",IF(INPUT!$H$10=1,(_xlfn.NORM.DIST(C25,$L$30,$M$30,TRUE)-_xlfn.NORM.DIST(B25,$L$30,$M$30,TRUE))*BRLRWT!$H$10/100,(_xlfn.NORM.DIST(C25,$L$30,$M$30,TRUE)-_xlfn.NORM.DIST(B25,$L$30,$M$30,TRUE))),"") -> 0.005744847702 | E25: =IF($L$31<>"",IF(INPUT!$H$10=1,(_xlfn.NORM.DIST(C25,$L$31,$M$31,TRUE)-_xlfn.NORM.DIST(B25,$L$31,$M$31,TRUE))*(1-BRLRWT!$H$10/100),(_xlfn.NORM.DIST(C25,$L$31,$M$31,TRUE)-_xlfn.NORM.DIST(B25,$L$31,$M$31,TRUE))),"") -> 0.06185830731 | F25: 0.06760315501 | G25: =IF(D25<>"",D25*BRLRWT!$H$9*1000,"") -> 40.21393391 | H25: =IF(E25<>"",E25*BRLRWT!$H$9*1000,"") -> 433.0081512 | I25: 473.2220851
B26: 0.3241514443 | C26: 0.3311247574 | D26: =IF($L$30<>"",IF(INPUT!$H$10=1,(_xlfn.NORM.DIST(C26,$L$30,$M$30,TRUE)-_xlfn.NORM.DIST(B26,$L$30,$M$30,TRUE))*BRLRWT!$H$10/100,(_xlfn.NORM.DIST(C26,$L$30,$M$30,TRUE)-_xlfn.NORM.DIST(B26,$L$30,$M$30,TRUE))),"") -> 0.009643589899 | E26: =IF($L$31<>"",IF(INPUT!$H$10=1,(_xlfn.NORM.DIST(C26,$L$31,$M$31,TRUE)-_xlfn.NORM.DIST(B26,$L$31,$M$31,TRUE))*(1-BRLRWT!$H$10/100),(_xlfn.NORM.DIST(C26,$L$31,$M$31,TRUE)-_xlfn.NORM.DIST(B26,$L$31,$M$31,TRUE))),"") -> 0.06340991766 | F26: 0.07305350756 | G26: =IF(D26<>"",D26*BRLRWT!$H$9*1000,"") -> 67.50512929 | H26: =IF(E26<>"",E26*BRLRWT!$H$9*1000,"") -> 443.8694236 | I26: 511.3745529
B27: 0.3311247574 | C27: 0.3380980706 | D27: =IF($L$30<>"",IF(INPUT!$H$10=1,(_xlfn.NORM.DIST(C27,$L$30,$M$30,TRUE)-_xlfn.NORM.DIST(B27,$L$30,$M$30,TRUE))*BRLRWT!$H$10/100,(_xlfn.NORM.DIST(C27,$L$30,$M$30,TRUE)-_xlfn.NORM.DIST(B27,$L$30,$M$30,TRUE))),"") -> 0.01510826494 | E27: =IF($L$31<>"",IF(INPUT!$H$10=1,(_xlfn.NORM.DIST(C27,$L$31,$M$31,TRUE)-_xlfn.NORM.DIST(B27,$L$31,$M$31,TRUE))*(1-BRLRWT!$H$10/100),(_xlfn.NORM.DIST(C27,$L$31,$M$31,TRUE)-_xlfn.NORM.DIST(B27,$L$31,$M$31,TRUE))),"") -> 0.05871314323 | F27: 0.07382140817 | G27: =IF(D27<>"",D27*BRLRWT!$H$9*1000,"") -> 105.7578546 | H27: =IF(E27<>"",E27*BRLRWT!$H$9*1000,"") -> 410.9920026 | I27: 516.7498572
B28: 0.3380980706 | C28: 0.3450713837 | D28: =IF($L$30<>"",IF(INPUT!$H$10=1,(_xlfn.NORM.DIST(C28,$L$30,$M$30,TRUE)-_xlfn.NORM.DIST(B28,$L$30,$M$30,TRUE))*BRLRWT!$H$10/100,(_xlfn.NORM.DIST(C28,$L$30,$M$30,TRUE)-_xlfn.NORM.DIST(B28,$L$30,$M$30,TRUE))),"") -> 0.02209055517 | E28: =IF($L$31<>"",IF(INPUT!$H$10=1,(_xlfn.NORM.DIST(C28,$L$31,$M$31,TRUE)-_xlfn.NORM.DIST(B28,$L$31,$M$31,TRUE))*(1-BRLRWT!$H$10/100),(_xlfn.NORM.DIST(C28,$L$31,$M$31,TRUE)-_xlfn.NORM.DIST(B28,$L$31,$M$31,TRUE))),"") -> 0.0491057284 | F28: 0.07119628356 | G28: =IF(D28<>"",D28*BRLRWT!$H$9*1000,"") -> 154.6338862 | H28: =IF(E28<>"",E28*BRLRWT!$H$9*1000,"") -> 343.7400988 | I28: 498.3739849 | K28: - Summary
B29: 0.3450713837 | C29: 0.3520446968 | D29: =IF($L$30<>"",IF(INPUT!$H$10=1,(_xlfn.NORM.DIST(C29,$L$30,$M$30,TRUE)-_xlfn.NORM.DIST(B29,$L$30,$M$30,TRUE))*BRLRWT!$H$10/100,(_xlfn.NORM.DIST(C29,$L$30,$M$30,TRUE)-_xlfn.NORM.DIST(B29,$L$30,$M$30,TRUE))),"") -> 0.03014500104 | E29: =IF($L$31<>"",IF(INPUT!$H$10=1,(_xlfn.NORM.DIST(C29,$L$31,$M$31,TRUE)-_xlfn.NORM.DIST(B29,$L$31,$M$31,TRUE))*(1-BRLRWT!$H$10/100),(_xlfn.NORM.DIST(C29,$L$31,$M$31,TRUE)-_xlfn.NORM.DIST(B29,$L$31,$M$31,TRUE))),"") -> 0.03709769895 | F29: 0.06724269999 | G29: =IF(D29<>"",D29*BRLRWT!$H$9*1000,"") -> 211.0150073 | H29: =IF(E29<>"",E29*BRLRWT!$H$9*1000,"") -> 259.6838926 | I29: 470.6988999 | K29: Unit (lbs) | L29: Mean | M29: Std. Dev. | N29: C.V. (%)
B30: 0.3520446968 | C30: 0.35901801 | D30: =IF($L$30<>"",IF(INPUT!$H$10=1,(_xlfn.NORM.DIST(C30,$L$30,$M$30,TRUE)-_xlfn.NORM.DIST(B30,$L$30,$M$30,TRUE))*BRLRWT!$H$10/100,(_xlfn.NORM.DIST(C30,$L$30,$M$30,TRUE)-_xlfn.NORM.DIST(B30,$L$30,$M$30,TRUE))),"") -> 0.03839202182 | E30: =IF($L$31<>"",IF(INPUT!$H$10=1,(_xlfn.NORM.DIST(C30,$L$31,$M$31,TRUE)-_xlfn.NORM.DIST(B30,$L$31,$M$31,TRUE))*(1-BRLRWT!$H$10/100),(_xlfn.NORM.DIST(C30,$L$31,$M$31,TRUE)-_xlfn.NORM.DIST(B30,$L$31,$M$31,TRUE))),"") -> 0.02531504415 | F30: 0.06370706597 | G30: =IF(D30<>"",D30*BRLRWT!$H$9*1000,"") -> 268.7441527 | H30: =IF(E30<>"",E30*BRLRWT!$H$9*1000,"") -> 177.2053091 | I30: 445.9494618 | K30: Male | L30: 0.3764715176 | M30: 0.02646314629 | N30: =IF(L30<>"",M30/L30*100,"") -> 7.029255881
B31: 0.35901801 | C31: 0.3659913231 | D31: =IF($L$30<>"",IF(INPUT!$H$10=1,(_xlfn.NORM.DIST(C31,$L$30,$M$30,TRUE)-_xlfn.NORM.DIST(B31,$L$30,$M$30,TRUE))*BRLRWT!$H$10/100,(_xlfn.NORM.DIST(C31,$L$30,$M$30,TRUE)-_xlfn.NORM.DIST(B31,$L$30,$M$30,TRUE))),"") -> 0.04563351929 | E31: =IF($L$31<>"",IF(INPUT!$H$10=1,(_xlfn.NORM.DIST(C31,$L$31,$M$31,TRUE)-_xlfn.NORM.DIST(B31,$L$31,$M$31,TRUE))*(1-BRLRWT!$H$10/100),(_xlfn.NORM.DIST(C31,$L$31,$M$31,TRUE)-_xlfn.NORM.DIST(B31,$L$31,$M$31,TRUE))),"") -> 0.01560363683 | F31: 0.06123715612 | G31: =IF(D31<>"",D31*BRLRWT!$H$9*1000,"") -> 319.434635 | H31: =IF(E31<>"",E31*BRLRWT!$H$9*1000,"") -> 109.2254578 | I31: 428.6600928 | K31: Female | L31: 0.3258496175 | M31: 0.02176984929 | N31: =IF(L31<>"",M31/L31*100,"") -> 6.680949775
B32: 0.3659913231 | C32: 0.3729646363 | D32: =IF($L$30<>"",IF(INPUT!$H$10=1,(_xlfn.NORM.DIST(C32,$L$30,$M$30,TRUE)-_xlfn.NORM.DIST(B32,$L$30,$M$30,TRUE))*BRLRWT!$H$10/100,(_xlfn.NORM.DIST(C32,$L$30,$M$30,TRUE)-_xlfn.NORM.DIST(B32,$L$30,$M$30,TRUE))),"") -> 0.05062260039 | E32: =IF($L$31<>"",IF(INPUT!$H$10=1,(_xlfn.NORM.DIST(C32,$L$31,$M$31,TRUE)-_xlfn.NORM.DIST(B32,$L$31,$M$31,TRUE))*(1-BRLRWT!$H$10/100),(_xlfn.NORM.DIST(C32,$L$31,$M$31,TRUE)-_xlfn.NORM.DIST(B32,$L$31,$M$31,TRUE))),"") -> 0.008687334667 | F32: 0.05930993506 | G32: =IF(D32<>"",D32*BRLRWT!$H$9*1000,"") -> 354.3582028 | H32: =IF(E32<>"",E32*BRLRWT!$H$9*1000,"") -> 60.81134267 | I32: 415.1695454 | K32: S/Run | L32: 0.3511605675 | M32: 0.03503935526 | N32: =IF(L32<>"",M32/L32*100,"") -> 9.978157714
B33: 0.3729646363 | C33: 0.3799379494 | D33: =IF($L$30<>"",IF(INPUT!$H$10=1,(_xlfn.NORM.DIST(C33,$L$30,$M$30,TRUE)-_xlfn.NORM.DIST(B33,$L$30,$M$30,TRUE))*BRLRWT!$H$10/100,(_xlfn.NORM.DIST(C33,$L$30,$M$30,TRUE)-_xlfn.NORM.DIST(B33,$L$30,$M$30,TRUE))),"") -> 0.05241101503 | E33: =IF($L$31<>"",IF(INPUT!$H$10=1,(_xlfn.NORM.DIST(C33,$L$31,$M$31,TRUE)-_xlfn.NORM.DIST(B33,$L$31,$M$31,TRUE))*(1-BRLRWT!$H$10/100),(_xlfn.NORM.DIST(C33,$L$31,$M$31,TRUE)-_xlfn.NORM.DIST(B33,$L$31,$M$31,TRUE))),"") -> 0.004368764378 | F33: 0.05677977941 | G33: =IF(D33<>"",D33*BRLRWT!$H$9*1000,"") -> 366.8771052 | H33: =IF(E33<>"",E33*BRLRWT!$H$9*1000,"") -> 30.58135065 | I33: 397.4584558
B34: 0.3799379494 | C34: 0.3869112626 | D34: =IF($L$30<>"",IF(INPUT!$H$10=1,(_xlfn.NORM.DIST(C34,$L$30,$M$30,TRUE)-_xlfn.NORM.DIST(B34,$L$30,$M$30,TRUE))*BRLRWT!$H$10/100,(_xlfn.NORM.DIST(C34,$L$30,$M$30,TRUE)-_xlfn.NORM.DIST(B34,$L$30,$M$30,TRUE))),"") -> 0.05064287657 | E34: =IF($L$31<>"",IF(INPUT!$H$10=1,(_xlfn.NORM.DIST(C34,$L$31,$M$31,TRUE)-_xlfn.NORM.DIST(B34,$L$31,$M$31,TRUE))*(1-BRLRWT!$H$10/100),(_xlfn.NORM.DIST(C34,$L$31,$M$31,TRUE)-_xlfn.NORM.DIST(B34,$L$31,$M$31,TRUE))),"") -> 0.0019844468 | F34: 0.05262732337 | G34: =IF(D34<>"",D34*BRLRWT!$H$9*1000,"") -> 354.500136 | H34: =IF(E34<>"",E34*BRLRWT!$H$9*1000,"") -> 13.8911276 | I34: 368.3912636
B35: 0.3869112626 | C35: 0.3938845757 | D35: =IF($L$30<>"",IF(INPUT!$H$10=1,(_xlfn.NORM.DIST(C35,$L$30,$M$30,TRUE)-_xlfn.NORM.DIST(B35,$L$30,$M$30,TRUE))*BRLRWT!$H$10/100,(_xlfn.NORM.DIST(C35,$L$30,$M$30,TRUE)-_xlfn.NORM.DIST(B35,$L$30,$M$30,TRUE))),"") -> 0.0456700824 | E35: =IF($L$31<>"",IF(INPUT!$H$10=1,(_xlfn.NORM.DIST(C35,$L$31,$M$31,TRUE)-_xlfn.NORM.DIST(B35,$L$31,$M$31,TRUE))*(1-BRLRWT!$H$10/100),(_xlfn.NORM.DIST(C35,$L$31,$M$31,TRUE)-_xlfn.NORM.DIST(B35,$L$31,$M$31,TRUE))),"") -> 0.0008141906987 | F35: 0.04648427309 | G35: =IF(D35<>"",D35*BRLRWT!$H$9*1000,"") -> 319.6905768 | H35: =IF(E35<>"",E35*BRLRWT!$H$9*1000,"") -> 5.699334891 | I35: 325.3899117
B36: 0.3938845757 | C36: 0.4008578888 | D36: =IF($L$30<>"",IF(INPUT!$H$10=1,(_xlfn.NORM.DIST(C36,$L$30,$M$30,TRUE)-_xlfn.NORM.DIST(B36,$L$30,$M$30,TRUE))*BRLRWT!$H$10/100,(_xlfn.NORM.DIST(C36,$L$30,$M$30,TRUE)-_xlfn.NORM.DIST(B36,$L$30,$M$30,TRUE))),"") -> 0.03843817262 | E36: =IF($L$31<>"",IF(INPUT!$H$10=1,(_xlfn.NORM.DIST(C36,$L$31,$M$31,TRUE)-_xlfn.NORM.DIST(B36,$L$31,$M$31,TRUE))*(1-BRLRWT!$H$10/100),(_xlfn.NORM.DIST(C36,$L$31,$M$31,TRUE)-_xlfn.NORM.DIST(B36,$L$31,$M$31,TRUE))),"") -> 0.0003017278423 | F36: 0.03873990047 | G36: =IF(D36<>"",D36*BRLRWT!$H$9*1000,"") -> 269.0672084 | H36: =IF(E36<>"",E36*BRLRWT!$H$9*1000,"") -> 2.112094896 | I36: 271.1793033
B37: 0.4008578888 | C37: 0.407831202 | D37: =IF($L$30<>"",IF(INPUT!$H$10=1,(_xlfn.NORM.DIST(C37,$L$30,$M$30,TRUE)-_xlfn.NORM.DIST(B37,$L$30,$M$30,TRUE))*BRLRWT!$H$10/100,(_xlfn.NORM.DIST(C37,$L$30,$M$30,TRUE)-_xlfn.NORM.DIST(B37,$L$30,$M$30,TRUE))),"") -> 0.03019332703 | E37: =IF($L$31<>"",IF(INPUT!$H$10=1,(_xlfn.NORM.DIST(C37,$L$31,$M$31,TRUE)-_xlfn.NORM.DIST(B37,$L$31,$M$31,TRUE))*(1-BRLRWT!$H$10/100),(_xlfn.NORM.DIST(C37,$L$31,$M$31,TRUE)-_xlfn.NORM.DIST(B37,$L$31,$M$31,TRUE))),"") -> 0.0001009958734 | F37: 0.03029432291 | G37: =IF(D37<>"",D37*BRLRWT!$H$9*1000,"") -> 211.3532892 | H37: =IF(E37<>"",E37*BRLRWT!$H$9*1000,"") -> 0.706971114 | I37: 212.0602603
B38: 0.407831202 | C38: 0.4148045151 | D38: =IF($L$30<>"",IF(INPUT!$H$10=1,(_xlfn.NORM.DIST(C38,$L$30,$M$30,TRUE)-_xlfn.NORM.DIST(B38,$L$30,$M$30,TRUE))*BRLRWT!$H$10/100,(_xlfn.NORM.DIST(C38,$L$30,$M$30,TRUE)-_xlfn.NORM.DIST(B38,$L$30,$M$30,TRUE))),"") -> 0.02213483142 | E38: =IF($L$31<>"",IF(INPUT!$H$10=1,(_xlfn.NORM.DIST(C38,$L$31,$M$31,TRUE)-_xlfn.NORM.DIST(B38,$L$31,$M$31,TRUE))*(1-BRLRWT!$H$10/100),(_xlfn.NORM.DIST(C38,$L$31,$M$31,TRUE)-_xlfn.NORM.DIST(B38,$L$31,$M$31,TRUE))),"") -> 3.053423046e-05 | F38: 0.02216536565 | G38: =IF(D38<>"",D38*BRLRWT!$H$9*1000,"") -> 154.94382 | H38: =IF(E38<>"",E38*BRLRWT!$H$9*1000,"") -> 0.2137396132 | I38: 155.1575596
B39: 0.4148045151 | C39: 0.4217778283 | D39: =IF($L$30<>"",IF(INPUT!$H$10=1,(_xlfn.NORM.DIST(C39,$L$30,$M$30,TRUE)-_xlfn.NORM.DIST(B39,$L$30,$M$30,TRUE))*BRLRWT!$H$10/100,(_xlfn.NORM.DIST(C39,$L$30,$M$30,TRUE)-_xlfn.NORM.DIST(B39,$L$30,$M$30,TRUE))),"") -> 0.01514461033 | E39: =IF($L$31<>"",IF(INPUT!$H$10=1,(_xlfn.NORM.DIST(C39,$L$31,$M$31,TRUE)-_xlfn.NORM.DIST(B39,$L$31,$M$31,TRUE))*(1-BRLRWT!$H$10/100),(_xlfn.NORM.DIST(C39,$L$31,$M$31,TRUE)-_xlfn.NORM.DIST(B39,$L$31,$M$31,TRUE))),"") -> 8.337988016e-06 | F39: 0.01515294831 | G39: =IF(D39<>"",D39*BRLRWT!$H$9*1000,"") -> 106.0122723 | H39: =IF(E39<>"",E39*BRLRWT!$H$9*1000,"") -> 0.05836591611 | I39: 106.0706382
B40: 0.4217778283 | C40: 0.4287511414 | D40: =IF($L$30<>"",IF(INPUT!$H$10=1,(_xlfn.NORM.DIST(C40,$L$30,$M$30,TRUE)-_xlfn.NORM.DIST(B40,$L$30,$M$30,TRUE))*BRLRWT!$H$10/100,(_xlfn.NORM.DIST(C40,$L$30,$M$30,TRUE)-_xlfn.NORM.DIST(B40,$L$30,$M$30,TRUE))),"") -> 0.009670661244 | E40: =IF($L$31<>"",IF(INPUT!$H$10=1,(_xlfn.NORM.DIST(C40,$L$31,$M$31,TRUE)-_xlfn.NORM.DIST(B40,$L$31,$M$31,TRUE))*(1-BRLRWT!$H$10/100),(_xlfn.NORM.DIST(C40,$L$31,$M$31,TRUE)-_xlfn.NORM.DIST(B40,$L$31,$M$31,TRUE))),"") -> 2.05646847e-06 | F40: 0.009672717712 | G40: =IF(D40<>"",D40*BRLRWT!$H$9*1000,"") -> 67.69462871 | H40: =IF(E40<>"",E40*BRLRWT!$H$9*1000,"") -> 0.01439527929 | I40: 67.70902398
B41: 0.4287511414 | C41: 0.4357244546 | D41: =IF($L$30<>"",IF(INPUT!$H$10=1,(_xlfn.NORM.DIST(C41,$L$30,$M$30,TRUE)-_xlfn.NORM.DIST(B41,$L$30,$M$30,TRUE))*BRLRWT!$H$10/100,(_xlfn.NORM.DIST(C41,$L$30,$M$30,TRUE)-_xlfn.NORM.DIST(B41,$L$30,$M$30,TRUE))),"") -> 0.00576328221 | E41: =IF($L$31<>"",IF(INPUT!$H$10=1,(_xlfn.NORM.DIST(C41,$L$31,$M$31,TRUE)-_xlfn.NORM.DIST(B41,$L$31,$M$31,TRUE))*(1-BRLRWT!$H$10/100),(_xlfn.NORM.DIST(C41,$L$31,$M$31,TRUE)-_xlfn.NORM.DIST(B41,$L$31,$M$31,TRUE))),"") -> 4.581046075e-07 | F41: 0.005763740314 | G41: =IF(D41<>"",D41*BRLRWT!$H$9*1000,"") -> 40.34297547 | H41: =IF(E41<>"",E41*BRLRWT!$H$9*1000,"") -> 0.003206732252 | I41: 40.3461822
B42: 0.4357244546 | C42: 0.4426977677 | D42: =IF($L$30<>"",IF(INPUT!$H$10=1,(_xlfn.NORM.DIST(C42,$L$30,$M$30,TRUE)-_xlfn.NORM.DIST(B42,$L$30,$M$30,TRUE))*BRLRWT!$H$10/100,(_xlfn.NORM.DIST(C42,$L$30,$M$30,TRUE)-_xlfn.NORM.DIST(B42,$L$30,$M$30,TRUE))),"") -> 0.003205521078 | E42: =IF($L$31<>"",IF(INPUT!$H$10=1,(_xlfn.NORM.DIST(C42,$L$31,$M$31,TRUE)-_xlfn.NORM.DIST(B42,$L$31,$M$31,TRUE))*(1-BRLRWT!$H$10/100),(_xlfn.NORM.DIST(C42,$L$31,$M$31,TRUE)-_xlfn.NORM.DIST(B42,$L$31,$M$31,TRUE))),"") -> 9.216884955e-08 | F42: 0.003205613247 | G42: =IF(D42<>"",D42*BRLRWT!$H$9*1000,"") -> 22.43864755 | H42: =IF(E42<>"",E42*BRLRWT!$H$9*1000,"") -> 0.0006451819469 | I42: 22.43929273
B43: 0.4426977677 | C43: 0.4496710809 | D43: =IF($L$30<>"",IF(INPUT!$H$10=1,(_xlfn.NORM.DIST(C43,$L$30,$M$30,TRUE)-_xlfn.NORM.DIST(B43,$L$30,$M$30,TRUE))*BRLRWT!$H$10/100,(_xlfn.NORM.DIST(C43,$L$30,$M$30,TRUE)-_xlfn.NORM.DIST(B43,$L$30,$M$30,TRUE))),"") -> 0.001663955594 | E43: =IF($L$31<>"",IF(INPUT!$H$10=1,(_xlfn.NORM.DIST(C43,$L$31,$M$31,TRUE)-_xlfn.NORM.DIST(B43,$L$31,$M$31,TRUE))*(1-BRLRWT!$H$10/100),(_xlfn.NORM.DIST(C43,$L$31,$M$31,TRUE)-_xlfn.NORM.DIST(B43,$L$31,$M$31,TRUE))),"") -> 1.674848205e-08 | F43: 0.001663972343 | G43: =IF(D43<>"",D43*BRLRWT!$H$9*1000,"") -> 11.64768916 | H43: =IF(E43<>"",E43*BRLRWT!$H$9*1000,"") -> 0.0001172393743 | I43: 11.6478064
B44: 0.4496710809 | C44: 0.456644394 | D44: =IF($L$30<>"",IF(INPUT!$H$10=1,(_xlfn.NORM.DIST(C44,$L$30,$M$30,TRUE)-_xlfn.NORM.DIST(B44,$L$30,$M$30,TRUE))*BRLRWT!$H$10/100,(_xlfn.NORM.DIST(C44,$L$30,$M$30,TRUE)-_xlfn.NORM.DIST(B44,$L$30,$M$30,TRUE))),"") -> 0.0008061176031 | E44: =IF($L$31<>"",IF(INPUT!$H$10=1,(_xlfn.NORM.DIST(C44,$L$31,$M$31,TRUE)-_xlfn.NORM.DIST(B44,$L$31,$M$31,TRUE))*(1-BRLRWT!$H$10/100),(_xlfn.NORM.DIST(C44,$L$31,$M$31,TRUE)-_xlfn.NORM.DIST(B44,$L$31,$M$31,TRUE))),"") -> 2.748737071e-09 | F44: 0.0008061203519 | G44: =IF(D44<>"",D44*BRLRWT!$H$9*1000,"") -> 5.642823222 | H44: =IF(E44<>"",E44*BRLRWT!$H$9*1000,"") -> 1.92411595e-05 | I44: 5.642842463
B45: 0.456644394 | C45: ="inf." -> inf. | D45: =IF($L$30<>"",IF(INPUT!$H$10=1,(1-_xlfn.NORM.DIST(B45,$L$30,$M$30,TRUE))*BRLRWT!$H$10/100,(1-_xlfn.NORM.DIST(B45,$L$30,$M$30,TRUE))),"") -> 0.0006121847183 | E45: =IF($L$31<>"",IF(INPUT!$H$10=1,(1-_xlfn.NORM.DIST(B44,$L$31,$M$31,TRUE))*(1-BRLRWT!$H$10/100),(1-_xlfn.NORM.DIST(B44,$L$31,$M$31,TRUE))),"") -> 3.218099287e-09 | F45: 0.0006121879364 | G45: =IF(D45<>"",D45*BRLRWT!$H$9*1000,"") -> 4.285293028 | H45: =IF(E45<>"",E45*BRLRWT!$H$9*1000,"") -> 2.252669501e-05 | I45: 4.285315555
B46: Total | D46: =SUM(D12:D45) -> 0.5 | E46: 0.5000000027 | F46: 1.000000003 | G46: 3500 | H46: 3500.000019 | I46: 7000.000019

Sheet WingWT
A8: 3-7. Results - Wing Weight Distribution | K8: Breed
B10: Weight (lbs) | D10: Percentage | G10: Numbers
B11: Min. (>) | C11: Max. (≤) | D11: Male | E11: Female | F11: S/Run | G11: Male | H11: Female | I11: S/Run
B12: ="-inf." -> -inf. | C12: =$M$13 -> 0.1903782344 | D12: =IF($L$30<>"",IF(INPUT!$H$10=1,_xlfn.NORM.DIST(C12,$L$30,$M$30,TRUE)*BRLRWT!$H$10/100,_xlfn.NORM.DIST(C12,$L$30,$M$30,TRUE)),"") -> 1.640886614e-08 | E12: =IF($L$31<>"",IF(INPUT!$H$10=1,_xlfn.NORM.DIST(C12,$L$31,$M$31,TRUE)*(1-BRLRWT!$H$10/100),_xlfn.NORM.DIST(C12,$L$31,$M$31,TRUE)),"") -> 1.906451877e-06 | F12: =IF(D12<>"",IF(E12<>"",D12+E12,""),"") -> 1.922860743e-06 | G12: =IF(D12<>"",D12*BRLRWT!$H$9*1000,"") -> 0.000114862063 | H12: =IF(E12<>"",E12*BRLRWT!$H$9*1000,"") -> 0.01334516314 | I12: =IF(G12<>"",IF(H12<>"",G12+H12,""),"") -> 0.0134600252 | L12: Range
B13: =C12 -> 0.1903782344 | C13: =C12+$M$14 -> 0.1965242786 | D13: =IF($L$30<>"",IF(INPUT!$H$10=1,(_xlfn.NORM.DIST(C13,$L$30,$M$30,TRUE)-_xlfn.NORM.DIST(B13,$L$30,$M$30,TRUE))*BRLRWT!$H$10/100,(_xlfn.NORM.DIST(C13,$L$30,$M$30,TRUE)-_xlfn.NORM.DIST(B13,$L$30,$M$30,TRUE))),"") -> 6.371674591e-08 | E13: =IF($L$31<>"",IF(INPUT!$H$10=1,(_xlfn.NORM.DIST(C13,$L$31,$M$31,TRUE)-_xlfn.NORM.DIST(B13,$L$31,$M$31,TRUE))*(1-BRLRWT!$H$10/100),(_xlfn.NORM.DIST(C13,$L$31,$M$31,TRUE)-_xlfn.NORM.DIST(B13,$L$31,$M$31,TRUE))),"") -> 6.484967573e-06 | F13: =IF(D13<>"",IF(E13<>"",D13+E13,""),"") -> 6.548684319e-06 | G13: =IF(D13<>"",D13*BRLRWT!$H$9*1000,"") -> 0.0004460172214 | H13: =IF(E13<>"",E13*BRLRWT!$H$9*1000,"") -> 0.04539477301 | I13: =IF(G13<>"",IF(H13<>"",G13+H13,""),"") -> 0.04584079024 | L13: min | M13: 0.1903782344
B14: =C13 -> 0.1965242786 | C14: =C13+$M$14 -> 0.2026703228 | D14: =IF($L$30<>"",IF(INPUT!$H$10=1,(_xlfn.NORM.DIST(C14,$L$30,$M$30,TRUE)-_xlfn.NORM.DIST(B14,$L$30,$M$30,TRUE))*BRLRWT!$H$10/100,(_xlfn.NORM.DIST(C14,$L$30,$M$30,TRUE)-_xlfn.NORM.DIST(B14,$L$30,$M$30,TRUE))),"") -> 2.801740012e-07 | E14: =IF($L$31<>"",IF(INPUT!$H$10=1,(_xlfn.NORM.DIST(C14,$L$31,$M$31,TRUE)-_xlfn.NORM.DIST(B14,$L$31,$M$31,TRUE))*(1-BRLRWT!$H$10/100),(_xlfn.NORM.DIST(C14,$L$31,$M$31,TRUE)-_xlfn.NORM.DIST(B14,$L$31,$M$31,TRUE))),"") -> 2.494307541e-05 | F14: =IF(D14<>"",IF(E14<>"",D14+E14,""),"") -> 2.522324941e-05 | G14: =IF(D14<>"",D14*BRLRWT!$H$9*1000,"") -> 0.001961218009 | H14: =IF(E14<>"",E14*BRLRWT!$H$9*1000,"") -> 0.1746015278 | I14: =IF(G14<>"",IF(H14<>"",G14+H14,""),"") -> 0.1765627459 | L14: step size | M14: 0.0061460442
B15: =C14 -> 0.2026703228 | C15: =C14+$M$14 -> 0.208816367 | D15: =IF($L$30<>"",IF(INPUT!$H$10=1,(_xlfn.NORM.DIST(C15,$L$30,$M$30,TRUE)-_xlfn.NORM.DIST(B15,$L$30,$M$30,TRUE))*BRLRWT!$H$10/100,(_xlfn.NORM.DIST(C15,$L$30,$M$30,TRUE)-_xlfn.NORM.DIST(B15,$L$30,$M$30,TRUE))),"") -> 1.132064955e-06 | E15: =IF($L$31<>"",IF(INPUT!$H$10=1,(_xlfn.NORM.DIST(C15,$L$31,$M$31,TRUE)-_xlfn.NORM.DIST(B15,$L$31,$M$31,TRUE))*(1-BRLRWT!$H$10/100),(_xlfn.NORM.DIST(C15,$L$31,$M$31,TRUE)-_xlfn.NORM.DIST(B15,$L$31,$M$31,TRUE))),"") -> 8.625072356e-05 | F15: 8.738278851e-05 | G15: =IF(D15<>"",D15*BRLRWT!$H$9*1000,"") -> 0.007924454685 | H15: =IF(E15<>"",E15*BRLRWT!$H$9*1000,"") -> 0.6037550649 | I15: 0.6116795196
B16: 0.208816367 | C16: 0.2149624112 | D16: =IF($L$30<>"",IF(INPUT!$H$10=1,(_xlfn.NORM.DIST(C16,$L$30,$M$30,TRUE)-_xlfn.NORM.DIST(B16,$L$30,$M$30,TRUE))*BRLRWT!$H$10/100,(_xlfn.NORM.DIST(C16,$L$30,$M$30,TRUE)-_xlfn.NORM.DIST(B16,$L$30,$M$30,TRUE))),"") -> 4.203265289e-06 | E16: =IF($L$31<>"",IF(INPUT!$H$10=1,(_xlfn.NORM.DIST(C16,$L$31,$M$31,TRUE)-_xlfn.NORM.DIST(B16,$L$31,$M$31,TRUE))*(1-BRLRWT!$H$10/100),(_xlfn.NORM.DIST(C16,$L$31,$M$31,TRUE)-_xlfn.NORM.DIST(B16,$L$31,$M$31,TRUE))),"") -> 0.0002681334267 | F16: 0.000272336692 | G16: =IF(D16<>"",D16*BRLRWT!$H$9*1000,"") -> 0.02942285703 | H16: =IF(E16<>"",E16*BRLRWT!$H$9*1000,"") -> 1.876933987 | I16: 1.906356844
B17: 0.2149624112 | C17: 0.2211084554 | D17: =IF($L$30<>"",IF(INPUT!$H$10=1,(_xlfn.NORM.DIST(C17,$L$30,$M$30,TRUE)-_xlfn.NORM.DIST(B17,$L$30,$M$30,TRUE))*BRLRWT!$H$10/100,(_xlfn.NORM.DIST(C17,$L$30,$M$30,TRUE)-_xlfn.NORM.DIST(B17,$L$30,$M$30,TRUE))),"") -> 1.434091139e-05 | E17: =IF($L$31<>"",IF(INPUT!$H$10=1,(_xlfn.NORM.DIST(C17,$L$31,$M$31,TRUE)-_xlfn.NORM.DIST(B17,$L$31,$M$31,TRUE))*(1-BRLRWT!$H$10/100),(_xlfn.NORM.DIST(C17,$L$31,$M$31,TRUE)-_xlfn.NORM.DIST(B17,$L$31,$M$31,TRUE))),"") -> 0.000749409526 | F17: 0.0007637504374 | G17: =IF(D17<>"",D17*BRLRWT!$H$9*1000,"") -> 0.1003863797 | H17: =IF(E17<>"",E17*BRLRWT!$H$9*1000,"") -> 5.245866682 | I17: 5.346253062
B18: 0.2211084554 | C18: 0.2272544996 | D18: =IF($L$30<>"",IF(INPUT!$H$10=1,(_xlfn.NORM.DIST(C18,$L$30,$M$30,TRUE)-_xlfn.NORM.DIST(B18,$L$30,$M$30,TRUE))*BRLRWT!$H$10/100,(_xlfn.NORM.DIST(C18,$L$30,$M$30,TRUE)-_xlfn.NORM.DIST(B18,$L$30,$M$30,TRUE))),"") -> 4.496179371e-05 | E18: =IF($L$31<>"",IF(INPUT!$H$10=1,(_xlfn.NORM.DIST(C18,$L$31,$M$31,TRUE)-_xlfn.NORM.DIST(B18,$L$31,$M$31,TRUE))*(1-BRLRWT!$H$10/100),(_xlfn.NORM.DIST(C18,$L$31,$M$31,TRUE)-_xlfn.NORM.DIST(B18,$L$31,$M$31,TRUE))),"") -> 0.001883092789 | F18: 0.001928054583 | G18: =IF(D18<>"",D18*BRLRWT!$H$9*1000,"") -> 0.314732556 | H18: =IF(E18<>"",E18*BRLRWT!$H$9*1000,"") -> 13.18164952 | I18: 13.49638208
B19: 0.2272544996 | C19: 0.2334005438 | D19: =IF($L$30<>"",IF(INPUT!$H$10=1,(_xlfn.NORM.DIST(C19,$L$30,$M$30,TRUE)-_xlfn.NORM.DIST(B19,$L$30,$M$30,TRUE))*BRLRWT!$H$10/100,(_xlfn.NORM.DIST(C19,$L$30,$M$30,TRUE)-_xlfn.NORM.DIST(B19,$L$30,$M$30,TRUE))),"") -> 0.0001295357752 | E19: =IF($L$31<>"",IF(INPUT!$H$10=1,(_xlfn.NORM.DIST(C19,$L$31,$M$31,TRUE)-_xlfn.NORM.DIST(B19,$L$31,$M$31,TRUE))*(1-BRLRWT!$H$10/100),(_xlfn.NORM.DIST(C19,$L$31,$M$31,TRUE)-_xlfn.NORM.DIST(B19,$L$31,$M$31,TRUE))),"") -> 0.004254145482 | F19: 0.004383681257 | G19: =IF(D19<>"",D19*BRLRWT!$H$9*1000,"") -> 0.9067504261 | H19: =IF(E19<>"",E19*BRLRWT!$H$9*1000,"") -> 29.77901837 | I19: 30.6857688
B20: 0.2334005438 | C20: 0.239546588 | D20: =IF($L$30<>"",IF(INPUT!$H$10=1,(_xlfn.NORM.DIST(C20,$L$30,$M$30,TRUE)-_xlfn.NORM.DIST(B20,$L$30,$M$30,TRUE))*BRLRWT!$H$10/100,(_xlfn.NORM.DIST(C20,$L$30,$M$30,TRUE)-_xlfn.NORM.DIST(B20,$L$30,$M$30,TRUE))),"") -> 0.0003429392626 | E20: =IF($L$31<>"",IF(INPUT!$H$10=1,(_xlfn.NORM.DIST(C20,$L$31,$M$31,TRUE)-_xlfn.NORM.DIST(B20,$L$31,$M$31,TRUE))*(1-BRLRWT!$H$10/100),(_xlfn.NORM.DIST(C20,$L$31,$M$31,TRUE)-_xlfn.NORM.DIST(B20,$L$31,$M$31,TRUE))),"") -> 0.008640612185 | F20: 0.008983551447 | G20: =IF(D20<>"",D20*BRLRWT!$H$9*1000,"") -> 2.400574838 | H20: =IF(E20<>"",E20*BRLRWT!$H$9*1000,"") -> 60.48428529 | I20: 62.88486013
B21: 0.239546588 | C21: 0.2456926322 | D21: =IF($L$30<>"",IF(INPUT!$H$10=1,(_xlfn.NORM.DIST(C21,$L$30,$M$30,TRUE)-_xlfn.NORM.DIST(B21,$L$30,$M$30,TRUE))*BRLRWT!$H$10/100,(_xlfn.NORM.DIST(C21,$L$30,$M$30,TRUE)-_xlfn.NORM.DIST(B21,$L$30,$M$30,TRUE))),"") -> 0.0008343112232 | E21: =IF($L$31<>"",IF(INPUT!$H$10=1,(_xlfn.NORM.DIST(C21,$L$31,$M$31,TRUE)-_xlfn.NORM.DIST(B21,$L$31,$M$31,TRUE))*(1-BRLRWT!$H$10/100),(_xlfn.NORM.DIST(C21,$L$31,$M$31,TRUE)-_xlfn.NORM.DIST(B21,$L$31,$M$31,TRUE))),"") -> 0.01577870246 | F21: 0.01661301368 | G21: =IF(D21<>"",D21*BRLRWT!$H$9*1000,"") -> 5.840178563 | H21: =IF(E21<>"",E21*BRLRWT!$H$9*1000,"") -> 110.4509172 | I21: 116.2910958
B22: 0.2456926322 | C22: 0.2518386764 | D22: =IF($L$30<>"",IF(INPUT!$H$10=1,(_xlfn.NORM.DIST(C22,$L$30,$M$30,TRUE)-_xlfn.NORM.DIST(B22,$L$30,$M$30,TRUE))*BRLRWT!$H$10/100,(_xlfn.NORM.DIST(C22,$L$30,$M$30,TRUE)-_xlfn.NORM.DIST(B22,$L$30,$M$30,TRUE))),"") -> 0.001865194893 | E22: =IF($L$31<>"",IF(INPUT!$H$10=1,(_xlfn.NORM.DIST(C22,$L$31,$M$31,TRUE)-_xlfn.NORM.DIST(B22,$L$31,$M$31,TRUE))*(1-BRLRWT!$H$10/100),(_xlfn.NORM.DIST(C22,$L$31,$M$31,TRUE)-_xlfn.NORM.DIST(B22,$L$31,$M$31,TRUE))),"") -> 0.02590569634 | F22: 0.02777089123 | G22: =IF(D22<>"",D22*BRLRWT!$H$9*1000,"") -> 13.05636425 | H22: =IF(E22<>"",E22*BRLRWT!$H$9*1000,"") -> 181.3398744 | I22: 194.3962386
B23: 0.2518386764 | C23: 0.2579847206 | D23: =IF($L$30<>"",IF(INPUT!$H$10=1,(_xlfn.NORM.DIST(C23,$L$30,$M$30,TRUE)-_xlfn.NORM.DIST(B23,$L$30,$M$30,TRUE))*BRLRWT!$H$10/100,(_xlfn.NORM.DIST(C23,$L$30,$M$30,TRUE)-_xlfn.NORM.DIST(B23,$L$30,$M$30,TRUE))),"") -> 0.003831839486 | E23: =IF($L$31<>"",IF(INPUT!$H$10=1,(_xlfn.NORM.DIST(C23,$L$31,$M$31,TRUE)-_xlfn.NORM.DIST(B23,$L$31,$M$31,TRUE))*(1-BRLRWT!$H$10/100),(_xlfn.NORM.DIST(C23,$L$31,$M$31,TRUE)-_xlfn.NORM.DIST(B23,$L$31,$M$31,TRUE))),"") -> 0.0382400662 | F23: 0.04207190569 | G23: =IF(D23<>"",D23*BRLRWT!$H$9*1000,"") -> 26.8228764 | H23: =IF(E23<>"",E23*BRLRWT!$H$9*1000,"") -> 267.6804634 | I23: 294.5033398
B24: 0.2579847206 | C24: 0.2641307648 | D24: =IF($L$30<>"",IF(INPUT!$H$10=1,(_xlfn.NORM.DIST(C24,$L$30,$M$30,TRUE)-_xlfn.NORM.DIST(B24,$L$30,$M$30,TRUE))*BRLRWT!$H$10/100,(_xlfn.NORM.DIST(C24,$L$30,$M$30,TRUE)-_xlfn.NORM.DIST(B24,$L$30,$M$30,TRUE))),"") -> 0.00723400655 | E24: =IF($L$31<>"",IF(INPUT!$H$10=1,(_xlfn.NORM.DIST(C24,$L$31,$M$31,TRUE)-_xlfn.NORM.DIST(B24,$L$31,$M$31,TRUE))*(1-BRLRWT!$H$10/100),(_xlfn.NORM.DIST(C24,$L$31,$M$31,TRUE)-_xlfn.NORM.DIST(B24,$L$31,$M$31,TRUE))),"") -> 0.05075082419 | F24: 0.05798483074 | G24: =IF(D24<>"",D24*BRLRWT!$H$9*1000,"") -> 50.63804585 | H24: =IF(E24<>"",E24*BRLRWT!$H$9*1000,"") -> 355.2557693 | I24: 405.8938152
B25: 0.2641307648 | C25: 0.270276809 | D25: =IF($L$30<>"",IF(INPUT!$H$10=1,(_xlfn.NORM.DIST(C25,$L$30,$M$30,TRUE)-_xlfn.NORM.DIST(B25,$L$30,$M$30,TRUE))*BRLRWT!$H$10/100,(_xlfn.NORM.DIST(C25,$L$30,$M$30,TRUE)-_xlfn.NORM.DIST(B25,$L$30,$M$30,TRUE))),"") -> 0.01254990265 | E25: =IF($L$31<>"",IF(INPUT!$H$10=1,(_xlfn.NORM.DIST(C25,$L$31,$M$31,TRUE)-_xlfn.NORM.DIST(B25,$L$31,$M$31,TRUE))*(1-BRLRWT!$H$10/100),(_xlfn.NORM.DIST(C25,$L$31,$M$31,TRUE)-_xlfn.NORM.DIST(B25,$L$31,$M$31,TRUE))),"") -> 0.06055777621 | F25: 0.07310767886 | G25: =IF(D25<>"",D25*BRLRWT!$H$9*1000,"") -> 87.84931855 | H25: =IF(E25<>"",E25*BRLRWT!$H$9*1000,"") -> 423.9044335 | I25: 511.753752
B26: 0.270276809 | C26: 0.2764228532 | D26: =IF($L$30<>"",IF(INPUT!$H$10=1,(_xlfn.NORM.DIST(C26,$L$30,$M$30,TRUE)-_xlfn.NORM.DIST(B26,$L$30,$M$30,TRUE))*BRLRWT!$H$10/100,(_xlfn.NORM.DIST(C26,$L$30,$M$30,TRUE)-_xlfn.NORM.DIST(B26,$L$30,$M$30,TRUE))),"") -> 0.02000750273 | E26: =IF($L$31<>"",IF(INPUT!$H$10=1,(_xlfn.NORM.DIST(C26,$L$31,$M$31,TRUE)-_xlfn.NORM.DIST(B26,$L$31,$M$31,TRUE))*(1-BRLRWT!$H$10/100),(_xlfn.NORM.DIST(C26,$L$31,$M$31,TRUE)-_xlfn.NORM.DIST(B26,$L$31,$M$31,TRUE))),"") -> 0.06496805721 | F26: 0.08497555994 | G26: =IF(D26<>"",D26*BRLRWT!$H$9*1000,"") -> 140.0525191 | H26: =IF(E26<>"",E26*BRLRWT!$H$9*1000,"") -> 454.7764005 | I26: 594.8289196
B27: 0.2764228532 | C27: 0.2825688974 | D27: =IF($L$30<>"",IF(INPUT!$H$10=1,(_xlfn.NORM.DIST(C27,$L$30,$M$30,TRUE)-_xlfn.NORM.DIST(B27,$L$30,$M$30,TRUE))*BRLRWT!$H$10/100,(_xlfn.NORM.DIST(C27,$L$30,$M$30,TRUE)-_xlfn.NORM.DIST(B27,$L$30,$M$30,TRUE))),"") -> 0.02931146347 | E27: =IF($L$31<>"",IF(INPUT!$H$10=1,(_xlfn.NORM.DIST(C27,$L$31,$M$31,TRUE)-_xlfn.NORM.DIST(B27,$L$31,$M$31,TRUE))*(1-BRLRWT!$H$10/100),(_xlfn.NORM.DIST(C27,$L$31,$M$31,TRUE)-_xlfn.NORM.DIST(B27,$L$31,$M$31,TRUE))),"") -> 0.06266619084 | F27: 0.09197765431 | G27: =IF(D27<>"",D27*BRLRWT!$H$9*1000,"") -> 205.1802443 | H27: =IF(E27<>"",E27*BRLRWT!$H$9*1000,"") -> 438.6633359 | I27: 643.8435802
B28: 0.2825688974 | C28: 0.2887149416 | D28: =IF($L$30<>"",IF(INPUT!$H$10=1,(_xlfn.NORM.DIST(C28,$L$30,$M$30,TRUE)-_xlfn.NORM.DIST(B28,$L$30,$M$30,TRUE))*BRLRWT!$H$10/100,(_xlfn.NORM.DIST(C28,$L$30,$M$30,TRUE)-_xlfn.NORM.DIST(B28,$L$30,$M$30,TRUE))),"") -> 0.03946163284 | E28: =IF($L$31<>"",IF(INPUT!$H$10=1,(_xlfn.NORM.DIST(C28,$L$31,$M$31,TRUE)-_xlfn.NORM.DIST(B28,$L$31,$M$31,TRUE))*(1-BRLRWT!$H$10/100),(_xlfn.NORM.DIST(C28,$L$31,$M$31,TRUE)-_xlfn.NORM.DIST(B28,$L$31,$M$31,TRUE))),"") -> 0.05434630336 | F28: 0.09380793621 | G28: =IF(D28<>"",D28*BRLRWT!$H$9*1000,"") -> 276.2314299 | H28: =IF(E28<>"",E28*BRLRWT!$H$9*1000,"") -> 380.4241235 | I28: 656.6555535 | K28: - Summary
B29: 0.2887149416 | C29: 0.2948609858 | D29: =IF($L$30<>"",IF(INPUT!$H$10=1,(_xlfn.NORM.DIST(C29,$L$30,$M$30,TRUE)-_xlfn.NORM.DIST(B29,$L$30,$M$30,TRUE))*BRLRWT!$H$10/100,(_xlfn.NORM.DIST(C29,$L$30,$M$30,TRUE)-_xlfn.NORM.DIST(B29,$L$30,$M$30,TRUE))),"") -> 0.04882094593 | E29: =IF($L$31<>"",IF(INPUT!$H$10=1,(_xlfn.NORM.DIST(C29,$L$31,$M$31,TRUE)-_xlfn.NORM.DIST(B29,$L$31,$M$31,TRUE))*(1-BRLRWT!$H$10/100),(_xlfn.NORM.DIST(C29,$L$31,$M$31,TRUE)-_xlfn.NORM.DIST(B29,$L$31,$M$31,TRUE))),"") -> 0.0423749677 | F29: 0.09119591363 | G29: =IF(D29<>"",D29*BRLRWT!$H$9*1000,"") -> 341.7466215 | H29: =IF(E29<>"",E29*BRLRWT!$H$9*1000,"") -> 296.6247739 | I29: 638.3713954 | K29: Unit (lbs) | L29: Mean | M29: Std. Dev. | N29: C.V. (%)
B30: 0.2948609858 | C30: 0.30100703 | D30: =IF($L$30<>"",IF(INPUT!$H$10=1,(_xlfn.NORM.DIST(C30,$L$30,$M$30,TRUE)-_xlfn.NORM.DIST(B30,$L$30,$M$30,TRUE))*BRLRWT!$H$10/100,(_xlfn.NORM.DIST(C30,$L$30,$M$30,TRUE)-_xlfn.NORM.DIST(B30,$L$30,$M$30,TRUE))),"") -> 0.05550490837 | E30: =IF($L$31<>"",IF(INPUT!$H$10=1,(_xlfn.NORM.DIST(C30,$L$31,$M$31,TRUE)-_xlfn.NORM.DIST(B30,$L$31,$M$31,TRUE))*(1-BRLRWT!$H$10/100),(_xlfn.NORM.DIST(C30,$L$31,$M$31,TRUE)-_xlfn.NORM.DIST(B30,$L$31,$M$31,TRUE))),"") -> 0.02970641922 | F30: 0.0852113276 | G30: =IF(D30<>"",D30*BRLRWT!$H$9*1000,"") -> 388.5343586 | H30: =IF(E30<>"",E30*BRLRWT!$H$9*1000,"") -> 207.9449346 | I30: 596.4792932 | K30: Male | L30: 0.3041916973 | M30: 0.02106593049 | N30: =IF(L30<>"",M30/L30*100,"") -> 6.925215476
B31: 0.30100703 | C31: 0.3071530742 | D31: =IF($L$30<>"",IF(INPUT!$H$10=1,(_xlfn.NORM.DIST(C31,$L$30,$M$30,TRUE)-_xlfn.NORM.DIST(B31,$L$30,$M$30,TRUE))*BRLRWT!$H$10/100,(_xlfn.NORM.DIST(C31,$L$30,$M$30,TRUE)-_xlfn.NORM.DIST(B31,$L$30,$M$30,TRUE))),"") -> 0.05798971012 | E31: =IF($L$31<>"",IF(INPUT!$H$10=1,(_xlfn.NORM.DIST(C31,$L$31,$M$31,TRUE)-_xlfn.NORM.DIST(B31,$L$31,$M$31,TRUE))*(1-BRLRWT!$H$10/100),(_xlfn.NORM.DIST(C31,$L$31,$M$31,TRUE)-_xlfn.NORM.DIST(B31,$L$31,$M$31,TRUE))),"") -> 0.01872368021 | F31: 0.07671339033 | G31: =IF(D31<>"",D31*BRLRWT!$H$9*1000,"") -> 405.9279708 | H31: =IF(E31<>"",E31*BRLRWT!$H$9*1000,"") -> 131.0657615 | I31: 536.9937323 | K31: Female | L31: 0.2743385513 | M31: 0.01876028395 | N31: =IF(L31<>"",M31/L31*100,"") -> 6.838369548
B32: 0.3071530742 | C32: 0.3132991184 | D32: =IF($L$30<>"",IF(INPUT!$H$10=1,(_xlfn.NORM.DIST(C32,$L$30,$M$30,TRUE)-_xlfn.NORM.DIST(B32,$L$30,$M$30,TRUE))*BRLRWT!$H$10/100,(_xlfn.NORM.DIST(C32,$L$30,$M$30,TRUE)-_xlfn.NORM.DIST(B32,$L$30,$M$30,TRUE))),"") -> 0.05567560316 | E32: =IF($L$31<>"",IF(INPUT!$H$10=1,(_xlfn.NORM.DIST(C32,$L$31,$M$31,TRUE)-_xlfn.NORM.DIST(B32,$L$31,$M$31,TRUE))*(1-BRLRWT!$H$10/100),(_xlfn.NORM.DIST(C32,$L$31,$M$31,TRUE)-_xlfn.NORM.DIST(B32,$L$31,$M$31,TRUE))),"") -> 0.01061035908 | F32: 0.06628596224 | G32: =IF(D32<>"",D32*BRLRWT!$H$9*1000,"") -> 389.7292221 | H32: =IF(E32<>"",E32*BRLRWT!$H$9*1000,"") -> 74.27251357 | I32: 464.0017357 | K32: S/Run | L32: 0.2892651243 | M32: 0.02491311748 | N32: =IF(L32<>"",M32/L32*100,"") -> 8.612554845
B33: 0.3132991184 | C33: 0.3194451626 | D33: =IF($L$30<>"",IF(INPUT!$H$10=1,(_xlfn.NORM.DIST(C33,$L$30,$M$30,TRUE)-_xlfn.NORM.DIST(B33,$L$30,$M$30,TRUE))*BRLRWT!$H$10/100,(_xlfn.NORM.DIST(C33,$L$30,$M$30,TRUE)-_xlfn.NORM.DIST(B33,$L$30,$M$30,TRUE))),"") -> 0.04912168749 | E33: =IF($L$31<>"",IF(INPUT!$H$10=1,(_xlfn.NORM.DIST(C33,$L$31,$M$31,TRUE)-_xlfn.NORM.DIST(B33,$L$31,$M$31,TRUE))*(1-BRLRWT!$H$10/100),(_xlfn.NORM.DIST(C33,$L$31,$M$31,TRUE)-_xlfn.NORM.DIST(B33,$L$31,$M$31,TRUE))),"") -> 0.005405855521 | F33: 0.05452754301 | G33: =IF(D33<>"",D33*BRLRWT!$H$9*1000,"") -> 343.8518124 | H33: =IF(E33<>"",E33*BRLRWT!$H$9*1000,"") -> 37.84098865 | I33: 381.6928011
B34: 0.3194451626 | C34: 0.3255912068 | D34: =IF($L$30<>"",IF(INPUT!$H$10=1,(_xlfn.NORM.DIST(C34,$L$30,$M$30,TRUE)-_xlfn.NORM.DIST(B34,$L$30,$M$30,TRUE))*BRLRWT!$H$10/100,(_xlfn.NORM.DIST(C34,$L$30,$M$30,TRUE)-_xlfn.NORM.DIST(B34,$L$30,$M$30,TRUE))),"") -> 0.03982682636 | E34: =IF($L$31<>"",IF(INPUT!$H$10=1,(_xlfn.NORM.DIST(C34,$L$31,$M$31,TRUE)-_xlfn.NORM.DIST(B34,$L$31,$M$31,TRUE))*(1-BRLRWT!$H$10/100),(_xlfn.NORM.DIST(C34,$L$31,$M$31,TRUE)-_xlfn.NORM.DIST(B34,$L$31,$M$31,TRUE))),"") -> 0.002476232213 | F34: 0.04230305857 | G34: =IF(D34<>"",D34*BRLRWT!$H$9*1000,"") -> 278.7877845 | H34: =IF(E34<>"",E34*BRLRWT!$H$9*1000,"") -> 17.33362549 | I34: 296.12141
B35: 0.3255912068 | C35: 0.331737251 | D35: =IF($L$30<>"",IF(INPUT!$H$10=1,(_xlfn.NORM.DIST(C35,$L$30,$M$30,TRUE)-_xlfn.NORM.DIST(B35,$L$30,$M$30,TRUE))*BRLRWT!$H$10/100,(_xlfn.NORM.DIST(C35,$L$30,$M$30,TRUE)-_xlfn.NORM.DIST(B35,$L$30,$M$30,TRUE))),"") -> 0.02967370215 | E35: =IF($L$31<>"",IF(INPUT!$H$10=1,(_xlfn.NORM.DIST(C35,$L$31,$M$31,TRUE)-_xlfn.NORM.DIST(B35,$L$31,$M$31,TRUE))*(1-BRLRWT!$H$10/100),(_xlfn.NORM.DIST(C35,$L$31,$M$31,TRUE)-_xlfn.NORM.DIST(B35,$L$31,$M$31,TRUE))),"") -> 0.001019782522 | F35: 0.03069348467 | G35: =IF(D35<>"",D35*BRLRWT!$H$9*1000,"") -> 207.715915 | H35: =IF(E35<>"",E35*BRLRWT!$H$9*1000,"") -> 7.138477654 | I35: 214.8543927
B36: 0.331737251 | C36: 0.3378832952 | D36: =IF($L$30<>"",IF(INPUT!$H$10=1,(_xlfn.NORM.DIST(C36,$L$30,$M$30,TRUE)-_xlfn.NORM.DIST(B36,$L$30,$M$30,TRUE))*BRLRWT!$H$10/100,(_xlfn.NORM.DIST(C36,$L$30,$M$30,TRUE)-_xlfn.NORM.DIST(B36,$L$30,$M$30,TRUE))),"") -> 0.02031705349 | E36: =IF($L$31<>"",IF(INPUT!$H$10=1,(_xlfn.NORM.DIST(C36,$L$31,$M$31,TRUE)-_xlfn.NORM.DIST(B36,$L$31,$M$31,TRUE))*(1-BRLRWT!$H$10/100),(_xlfn.NORM.DIST(C36,$L$31,$M$31,TRUE)-_xlfn.NORM.DIST(B36,$L$31,$M$31,TRUE))),"") -> 0.0003775802758 | F36: 0.02069463377 | G36: =IF(D36<>"",D36*BRLRWT!$H$9*1000,"") -> 142.2193744 | H36: =IF(E36<>"",E36*BRLRWT!$H$9*1000,"") -> 2.643061931 | I36: 144.8624364
B37: 0.3378832952 | C37: 0.3440293394 | D37: =IF($L$30<>"",IF(INPUT!$H$10=1,(_xlfn.NORM.DIST(C37,$L$30,$M$30,TRUE)-_xlfn.NORM.DIST(B37,$L$30,$M$30,TRUE))*BRLRWT!$H$10/100,(_xlfn.NORM.DIST(C37,$L$30,$M$30,TRUE)-_xlfn.NORM.DIST(B37,$L$30,$M$30,TRUE))),"") -> 0.01278326637 | E37: =IF($L$31<>"",IF(INPUT!$H$10=1,(_xlfn.NORM.DIST(C37,$L$31,$M$31,TRUE)-_xlfn.NORM.DIST(B37,$L$31,$M$31,TRUE))*(1-BRLRWT!$H$10/100),(_xlfn.NORM.DIST(C37,$L$31,$M$31,TRUE)-_xlfn.NORM.DIST(B37,$L$31,$M$31,TRUE))),"") -> 0.000125687611 | F37: 0.01290895398 | G37: =IF(D37<>"",D37*BRLRWT!$H$9*1000,"") -> 89.48286459 | H37: =IF(E37<>"",E37*BRLRWT!$H$9*1000,"") -> 0.8798132768 | I37: 90.36267787
B38: 0.3440293394 | C38: 0.3501753836 | D38: =IF($L$30<>"",IF(INPUT!$H$10=1,(_xlfn.NORM.DIST(C38,$L$30,$M$30,TRUE)-_xlfn.NORM.DIST(B38,$L$30,$M$30,TRUE))*BRLRWT!$H$10/100,(_xlfn.NORM.DIST(C38,$L$30,$M$30,TRUE)-_xlfn.NORM.DIST(B38,$L$30,$M$30,TRUE))),"") -> 0.007391184816 | E38: =IF($L$31<>"",IF(INPUT!$H$10=1,(_xlfn.NORM.DIST(C38,$L$31,$M$31,TRUE)-_xlfn.NORM.DIST(B38,$L$31,$M$31,TRUE))*(1-BRLRWT!$H$10/100),(_xlfn.NORM.DIST(C38,$L$31,$M$31,TRUE)-_xlfn.NORM.DIST(B38,$L$31,$M$31,TRUE))),"") -> 3.76142682e-05 | F38: 0.007428799084 | G38: =IF(D38<>"",D38*BRLRWT!$H$9*1000,"") -> 51.73829371 | H38: =IF(E38<>"",E38*BRLRWT!$H$9*1000,"") -> 0.2632998774 | I38: 52.00159359
B39: 0.3501753836 | C39: 0.3563214278 | D39: =IF($L$30<>"",IF(INPUT!$H$10=1,(_xlfn.NORM.DIST(C39,$L$30,$M$30,TRUE)-_xlfn.NORM.DIST(B39,$L$30,$M$30,TRUE))*BRLRWT!$H$10/100,(_xlfn.NORM.DIST(C39,$L$30,$M$30,TRUE)-_xlfn.NORM.DIST(B39,$L$30,$M$30,TRUE))),"") -> 0.003927138353 | E39: =IF($L$31<>"",IF(INPUT!$H$10=1,(_xlfn.NORM.DIST(C39,$L$31,$M$31,TRUE)-_xlfn.NORM.DIST(B39,$L$31,$M$31,TRUE))*(1-BRLRWT!$H$10/100),(_xlfn.NORM.DIST(C39,$L$31,$M$31,TRUE)-_xlfn.NORM.DIST(B39,$L$31,$M$31,TRUE))),"") -> 1.0120103e-05 | F39: 0.003937258456 | G39: =IF(D39<>"",D39*BRLRWT!$H$9*1000,"") -> 27.48996847 | H39: =IF(E39<>"",E39*BRLRWT!$H$9*1000,"") -> 0.07084072101 | I39: 27.5608092
B40: 0.3563214278 | C40: 0.362467472 | D40: =IF($L$30<>"",IF(INPUT!$H$10=1,(_xlfn.NORM.DIST(C40,$L$30,$M$30,TRUE)-_xlfn.NORM.DIST(B40,$L$30,$M$30,TRUE))*BRLRWT!$H$10/100,(_xlfn.NORM.DIST(C40,$L$30,$M$30,TRUE)-_xlfn.NORM.DIST(B40,$L$30,$M$30,TRUE))),"") -> 0.001917462561 | E40: =IF($L$31<>"",IF(INPUT!$H$10=1,(_xlfn.NORM.DIST(C40,$L$31,$M$31,TRUE)-_xlfn.NORM.DIST(B40,$L$31,$M$31,TRUE))*(1-BRLRWT!$H$10/100),(_xlfn.NORM.DIST(C40,$L$31,$M$31,TRUE)-_xlfn.NORM.DIST(B40,$L$31,$M$31,TRUE))),"") -> 2.447847169e-06 | F40: 0.001919910409 | G40: =IF(D40<>"",D40*BRLRWT!$H$9*1000,"") -> 13.42223793 | H40: =IF(E40<>"",E40*BRLRWT!$H$9*1000,"") -> 0.01713493018 | I40: 13.43937286
B41: 0.362467472 | C41: 0.3686135162 | D41: =IF($L$30<>"",IF(INPUT!$H$10=1,(_xlfn.NORM.DIST(C41,$L$30,$M$30,TRUE)-_xlfn.NORM.DIST(B41,$L$30,$M$30,TRUE))*BRLRWT!$H$10/100,(_xlfn.NORM.DIST(C41,$L$30,$M$30,TRUE)-_xlfn.NORM.DIST(B41,$L$30,$M$30,TRUE))),"") -> 0.0008603290786 | E41: =IF($L$31<>"",IF(INPUT!$H$10=1,(_xlfn.NORM.DIST(C41,$L$31,$M$31,TRUE)-_xlfn.NORM.DIST(B41,$L$31,$M$31,TRUE))*(1-BRLRWT!$H$10/100),(_xlfn.NORM.DIST(C41,$L$31,$M$31,TRUE)-_xlfn.NORM.DIST(B41,$L$31,$M$31,TRUE))),"") -> 5.32286318e-07 | F41: 0.0008608613649 | G41: =IF(D41<>"",D41*BRLRWT!$H$9*1000,"") -> 6.02230355 | H41: =IF(E41<>"",E41*BRLRWT!$H$9*1000,"") -> 0.003726004226 | I41: 6.026029555
B42: 0.3686135162 | C42: 0.3747595604 | D42: =IF($L$30<>"",IF(INPUT!$H$10=1,(_xlfn.NORM.DIST(C42,$L$30,$M$30,TRUE)-_xlfn.NORM.DIST(B42,$L$30,$M$30,TRUE))*BRLRWT!$H$10/100,(_xlfn.NORM.DIST(C42,$L$30,$M$30,TRUE)-_xlfn.NORM.DIST(B42,$L$30,$M$30,TRUE))),"") -> 0.0003547215973 | E42: =IF($L$31<>"",IF(INPUT!$H$10=1,(_xlfn.NORM.DIST(C42,$L$31,$M$31,TRUE)-_xlfn.NORM.DIST(B42,$L$31,$M$31,TRUE))*(1-BRLRWT!$H$10/100),(_xlfn.NORM.DIST(C42,$L$31,$M$31,TRUE)-_xlfn.NORM.DIST(B42,$L$31,$M$31,TRUE))),"") -> 1.040548344e-07 | F42: 0.0003548256522 | G42: =IF(D42<>"",D42*BRLRWT!$H$9*1000,"") -> 2.483051181 | H42: =IF(E42<>"",E42*BRLRWT!$H$9*1000,"") -> 0.0007283838409 | I42: 2.483779565
B43: 0.3747595604 | C43: 0.3809056046 | D43: =IF($L$30<>"",IF(INPUT!$H$10=1,(_xlfn.NORM.DIST(C43,$L$30,$M$30,TRUE)-_xlfn.NORM.DIST(B43,$L$30,$M$30,TRUE))*BRLRWT!$H$10/100,(_xlfn.NORM.DIST(C43,$L$30,$M$30,TRUE)-_xlfn.NORM.DIST(B43,$L$30,$M$30,TRUE))),"") -> 0.0001343984085 | E43: =IF($L$31<>"",IF(INPUT!$H$10=1,(_xlfn.NORM.DIST(C43,$L$31,$M$31,TRUE)-_xlfn.NORM.DIST(B43,$L$31,$M$31,TRUE))*(1-BRLRWT!$H$10/100),(_xlfn.NORM.DIST(C43,$L$31,$M$31,TRUE)-_xlfn.NORM.DIST(B43,$L$31,$M$31,TRUE))),"") -> 1.828644364e-08 | F43: 0.0001344166949 | G43: =IF(D43<>"",D43*BRLRWT!$H$9*1000,"") -> 0.9407888593 | H43: =IF(E43<>"",E43*BRLRWT!$H$9*1000,"") -> 0.0001280051055 | I43: 0.9409168644
B44: 0.3809056046 | C44: 0.3870516488 | D44: =IF($L$30<>"",IF(INPUT!$H$10=1,(_xlfn.NORM.DIST(C44,$L$30,$M$30,TRUE)-_xlfn.NORM.DIST(B44,$L$30,$M$30,TRUE))*BRLRWT!$H$10/100,(_xlfn.NORM.DIST(C44,$L$30,$M$30,TRUE)-_xlfn.NORM.DIST(B44,$L$30,$M$30,TRUE))),"") -> 4.679312802e-05 | E44: =IF($L$31<>"",IF(INPUT!$H$10=1,(_xlfn.NORM.DIST(C44,$L$31,$M$31,TRUE)-_xlfn.NORM.DIST(B44,$L$31,$M$31,TRUE))*(1-BRLRWT!$H$10/100),(_xlfn.NORM.DIST(C44,$L$31,$M$31,TRUE)-_xlfn.NORM.DIST(B44,$L$31,$M$31,TRUE))),"") -> 2.888950634e-09 | F44: 4.679601697e-05 | G44: =IF(D44<>"",D44*BRLRWT!$H$9*1000,"") -> 0.3275518961 | H44: =IF(E44<>"",E44*BRLRWT!$H$9*1000,"") -> 2.022265444e-05 | I44: 0.3275721188
B45: 0.3870516488 | C45: ="inf." -> inf. | D45: =IF($L$30<>"",IF(INPUT!$H$10=1,(1-_xlfn.NORM.DIST(B45,$L$30,$M$30,TRUE))*BRLRWT!$H$10/100,(1-_xlfn.NORM.DIST(B45,$L$30,$M$30,TRUE))),"") -> 2.094139769e-05 | E45: =IF($L$31<>"",IF(INPUT!$H$10=1,(1-_xlfn.NORM.DIST(B44,$L$31,$M$31,TRUE))*(1-BRLRWT!$H$10/100),(1-_xlfn.NORM.DIST(B44,$L$31,$M$31,TRUE))),"") -> 3.35831285e-09 | F45: 2.0944756e-05 | G45: =IF(D45<>"",D45*BRLRWT!$H$9*1000,"") -> 0.1465897838 | H45: =IF(E45<>"",E45*BRLRWT!$H$9*1000,"") -> 2.350818995e-05 | I45: 0.146613292
B46: Total | D46: =SUM(D12:D45) -> 0.5 | E46: 0.5000000029 | F46: 1.000000003 | G46: 3500 | H46: 3500.00002 | I46: 7000.00002

Sheet CV Comparisons
B2: Single-Sex C.V. Comparions
B4: Mean Weight | E4: 3
B5: Uniformity Range (%) | E5: 15
B6: Uniformity Limits | D6: Minimum Weight | E6: =$E$4-$E$4*$E$5/100 -> 2.55
D7: Maximum Weight | E7: =$E$4+$E$4*$E$5/100 -> 3.45
B8: Population (in 1,000's) | E8: 7
B10: C.V. (%) | C10: Std. Dev. | D10: Population Within Uniformity | E10: Population Outside Uniformity | F10: % Outside Unformity
B12: 8 | C12: =B12*$E$4/100 -> 0.24 | D12: =ROUNDDOWN(_xlfn.NORM.DIST($E$7,$E$4,C12,TRUE)*$E$8*1000,0)-ROUNDDOWN(_xlfn.NORM.DIST($E$6,$E$4,C12,TRUE)*$E$8*1000,0) -> 6575 | E12: =$E$8*1000-D12 -> 425 | F12: =E12/($E$8*1000)*100 -> 6.071428571
B13: 9 | C13: =B13*$E$4/100 -> 0.27 | D13: 6331 | E13: =$E$8*1000-D13 -> 669 | F13: =E13/($E$8*1000)*100 -> 9.557142857
B14: 10 | C14: 0.3 | D14: 6065 | E14: 935 | F14: 13.35714286
B15: 11 | C15: 0.33 | D15: 5791 | E15: 1209 | F15: 17.27142857
B16: 12 | C16: 0.36 | D16: 5521 | E16: 1479 | F16: 21.12857143
B17: 13 | C17: 0.39 | D17: 5261 | E17: 1739 | F17: 24.84285714
B18: 14 | C18: 0.42 | D18: 5013 | E18: 1987 | F18: 28.38571429
B19: 15 | C19: 0.45 | D19: 4779 | E19: 2221 | F19: 31.72857143
B20: 16 | C20: 0.48 | D20: 4561 | E20: 2439 | F20: 34.84285714
B21: 17 | C21: 0.51 | D21: 4357 | E21: 2643 | F21: 37.75714286
B22: 18 | C22: 0.54 | D22: 4167 | E22: 2833 | F22: 40.47142857
B23: 19 | C23: 0.57 | D23: 3991 | E23: 3009 | F23: 42.98571429
B24: 20 | C24: 0.6 | D24: 3827 | E24: 3173 | F24: 45.32857143

Sheet Breed (hidden)
A1: 6
A2: Efficiency Pro x Ross 308
A3: Efficiency Pro x Ross 308AP
A4: Efficiency Pro x Ross 308FF
A5: Efficiency Pro x Ross 708
A6: Ross x Ross 308
A7: Ross x Ross 308AP
A8: Ross x Ross 308FF
A9: Ross x Ross 708
A10: Yield Plus x Ross 308
A11: Yield Plus x Ross 308AP
A12: Yield Plus x Ross 308FF
A13: Yield Plus x Ross 708

Sheet Historical_Data (hidden)
A1: 308
A2: Age | B2: AH Wt | C2: Male Ratio
A3: 0 | B3: 43 | C3: 1
A4: 1 | B4: 57.330275 | C4: 0.9998865346
A5: 2 | B5: 72.92043 | C5: 0.9994872493
A6: 3 | B6: 90.712415 | C6: 0.9994506265
A7: 4 | B7: 110.986485 | C7: 0.9997571326
A8: 5 | B8: 133.94364 | C8: 1.000375158
A9: 6 | B9: 159.74865 | C9: 1.001272687
A10: 7 | B10: 188.539965 | C10: 1.002419726
A11: 8 | B11: 220.432395 | C11: 1.003788531
A12: 9 | B12: 255.51777 | C12: 1.005353561
A13: 10 | B13: 293.865075 | C13: 1.007091503
A14: 11 | B14: 335.5205 | C14: 1.008980793
A15: 12 | B15: 380.507735 | C15: 1.011001603
A16: 13 | B16: 428.82841 | C16: 1.013135627
A17: 14 | B17: 480.46292 | C17: 1.015365952
A18: 15 | B18: 535.371365 | C18: 1.017676861
A19: 16 | B19: 593.49483 | C19: 1.020053823
A20: 17 | B20: 654.75675 | C20: 1.022483327
A21: 18 | B21: 719.064485 | C21: 1.024952846
A22: 19 | B22: 786.31097 | C22: 1.027450755
A23: 20 | B23: 856.376445 | C23: 1.029966255
A24: 21 | B24: 929.1302 | C24: 1.032489343
A25: 22 | B25: 1004.43233 | C25: 1.035010751
A26: 23 | B26: 1082.135475 | C26: 1.037521915
A27: 24 | B27: 1162.08643 | C27: 1.040014958
A28: 25 | B28: 1244.12779 | C28: 1.042482621
A29: 26 | B29: 1328.09938 | C29: 1.044918273
A30: 27 | B30: 1413.839655 | C30: 1.047315864
A31: 28 | B31: 1501.186955 | C31: 1.049669913
A32: 29 | B32: 1589.98062 | C32: 1.051975501
A33: 30 | B33: 1680.062 | C33: 1.054228231
A34: 31 | B34: 1771.27531 | C34: 1.056424227
A35: 32 | B35: 1863.46835 | C35: 1.058560131
A36: 33 | B36: 1956.493165 | C36: 1.060633069
A37: 34 | B37: 2050.20648 | C37: 1.062640661
A38: 35 | B38: 2144.470075 | C38: 1.064581001
A39: 36 | B39: 2239.15109 | C39: 1.066452648
A40: 37 | B40: 2334.122155 | C40: 1.068254626
A41: 38 | B41: 2429.261465 | C41: 1.069986417
A42: 39 | B42: 2524.45277 | C42: 1.071647936
A43: 40 | B43: 2619.585305 | C43: 1.073239556
A44: 41 | B44: 2714.553625 | C44: 1.074762073
A45: 42 | B45: 2809.257415 | C45: 1.076216713
A46: 43 | B46: 2903.601235 | C46: 1.077605121
A47: 44 | B47: 2997.494235 | C47: 1.078929351
A48: 45 | B48: 3090.849835 | C48: 1.080191863
A49: 46 | B49: 3183.58543 | C49: 1.081395504
A50: 47 | B50: 3275.621995 | C50: 1.082543494
A51: 48 | B51: 3366.88379 | C51: 1.083639427
A52: 49 | B52: 3457.297975 | C52: 1.084687229
A53: 50 | B53: 3546.794345 | C53: 1.085691161
A54: 51 | B54: 3635.30496 | C54: 1.086655781
A55: 52 | B55: 3722.76392 | C55: 1.08758593
A56: 53 | B56: 3809.10709 | C56: 1.08848669
A57: 54 | B57: 3894.27192 | C57: 1.089363364
A58: 55 | B58: 3978.197275 | C58: 1.090221427
A59: 56 | B59: 4060.82331 | C59: 1.091066499
A60: 57 | B60: 4142.09143 | C60: 1.091904285
A61: 58 | B61: 4221.944295 | C61: 1.092740543
A62: 59 | B62: 4300.325855 | C62: 1.093581024
A63: 60 | B63: 4377.181465 | C63: 1.094431421
A64: 61 | B64: 4452.458055 | C64: 1.095297308
A65: 62 | B65: 4526.10435 | C65: 1.09618409
A66: 63 | B66: 4598.071145 | C66: 1.097096935
A67: 64 | B67: 4668.311575 | C67: 1.098040717
A68: 65 | B68: 4736.781545 | C68: 1.099019957
A69: 66 | B69: 4803.44001 | C69: 1.100038762
A70: 67 | B70: 4868.24945 | C70: 1.101100775
A71: 68 | B71: 4931.176225 | C71: 1.102209116
A72: 69 | B72: 4992.19099 | C72: 1.103366344
A73: 70 | B73: 5051.269085 | C73: 1.104574406
